Service Area,Service Division,Expense Type,Expense Code,Detailed Expense Type,Payment Date,Transaction Number,Amount Exc VAT,Supplier Name
Regeneration Economy and Growth,Culture Sport and Tourism,Supplies and Services,384302,Miscellaneous Expenses,01/07/2022,4019902-2,540.00,REDACTED - PAYMENT TO INDIVIDUAL
Regeneration Economy and Growth,Communications Management,Supplies and Services,336005,Advertising E336,01/07/2022,4019788-DCCDURHAM2025,675.00,REDACTED - PAYMENT TO INDIVIDUAL
Resources BK0010,Legal & Democratic Services,Supplies and Services,338042,Services,01/07/2022,4020140-289547/INVKC110,720.00,TRINITY CHAMBERS.
Resources BK0010,Legal & Democratic Services,Supplies and Services,338042,Services,01/07/2022,4020140-299556/INVRP210,965.00,TRINITY CHAMBERS.
Regeneration Economy and Growth,Culture Sport and Tourism,Third Party Payments,430131,Rendered by Private Contractors,01/07/2022,4020021-4507,990.00,NORTH EAST DANCE CIC.
Adult and Health Services,Head of Adults,Supplies and Services,338366,Services,01/07/2022,4019736-84216,"1,170.44",CARE ABILITY HEALTHCARE LTD.
Adult and Health Services,Head of Adults,Supplies and Services,338366,Services,01/07/2022,4019736-84217,"1,505.96",CARE ABILITY HEALTHCARE LTD.
Adult and Health Services,Head of Adults,Supplies and Services,338366,Services,01/07/2022,4019736-84218,"1,170.44",CARE ABILITY HEALTHCARE LTD.
Adult and Health Services,Head of Adults,Supplies and Services,338366,Services,01/07/2022,4019736-84219,"1,170.44",CARE ABILITY HEALTHCARE LTD.
Adult and Health Services,Head of Adults,Supplies and Services,338366,Services,01/07/2022,4019736-84220,"1,330.19",CARE ABILITY HEALTHCARE LTD.
Adult and Health Services,Head of Adults,Supplies and Services,338366,Services,01/07/2022,4019736-84221,"1,330.19",CARE ABILITY HEALTHCARE LTD.
Adult and Health Services,Head of Adults,Supplies and Services,338366,Services,01/07/2022,4019736-84222,"1,358.11",CARE ABILITY HEALTHCARE LTD.
Children and Young Peoples Services,Head of Childrens Social Care,Supplies and Services,384500,Miscellaneous Expenses,01/07/2022,4020138-SI-3917,504.00,TREE TOPS OCCUPATIONAL THERAPY LTD.
Regeneration Economy and Growth,Transport and Contracted Services,Supplies and Services,342215,Computers and Communications,01/07/2022,4019830-INV30823,"1,050.00",FERROGRAPH LTD.
Regeneration Economy and Growth,Corporate Property and Land,Premises,106080,Centrally Controlled Rep and Maint,01/07/2022,4020108-19860,"1,424.50",STONE TECHNICAL SERVICES LTD.
Resources BK0010,Digital Services,Vehicles Equipment Furniture and Fittings,912701,Computer equipment,01/07/2022,4020177-LB55384,"1,201.98",XMA LTD.
Resources BK0010,Digital Services,Vehicles Equipment Furniture and Fittings,912701,Computer equipment,01/07/2022,4019791-7402827978,"16,657.82",DELL COMPUTER CORPORATION LTD.
Resources BK0010,Digital Services,Supplies and Services,342033,Computers and Communications,01/07/2022,4019791-7402827004,610.00,DELL COMPUTER CORPORATION LTD.
Resources BK0010,Digital Services,Supplies and Services,342051,Computers and Communications,01/07/2022,4019850-IN60001387460,849.00,GOTO TECHNOLIGIES UK LTD.
Children and Young Peoples Services,Head of Early Help Inclusion & Vulnerable Children.,Supplies and Services,352001,Conference Expenses,01/07/2022,4020055-EVNT33441,864.00,RAMSIDE ESTATES LTD T/A RAMSIDE HALL HOTEL.
Children and Young Peoples Services,Head of Education and Skills,Supplies and Services,352001,Conference Expenses,01/07/2022,4020124-6756,643.75,THE DURHAM CENTRE LTD.
Neighbourhoods and Climate Change,Environmental Services,Supplies and Services,352001,Conference Expenses,01/07/2022,4020165-UOTR4927427,612.59,WESTERN UNION BUSINESS SOLUTIONS.
Regeneration Economy and Growth,Transport and Contracted Services,Construction work A908,908105,Construction work,01/07/2022,4019728-28776,"3,774.71",BUS SHELTERS LTD.
Neighbourhoods and Climate Change,Environmental Services,Supplies and Services,338027,Services,01/07/2022,4020091-0000963294,"1,051.89",SOCOTEC UK LTD.
Children and Young Peoples Services,Head of Education and Skills,Fees,901002,Consultants fees 901002,01/07/2022,4019795-64021565,"16,171.00",DESCO (DESIGN & CONSULTANCY) LTD.
Children and Young Peoples Services,Head of Education and Skills,Transport,230034,Contract Hire,01/07/2022,4020103-06936,"1,450.63",STANLEY TRAVEL (NORTH EAST) LTD.
Children and Young Peoples Services,Head of Education and Skills,Transport,230006,Contract Hire,01/07/2022,4020103-07298,547.21,STANLEY TRAVEL (NORTH EAST) LTD.
Children and Young Peoples Services,Head of Education and Skills,Transport,230008,Contract Hire,01/07/2022,4019722-09-MAYN080,"3,375.00",BON VOYAGE TAXIS LTD.
Children and Young Peoples Services,Head of Education and Skills,Transport,230008,Contract Hire,01/07/2022,4019777-112559,"1,207.26",CROFT BUSINESS SERVICES LTD T/A CROFT TRAVEL.
Neighbourhoods and Climate Change,Environmental Services,Third Party Payments,430120,Rendered by Private Contractors,01/07/2022,4019831-SINV9910463,"16,182.58",FINNING (UK) LTD.
Neighbourhoods and Climate Change,Partnerships & Community Engagement Div.,Cap Exp on Grants & Other Financial Assistance (REFCUS),918004,Contributions to other bodies 918004,01/07/2022,4020095-VOUCHER20NB-SPEN028,"5,624.00",SPENNYMOOR CRICKET CLUB.
Neighbourhoods and Climate Change,Partnerships & Community Engagement Div.,Cap Exp on Grants & Other Financial Assistance (REFCUS),918004,Contributions to other bodies 918004,01/07/2022,4020096-VOUCHER22NB-EDRC001,"4,000.00",ST HELENS CHURCH PCC.
Regeneration Economy and Growth,Development and Housing,Cap Exp on Grants & Other Financial Assistance (REFCUS),918004,Contributions to other bodies 918004,01/07/2022,4019912-RES-06-2022-373,"32,750.00",REDACTED - PAYMENT TO INDIVIDUAL
Children and Young Peoples Services,Head of Early Help Inclusion & Vulnerable Children.,Grant,705241,Government Grants,01/07/2022,4019792-COREPCSR001902,"489,632.00",DEPARTMENT FOR EDUCATION.*
Neighbourhoods and Climate Change,Environmental Services,Transport,215005,Running Costs of Vehicles,01/07/2022,4020181-955715,"11,022.55",YOUR NRG LTD.
Neighbourhoods and Climate Change,Environmental Services,Transport,215005,Running Costs of Vehicles,01/07/2022,4020181-956263,"19,016.23",YOUR NRG LTD.
Neighbourhoods and Climate Change,Technical Services CM0300,Supplies and Services,304221,Equipment and Materials,01/07/2022,4019978-Z001308204,"4,264.00",MARSHALLS MONO LTD.
Neighbourhoods and Climate Change,Technical Services CM0300,Supplies and Services,304221,Equipment and Materials,01/07/2022,4019978-Z001315962,"3,388.80",MARSHALLS MONO LTD.
Neighbourhoods and Climate Change,Technical Services CM0300,Supplies and Services,304221,Equipment and Materials,01/07/2022,4020020-225124,597.00,NORTH EAST CONCRETE LTD.
Neighbourhoods and Climate Change,Technical Services CM0300,Supplies and Services,304221,Equipment and Materials,01/07/2022,4020020-225239,597.00,NORTH EAST CONCRETE LTD.
Regeneration Economy and Growth,Culture Sport and Tourism,Supplies and Services,338047,Services,01/07/2022,4020061-2022202312,"3,075.84",REDACTED - PAYMENT TO INDIVIDUAL
Regeneration Economy and Growth,Culture Sport and Tourism,Supplies and Services,338047,Services,01/07/2022,4019804-3/22,"1,517.70",DURHAM DRAMATIC SOCIETY.
Regeneration Economy and Growth,Culture Sport and Tourism,Supplies and Services,338047,Services,01/07/2022,4020032-R2280826,"1,608.96",PARAMOUNT PICTURES UK.
Regeneration Economy and Growth,Culture Sport and Tourism,Supplies and Services,338047,Services,01/07/2022,4020032-R2280857,"1,105.31",PARAMOUNT PICTURES UK.
Regeneration Economy and Growth,Culture Sport and Tourism,Supplies and Services,338047,Services,01/07/2022,4020058-0130,"1,000.00",RESTLESS FILMS TELEVISION PRODUCTIONS LTD.
Regeneration Economy and Growth,Culture Sport and Tourism,Supplies and Services,338047,Services,01/07/2022,4020147-22314465269-1,"1,919.00",UNIVERSAL PICTURES INTERNATIONAL UK & EIRE LTD.
Regeneration Economy and Growth,Culture Sport and Tourism,Supplies and Services,338047,Services,01/07/2022,4020159-1965781,881.38,WALT DISNEY CO LTD.
Adult and Health Services,Head of Adults,Supplies and Services,338365,Services,01/07/2022,4019907-26519,"23,186.21",JC MAINTENANCE SERVICES LTD.
Dedicated Schools Grant BG0015,DSG High Needs Block,Supplies and Services,304259,Equipment and Materials,01/07/2022,4019824-323479,613.00,ETAC LTD.
Neighbourhoods and Climate Change,Environmental Services,Transport,215022,Running Costs of Vehicles,01/07/2022,4020181-955006,"1,833.93",YOUR NRG LTD.
Neighbourhoods and Climate Change,Environmental Services,Premises,115125,Repairs to Grounds,01/07/2022,4020022-25588,960.63,NORTHERN POWER CLEAN LTD.
Neighbourhoods and Climate Change,Environmental Services,Premises,108099,Service Repairs and Maintenance,01/07/2022,4019907-26518,"7,808.45",JC MAINTENANCE SERVICES LTD.
Regeneration Economy and Growth,Corporate Property and Land,Premises,108099,Service Repairs and Maintenance,01/07/2022,4019743-9658,840.80,CATHEDRAL LOCK & SAFE SERVICES LTD.
Regeneration Economy and Growth,Corporate Property and Land,Premises,108099,Service Repairs and Maintenance,01/07/2022,4020044-15376,"2,200.00",PREMIER CELL FIT T/A LIVEWIRE GATES & DOORS.
Regeneration Economy and Growth,Corporate Property and Land,Premises,108099,Service Repairs and Maintenance,01/07/2022,4020152-1940,620.00,VENTILATION HYGIENE SPECIALISTS (VHS) LTD.
Neighbourhoods and Climate Change,Environmental Services,Supplies and Services,304358,Equipment and Materials,01/07/2022,4019746-100636,"1,570.75",CG ROBINSON LTD.
Neighbourhoods and Climate Change,Technical Services CM0300,Supplies and Services,304358,Equipment and Materials,01/07/2022,4019746-100654,660.25,CG ROBINSON LTD.
Neighbourhoods and Climate Change,Technical Services CM0300,Supplies and Services,304358,Equipment and Materials,01/07/2022,4019746-101173,834.00,CG ROBINSON LTD.
Neighbourhoods and Climate Change,Technical Services CM0300,Supplies and Services,304358,Equipment and Materials,01/07/2022,4019894-5306530,"1,476.75",JA GILSON (AGRICULTURAL CONTRACTORS) LTD.
Neighbourhoods and Climate Change,Technical Services CM0300,Supplies and Services,304358,Equipment and Materials,01/07/2022,4019894-5306531,"1,508.50",JA GILSON (AGRICULTURAL CONTRACTORS) LTD.
Neighbourhoods and Climate Change,Technical Services CM0300,Supplies and Services,304358,Equipment and Materials,01/07/2022,4019894-5306550,790.50,JA GILSON (AGRICULTURAL CONTRACTORS) LTD.
Neighbourhoods and Climate Change,Technical Services CM0300,Supplies and Services,304358,Equipment and Materials,01/07/2022,4019894-5306551,"1,286.50",JA GILSON (AGRICULTURAL CONTRACTORS) LTD.
Neighbourhoods and Climate Change,Technical Services CM0300,Supplies and Services,304358,Equipment and Materials,01/07/2022,4019973-MS3573,"1,211.40",M SPENCE SURFACING LTD.
Neighbourhoods and Climate Change,Technical Services CM0300,Supplies and Services,304358,Equipment and Materials,01/07/2022,4020068-3200,714.00,S & R LANDSCAPES.
Neighbourhoods and Climate Change,Technical Services CM0300,Supplies and Services,304358,Equipment and Materials,01/07/2022,4020068-3201,843.00,S & R LANDSCAPES.
Neighbourhoods and Climate Change,Technical Services CM0300,Supplies and Services,304358,Equipment and Materials,01/07/2022,4020068-3215,682.00,S & R LANDSCAPES.
Neighbourhoods and Climate Change,Technical Services CM0300,Supplies and Services,304358,Equipment and Materials,01/07/2022,4020068-3216,857.00,S & R LANDSCAPES.
Neighbourhoods and Climate Change,Technical Services CM0300,Supplies and Services,304358,Equipment and Materials,01/07/2022,4020068-3218,805.00,S & R LANDSCAPES.
Neighbourhoods and Climate Change,Technical Services CM0300,Supplies and Services,304358,Equipment and Materials,01/07/2022,4020068-3220,798.00,S & R LANDSCAPES.
Neighbourhoods and Climate Change,Technical Services CM0300,Supplies and Services,304358,Equipment and Materials,01/07/2022,4020068-3222,510.00,S & R LANDSCAPES.
Neighbourhoods and Climate Change,Technical Services CM0300,Supplies and Services,304358,Equipment and Materials,01/07/2022,4020068-3223,"1,326.00",S & R LANDSCAPES.
Neighbourhoods and Climate Change,Technical Services CM0300,Supplies and Services,304358,Equipment and Materials,01/07/2022,4020068-3224,"1,049.80",S & R LANDSCAPES.
Neighbourhoods and Climate Change,Technical Services CM0300,Supplies and Services,304358,Equipment and Materials,01/07/2022,4020068-3233,858.00,S & R LANDSCAPES.
Neighbourhoods and Climate Change,Technical Services CM0300,Supplies and Services,304358,Equipment and Materials,01/07/2022,4020068-3234,"1,049.80",S & R LANDSCAPES.
Neighbourhoods and Climate Change,Technical Services CM0300,Supplies and Services,304358,Equipment and Materials,01/07/2022,4020068-3235,"1,326.00",S & R LANDSCAPES.
Neighbourhoods and Climate Change,Technical Services CM0300,Supplies and Services,304358,Equipment and Materials,01/07/2022,4020068-3236,933.75,S & R LANDSCAPES.
Regeneration Economy and Growth,Corporate Property and Land,Supplies and Services,304358,Equipment and Materials,01/07/2022,4019894-5306532,652.00,JA GILSON (AGRICULTURAL CONTRACTORS) LTD.
Children and Young Peoples Services,Head of Childrens Social Care,Supplies and Services,384956,Miscellaneous Expenses,01/07/2022,4019828-INV-0330,500.00,FAMILY RIGHTS GROUP.
Neighbourhoods and Climate Change,Technical Services CM0300,Supplies and Services,304357,Equipment and Materials,01/07/2022,4019840-DCC050622,"11,001.91",GAP GROUP LTD.
Neighbourhoods and Climate Change,Partnerships & Community Engagement Div.,Supplies and Services,384086,Miscellaneous Expenses,01/07/2022,4019807-VOUCHERKENL01-22,500.00,DYNAMIQUE ARTS CIC.
Neighbourhoods and Climate Change,Partnerships & Community Engagement Div.,Supplies and Services,384086,Miscellaneous Expenses,01/07/2022,4019793-VOUCHER22NB-DVLY004,"4,000.00",DERWENTSIDE COLLEGE.
Children and Young Peoples Services,Head of Education and Skills,Supplies and Services,384199,Miscellaneous Expenses,01/07/2022,221-INV-1581,"30,000.00",TRN (TRAIN ) LTD.
Regeneration Economy and Growth,Culture Sport and Tourism,Supplies and Services,384199,Miscellaneous Expenses,01/07/2022,4020165-UOTR4927421,"2,041.27",WESTERN UNION BUSINESS SOLUTIONS.
Regeneration Economy and Growth,Culture Sport and Tourism,Supplies and Services,384199,Miscellaneous Expenses,01/07/2022,4020165-UOTR4927422,"10,802.00",WESTERN UNION BUSINESS SOLUTIONS.
Regeneration Economy and Growth,Culture Sport and Tourism,Supplies and Services,384199,Miscellaneous Expenses,01/07/2022,4019871-2022-013,"1,800.00",HEALTHY CHATS CIC.
Regeneration Economy and Growth,Culture Sport and Tourism,Supplies and Services,384199,Miscellaneous Expenses,01/07/2022,4019923-038/22,500.00,KATHERINE STONEHOUSE MANAGEMENT.
Children and Young Peoples Services,Head of Education and Skills,Third Party Payments,440999,Other third party payments E440,01/07/2022,4019714-KICK5044718INVOICE000837,746.52,BISHOP HOGARTH CATHOLIC EDUCATION TRUST.
Children and Young Peoples Services,Head of Education and Skills,Third Party Payments,440999,Other third party payments E440,01/07/2022,4019806-KICK5044718INVOICE000838,"1,085.21",DURHAM SCHOOL.*
Children and Young Peoples Services,Head of Education and Skills,Third Party Payments,440999,Other third party payments E440,01/07/2022,4019806-KICK5044718INVOICE000839,"1,044.28",DURHAM SCHOOL.*
Children and Young Peoples Services,Head of Education and Skills,Third Party Payments,440999,Other third party payments E440,01/07/2022,4019806-KICK5044718INVOICE000842,746.52,DURHAM SCHOOL.*
Children and Young Peoples Services,Head of Education and Skills,Third Party Payments,440999,Other third party payments E440,01/07/2022,4019806-KICK5044718INVOICE000844,746.52,DURHAM SCHOOL.*
Children and Young Peoples Services,Head of Education and Skills,Third Party Payments,440999,Other third party payments E440,01/07/2022,4019806-KICK5044718INVOICE000848,746.52,DURHAM SCHOOL.*
Children and Young Peoples Services,Head of Education and Skills,Third Party Payments,440999,Other third party payments E440,01/07/2022,4019848-KICK5044718INVOICE000845,"1,085.21",GO THE DISTANCE (GTD) CIC.
Children and Young Peoples Services,Head of Education and Skills,Third Party Payments,440999,Other third party payments E440,01/07/2022,4019891-KICK5044718INVOICE000841,746.52,INVESTING IN CHILDREN CIC.
Children and Young Peoples Services,Head of Education and Skills,Third Party Payments,440999,Other third party payments E440,01/07/2022,4019904-KICK5044718INVOICE000846,"1,044.28",JAX FIRST AID.
Neighbourhoods and Climate Change,Environmental Services,Third Party Payments,430100,Rendered by Private Contractors,01/07/2022,4019662-3246,"6,677.91",A & J GUTHRIE.
Neighbourhoods and Climate Change,Technical Services CM0300,Third Party Payments,430100,Rendered by Private Contractors,01/07/2022,4020049-14231,522.36,QUANTUM POWER CONNECTIONS LTD.
Neighbourhoods and Climate Change,Technical Services CM0300,Third Party Payments,430100,Rendered by Private Contractors,01/07/2022,4020049-14232,522.36,QUANTUM POWER CONNECTIONS LTD.
Regeneration Economy and Growth,Corporate Property and Land,Third Party Payments,430100,Rendered by Private Contractors,01/07/2022,4019892-1534,"381,125.45",IVEGATE LTD.
Dedicated Schools Grant BG0015,DSG Early Years Block,Transfer Payments,510032,School Children,01/07/2022,4020166-31174,"1,066.65",WESTFIELD HOUSE NURSERY.
Dedicated Schools Grant BG0015,DSG Early Years Block,Transfer Payments,510032,School Children,01/07/2022,4020167-31175,742.55,WHEATLEY HILL COMMUNITY NURSERY LTD.
Dedicated Schools Grant BG0015,DSG Early Years Block,Transfer Payments,510032,School Children,01/07/2022,4020172-31176,"10,514.71",WINGATE COMMUNITY CHILDCARE LTD.
Dedicated Schools Grant BG0015,DSG Early Years Block,Transfer Payments,510032,School Children,01/07/2022,4020178-31179,"3,692.25",YORK HOUSE NURSERY.
Dedicated Schools Grant BG0015,DSG Early Years Block,Transfer Payments,510032,School Children,01/07/2022,4019666-31139,"2,535.34",ADVANCE LEARNING PARTNERSHIP.
Dedicated Schools Grant BG0015,DSG Early Years Block,Transfer Payments,510032,School Children,01/07/2022,4019670-31031,"3,377.72",ADVENTURE VALLEY DAY NURSERY LTD.
Dedicated Schools Grant BG0015,DSG Early Years Block,Transfer Payments,510032,School Children,01/07/2022,4019694-31042,"2,104.58",AYCLIFFE DAY NURSERY.
Dedicated Schools Grant BG0015,DSG Early Years Block,Transfer Payments,510032,School Children,01/07/2022,4019704-31044,"3,626.62",BISHOP AUCKLAND COLLEGE NURSERY.
Dedicated Schools Grant BG0015,DSG Early Years Block,Transfer Payments,510032,School Children,01/07/2022,4019713-31159,"2,399.96",BISHOP HOGARTH CATHOLIC EDUCATION TRUST.
Dedicated Schools Grant BG0015,DSG Early Years Block,Transfer Payments,510032,School Children,01/07/2022,4019721-31128,"3,437.89",BLUE SKY CHILDCARE.
Dedicated Schools Grant BG0015,DSG Early Years Block,Transfer Payments,510032,School Children,01/07/2022,4019726-31049,"25,483.59",BRIGHT STAR NURSERY.
Dedicated Schools Grant BG0015,DSG Early Years Block,Transfer Payments,510032,School Children,01/07/2022,4019727-31050,"3,117.90",BUDDIES CHILDCARE CENTRE.
Dedicated Schools Grant BG0015,DSG Early Years Block,Transfer Payments,510032,School Children,01/07/2022,4019729-31051,"7,913.72",BUSY BEARS (DURHAM) LTD.
Dedicated Schools Grant BG0015,DSG Early Years Block,Transfer Payments,510032,School Children,01/07/2022,4019730-31052,"4,177.71",BUSY BEES (DURHAM) LTD.
Dedicated Schools Grant BG0015,DSG Early Years Block,Transfer Payments,510032,School Children,01/07/2022,4019731-31053,799.99,BUTTERFLIES DAY CARE.
Dedicated Schools Grant BG0015,DSG Early Years Block,Transfer Payments,510032,School Children,01/07/2022,4019732-31054,"4,303.52",BYERLEY ROAD PRE SCHOOL.
Dedicated Schools Grant BG0015,DSG Early Years Block,Transfer Payments,510032,School Children,01/07/2022,4019740-31056,"7,556.81",CASTLE KINDERGARTEN LTD.
Dedicated Schools Grant BG0015,DSG Early Years Block,Transfer Payments,510032,School Children,01/07/2022,4019741-31057,"1,946.99",CASTLE KINDERGARTEN LTD.
Dedicated Schools Grant BG0015,DSG Early Years Block,Transfer Payments,510032,School Children,01/07/2022,4019742-31058,"2,297.30",CASTLE VIEW PRIVATE DAY NURSERY LTD.
Dedicated Schools Grant BG0015,DSG Early Years Block,Transfer Payments,510032,School Children,01/07/2022,4019758-31064,799.99,CLEVER CLOGS DAY NURSERIES LTD.
Dedicated Schools Grant BG0015,DSG Early Years Block,Transfer Payments,510032,School Children,01/07/2022,4019759-31065,"3,199.95",CLEVER CLOGS DAY NURSERY (DURHAM) LTD.
Dedicated Schools Grant BG0015,DSG Early Years Block,Transfer Payments,510032,School Children,01/07/2022,4019763-31154,"10,631.50",CO-OPERATIVE CHILDCARE SEAHAM T/A SEAHAM HOUSE DAY NURSERY.
Dedicated Schools Grant BG0015,DSG Early Years Block,Transfer Payments,510032,School Children,01/07/2022,4019768-31082,"3,179.44",CORE CARE EVENWOOD LTD T/A FLOWERPOTS NURSERY.
Dedicated Schools Grant BG0015,DSG Early Years Block,Transfer Payments,510032,School Children,01/07/2022,4019769-31098,"4,533.26",CORECARE NA LTD.
Dedicated Schools Grant BG0015,DSG Early Years Block,Transfer Payments,510032,School Children,01/07/2022,4019772-31066,"3,199.95",COUNDON & LEEHOLME EARLY YEARS CENTRE LTD.
Dedicated Schools Grant BG0015,DSG Early Years Block,Transfer Payments,510032,School Children,01/07/2022,4019775-31067,"3,003.03",CRAGHEAD CHILDCARE CENTRE.
Dedicated Schools Grant BG0015,DSG Early Years Block,Transfer Payments,510032,School Children,01/07/2022,4019784-31177,"27,857.28",DAYPARK LTD T/A YELLOW WELLIES.
Dedicated Schools Grant BG0015,DSG Early Years Block,Transfer Payments,510032,School Children,01/07/2022,4019785-31178,"4,194.69",DAYPARK LTD T/A YELLOW WELLIES.
Dedicated Schools Grant BG0015,DSG Early Years Block,Transfer Payments,510032,School Children,01/07/2022,4019790-31071,"2,424.58",DEERNESS VALLEY NURSERY SCHOOL.
Dedicated Schools Grant BG0015,DSG Early Years Block,Transfer Payments,510032,School Children,01/07/2022,4019797-31073,"1,558.13",DO RE MI DAY NURSERY.
Dedicated Schools Grant BG0015,DSG Early Years Block,Transfer Payments,510032,School Children,01/07/2022,4019809-31144,"1,333.31",EAST DURHAM COLLEGE.
Dedicated Schools Grant BG0015,DSG Early Years Block,Transfer Payments,510032,School Children,01/07/2022,4019812-31046,"5,777.69",EDEN ACADEMY TRUST LTD T/A BLUEBELL MEADOW PRIMARY SCHOOL.
Dedicated Schools Grant BG0015,DSG Early Years Block,Transfer Payments,510032,School Children,01/07/2022,4019813-31075,"1,169.21",EDEN GARDEN NURSERY.
Dedicated Schools Grant BG0015,DSG Early Years Block,Transfer Payments,510032,School Children,01/07/2022,4019823-31078,"6,379.39",EMERALDS LITTLE GEMS DAYCARE LTD.
Dedicated Schools Grant BG0015,DSG Early Years Block,Transfer Payments,510032,School Children,01/07/2022,4019823-31079,"11,964.26",EMERALDS LITTLE GEMS DAYCARE LTD.
Dedicated Schools Grant BG0015,DSG Early Years Block,Transfer Payments,510032,School Children,01/07/2022,4019827-31080,"2,133.30",EXPLORERS DAY CARE.
Dedicated Schools Grant BG0015,DSG Early Years Block,Transfer Payments,510032,School Children,01/07/2022,4019833-31081,"1,866.64",FIRST STEPS NURSERY.
Dedicated Schools Grant BG0015,DSG Early Years Block,Transfer Payments,510032,School Children,01/07/2022,4019844-31085,"5,599.91",GIANT STEPS LTD.
Dedicated Schools Grant BG0015,DSG Early Years Block,Transfer Payments,510032,School Children,01/07/2022,4019845-31083,"1,857.06",GIANT STEPS LTD.
Dedicated Schools Grant BG0015,DSG Early Years Block,Transfer Payments,510032,School Children,01/07/2022,4019846-31084,"4,266.60",GIANT STEPS LTD.
Dedicated Schools Grant BG0015,DSG Early Years Block,Transfer Payments,510032,School Children,01/07/2022,4019852-31086,"1,599.97",GREEN LANE NURSERY & CHILDCARE CENTRE.
Dedicated Schools Grant BG0015,DSG Early Years Block,Transfer Payments,510032,School Children,01/07/2022,4019859-31087,"1,919.97",HAPPY TIMES DAYCARE LTD.
Dedicated Schools Grant BG0015,DSG Early Years Block,Transfer Payments,510032,School Children,01/07/2022,4019861-31047,"5,333.25",HAPPYTIMES DAYCARE LTD.
Dedicated Schools Grant BG0015,DSG Early Years Block,Transfer Payments,510032,School Children,01/07/2022,4019868-31090,"1,333.31",HAYSTACKS NURSERY..
Dedicated Schools Grant BG0015,DSG Early Years Block,Transfer Payments,510032,School Children,01/07/2022,4019869-31091,"1,333.31",HAZEL DENE CHILDCARE LTD.
Dedicated Schools Grant BG0015,DSG Early Years Block,Transfer Payments,510032,School Children,01/07/2022,4019884-31097,"8,295.25",HOUSE OF EDEN LTD.
Dedicated Schools Grant BG0015,DSG Early Years Block,Transfer Payments,510032,School Children,01/07/2022,4019885-31100,"1,702.54",HOWLETCH & SHOTTON CHILDCARE LTD.
Dedicated Schools Grant BG0015,DSG Early Years Block,Transfer Payments,510032,School Children,01/07/2022,4019886-31099,"22,366.83",HOWLETCH & SHOTTON CHILDCARE LTD.
Dedicated Schools Grant BG0015,DSG Early Years Block,Transfer Payments,510032,School Children,01/07/2022,4019931-31109,"3,199.95",KIDZ VILLAGE LTD.
Dedicated Schools Grant BG0015,DSG Early Years Block,Transfer Payments,510032,School Children,01/07/2022,4019932-31110,"1,165.11",KIDZONE.
Dedicated Schools Grant BG0015,DSG Early Years Block,Transfer Payments,510032,School Children,01/07/2022,4019949-31115,"2,666.62",LEADGATE CHILD CENTRE LTD.
Dedicated Schools Grant BG0015,DSG Early Years Block,Transfer Payments,510032,School Children,01/07/2022,4019958-31119,"8,040.90",LITTLE ACORNS NORTH EAST LTD.
Dedicated Schools Grant BG0015,DSG Early Years Block,Transfer Payments,510032,School Children,01/07/2022,4019959-31120,"3,204.39",LITTLE CUBS DAY NURSERY.
Dedicated Schools Grant BG0015,DSG Early Years Block,Transfer Payments,510032,School Children,01/07/2022,4019960-31122,"6,239.90",LITTLE STARS EARLY YEARS.
Dedicated Schools Grant BG0015,DSG Early Years Block,Transfer Payments,510032,School Children,01/07/2022,4019961-31124,"6,178.36",LITTLE WAVES DAY NURSERY LTD.
Dedicated Schools Grant BG0015,DSG Early Years Block,Transfer Payments,510032,School Children,01/07/2022,4020013-31137,"1,362.03",NELLIE`S DAY NURSERY LTD.
Dedicated Schools Grant BG0015,DSG Early Years Block,Transfer Payments,510032,School Children,01/07/2022,4020014-31138,"3,999.94",NEW BEGINNINGS (MOORSIDE) CO LTD.
Dedicated Schools Grant BG0015,DSG Early Years Block,Transfer Payments,510032,School Children,01/07/2022,4020024-31142,"3,126.10",NORTHUMBRIAN TRUST DAY NURSERIES LTD.
Dedicated Schools Grant BG0015,DSG Early Years Block,Transfer Payments,510032,School Children,01/07/2022,4020025-31140,"2,933.29",NURSERYTIME LTD.
Dedicated Schools Grant BG0015,DSG Early Years Block,Transfer Payments,510032,School Children,01/07/2022,4020026-31141,"1,066.65",OLD BRIDGE NURSERY.
Dedicated Schools Grant BG0015,DSG Early Years Block,Transfer Payments,510032,School Children,01/07/2022,4020040-31143,"6,305.54",PLAYDAY NURSERY.
Dedicated Schools Grant BG0015,DSG Early Years Block,Transfer Payments,510032,School Children,01/07/2022,4020054-31148,"5,599.91",RAINBOW NURSERY LTD (MIDDLESTONE MOOR).
Dedicated Schools Grant BG0015,DSG Early Years Block,Transfer Payments,510032,School Children,01/07/2022,4020060-31150,"9,333.19",RIBBON DAYCARE.
Dedicated Schools Grant BG0015,DSG Early Years Block,Transfer Payments,510032,School Children,01/07/2022,4020072-31151,799.99,SAPLINGS NATURE KINDERGARTEN & FOREST SCHOOL.
Dedicated Schools Grant BG0015,DSG Early Years Block,Transfer Payments,510032,School Children,01/07/2022,4020084-31157,717.94,SHINING STARS PARKHILL LTD.
Dedicated Schools Grant BG0015,DSG Early Years Block,Transfer Payments,510032,School Children,01/07/2022,4020085-31158,533.32,SHOTLEY BRIDGE NURSERY SCHOOL LTD.
Dedicated Schools Grant BG0015,DSG Early Years Block,Transfer Payments,510032,School Children,01/07/2022,4020097-31160,"2,001.57",ST OSWALD`S PRE SCHOOL LEARNING CENTRE.
Dedicated Schools Grant BG0015,DSG Early Years Block,Transfer Payments,510032,School Children,01/07/2022,4020099-31113,"5,599.91",STANLEY LEARNING PARTNERSHIP.
Dedicated Schools Grant BG0015,DSG Early Years Block,Transfer Payments,510032,School Children,01/07/2022,4020100-31045,533.32,STANLEY LEARNING PARTNERSHIP.
Dedicated Schools Grant BG0015,DSG Early Years Block,Transfer Payments,510032,School Children,01/07/2022,4020106-31161,533.32,STEPPING STONES DAY NURSERY (DURHAM).
Dedicated Schools Grant BG0015,DSG Early Years Block,Transfer Payments,510032,School Children,01/07/2022,4020109-31163,"7,154.76",SUNSHINE DAY NURSERY LTD.
Dedicated Schools Grant BG0015,DSG Early Years Block,Transfer Payments,510032,School Children,01/07/2022,4020110-31162,"11,243.58",SUNSHINE DAY NURSERY LTD.
Dedicated Schools Grant BG0015,DSG Early Years Block,Transfer Payments,510032,School Children,01/07/2022,4020111-31164,"6,666.56",SUNSHINE DAY NURSERY LTD.
Dedicated Schools Grant BG0015,DSG Early Years Block,Transfer Payments,510032,School Children,01/07/2022,4020125-31166,"7,466.55",THE LAURELS CHILD CARE COMPANY LTD.
Dedicated Schools Grant BG0015,DSG Early Years Block,Transfer Payments,510032,School Children,01/07/2022,4020126-31167,"3,766.09",THE NURSERY.
Dedicated Schools Grant BG0015,DSG Early Years Block,Transfer Payments,510032,School Children,01/07/2022,4020130-31168,"4,311.45",TILLY MINTS CHERUBS DAY NURSERY LTD.
Dedicated Schools Grant BG0015,DSG Early Years Block,Transfer Payments,510032,School Children,01/07/2022,4020131-31101,"7,146.55",TM NURSERY ENTERPRISES LTD T/A JACK IN THE BOX DAYCARE.
Dedicated Schools Grant BG0015,DSG Early Years Block,Transfer Payments,510032,School Children,01/07/2022,4020135-31169,"4,783.51",TOTS `R` US.
Dedicated Schools Grant BG0015,DSG Early Years Block,Transfer Payments,510032,School Children,01/07/2022,4020139-31170,"1,066.65",TRIMDON`S LITTLE TYKES LTD.
Dedicated Schools Grant BG0015,DSG Early Years Block,Transfer Payments,510032,School Children,01/07/2022,4020148-31074,"1,599.97",UNIVERSITY OF DURHAM DAY NURSERY.
Dedicated Schools Grant BG0015,DSG Early Years Block,Transfer Payments,510032,School Children,01/07/2022,4020150-31171,"1,304.59",USHAW MOOR DAYCARE.
Dedicated Schools Grant BG0015,DSG Early Years Block,Transfer Payments,510032,School Children,01/07/2022,4020162-31060,"4,676.85",WAYMAN DEVELOPMENTS LTD T/A CHILDSPLAY PRIVATE NURSERY.
Dedicated Schools Grant BG0015,DSG Early Years Block,Transfer Payments,510032,School Children,01/07/2022,4020163-31061,"5,333.25",WAYMAN DEVELOPMENTS LTD T/A CHILDSPLAY PRIVATE NURSERY.
Dedicated Schools Grant BG0015,DSG Early Years Block,Transfer Payments,510032,School Children,01/07/2022,4019676-31033,533.32,REDACTED - PAYMENT TO INDIVIDUAL
Dedicated Schools Grant BG0015,DSG Early Years Block,Transfer Payments,510032,School Children,01/07/2022,4019678-31034,533.32,REDACTED - PAYMENT TO INDIVIDUAL
Dedicated Schools Grant BG0015,DSG Early Years Block,Transfer Payments,510032,School Children,01/07/2022,4019702-31043,742.55,REDACTED - PAYMENT TO INDIVIDUAL
Dedicated Schools Grant BG0015,DSG Early Years Block,Transfer Payments,510032,School Children,01/07/2022,4019756-31063,533.32,REDACTED - PAYMENT TO INDIVIDUAL
Dedicated Schools Grant BG0015,DSG Early Years Block,Transfer Payments,510032,School Children,01/07/2022,4019820-31077,"1,333.31",REDACTED - PAYMENT TO INDIVIDUAL
Dedicated Schools Grant BG0015,DSG Early Years Block,Transfer Payments,510032,School Children,01/07/2022,4019926-31107,799.99,REDACTED - PAYMENT TO INDIVIDUAL
Dedicated Schools Grant BG0015,DSG Early Years Block,Transfer Payments,510032,School Children,01/07/2022,4019969-31127,533.32,REDACTED - PAYMENT TO INDIVIDUAL
Dedicated Schools Grant BG0015,DSG Early Years Block,Transfer Payments,510032,School Children,01/07/2022,4019976-31129,533.32,REDACTED - PAYMENT TO INDIVIDUAL
Dedicated Schools Grant BG0015,DSG Early Years Block,Transfer Payments,510032,School Children,01/07/2022,4019979-31130,824.60,REDACTED - PAYMENT TO INDIVIDUAL
Dedicated Schools Grant BG0015,DSG Early Years Block,Transfer Payments,510032,School Children,01/07/2022,4019981-31133,533.32,REDACTED - PAYMENT TO INDIVIDUAL
Dedicated Schools Grant BG0015,DSG Early Years Block,Transfer Payments,510032,School Children,01/07/2022,4019995-31048,672.81,REDACTED - PAYMENT TO INDIVIDUAL
Dedicated Schools Grant BG0015,DSG Early Years Block,Transfer Payments,510032,School Children,01/07/2022,4020009-31165,"1,333.31",REDACTED - PAYMENT TO INDIVIDUAL
Dedicated Schools Grant BG0015,DSG Early Years Block,Transfer Payments,510032,School Children,01/07/2022,4020050-31145,"1,066.65",REDACTED - PAYMENT TO INDIVIDUAL
Dedicated Schools Grant BG0015,DSG Early Years Block,Transfer Payments,510032,School Children,01/07/2022,4020082-31156,"1,066.65",REDACTED - PAYMENT TO INDIVIDUAL
Dedicated Schools Grant BG0015,DSG Early Years Block,Transfer Payments,510032,School Children,01/07/2022,4020164-31173,533.32,REDACTED - PAYMENT TO INDIVIDUAL
Dedicated Schools Grant BG0015,DSG Early Years Block,Transfer Payments,510032,School Children,01/07/2022,4019684-31038,533.32,REDACTED - PAYMENT TO INDIVIDUAL
Dedicated Schools Grant BG0015,DSG Early Years Block,Transfer Payments,510032,School Children,01/07/2022,4019686-31040,799.99,REDACTED - PAYMENT TO INDIVIDUAL
Dedicated Schools Grant BG0015,DSG Early Years Block,Transfer Payments,510032,School Children,01/07/2022,4019738-31055,"1,066.65",REDACTED - PAYMENT TO INDIVIDUAL
Dedicated Schools Grant BG0015,DSG Early Years Block,Transfer Payments,510032,School Children,01/07/2022,4019819-31076,"1,066.65",REDACTED - PAYMENT TO INDIVIDUAL
Dedicated Schools Grant BG0015,DSG Early Years Block,Transfer Payments,510032,School Children,01/07/2022,4019865-31089,533.32,REDACTED - PAYMENT TO INDIVIDUAL
Dedicated Schools Grant BG0015,DSG Early Years Block,Transfer Payments,510032,School Children,01/07/2022,4019872-31092,"1,599.97",REDACTED - PAYMENT TO INDIVIDUAL
Dedicated Schools Grant BG0015,DSG Early Years Block,Transfer Payments,510032,School Children,01/07/2022,4019875-31094,"2,855.34",REDACTED - PAYMENT TO INDIVIDUAL
Dedicated Schools Grant BG0015,DSG Early Years Block,Transfer Payments,510032,School Children,01/07/2022,4019910-31069,"1,706.64",REDACTED - PAYMENT TO INDIVIDUAL
Dedicated Schools Grant BG0015,DSG Early Years Block,Transfer Payments,510032,School Children,01/07/2022,4019911-31103,799.99,REDACTED - PAYMENT TO INDIVIDUAL
Dedicated Schools Grant BG0015,DSG Early Years Block,Transfer Payments,510032,School Children,01/07/2022,4019925-31106,533.32,REDACTED - PAYMENT TO INDIVIDUAL
Dedicated Schools Grant BG0015,DSG Early Years Block,Transfer Payments,510032,School Children,01/07/2022,4019937-31121,"1,066.65",REDACTED - PAYMENT TO INDIVIDUAL
Dedicated Schools Grant BG0015,DSG Early Years Block,Transfer Payments,510032,School Children,01/07/2022,4019946-31114,"1,333.31",REDACTED - PAYMENT TO INDIVIDUAL
Dedicated Schools Grant BG0015,DSG Early Years Block,Transfer Payments,510032,School Children,01/07/2022,4019989-31123,"2,133.30",REDACTED - PAYMENT TO INDIVIDUAL
Dedicated Schools Grant BG0015,DSG Early Years Block,Transfer Payments,510032,School Children,01/07/2022,4020012-31136,"2,133.30",REDACTED - PAYMENT TO INDIVIDUAL
Dedicated Schools Grant BG0015,DSG Early Years Block,Transfer Payments,510032,School Children,01/07/2022,4020051-31146,533.32,REDACTED - PAYMENT TO INDIVIDUAL
Dedicated Schools Grant BG0015,DSG Early Years Block,Transfer Payments,510032,School Children,01/07/2022,4020052-31147,533.32,REDACTED - PAYMENT TO INDIVIDUAL
Dedicated Schools Grant BG0015,DSG Early Years Block,Transfer Payments,510032,School Children,01/07/2022,4020081-31155,"1,066.65",REDACTED - PAYMENT TO INDIVIDUAL
Dedicated Schools Grant BG0015,DSG Early Years Block,Transfer Payments,510030,School Children,01/07/2022,4020166-31467,"19,051.01",WESTFIELD HOUSE NURSERY.
Dedicated Schools Grant BG0015,DSG Early Years Block,Transfer Payments,510030,School Children,01/07/2022,4020167-31468,"4,916.81",WHEATLEY HILL COMMUNITY NURSERY LTD.
Dedicated Schools Grant BG0015,DSG Early Years Block,Transfer Payments,510030,School Children,01/07/2022,4020173-31470,"8,737.41",WITTON GILBERT PRE SCHOOL.
Dedicated Schools Grant BG0015,DSG Early Years Block,Transfer Payments,510030,School Children,01/07/2022,4020178-31473,"15,457.92",YORK HOUSE NURSERY.
Dedicated Schools Grant BG0015,DSG Early Years Block,Transfer Payments,510030,School Children,01/07/2022,4019660-31294,"5,205.63",1EXCELLENCE MULTI ACADEMY TRUST.
Dedicated Schools Grant BG0015,DSG Early Years Block,Transfer Payments,510030,School Children,01/07/2022,4019661-31435,"8,415.20",1EXCELLENCE MULTI ACADEMY TRUST.
Dedicated Schools Grant BG0015,DSG Early Years Block,Transfer Payments,510030,School Children,01/07/2022,4019666-31390,"7,146.26",ADVANCE LEARNING PARTNERSHIP.
Dedicated Schools Grant BG0015,DSG Early Years Block,Transfer Payments,510030,School Children,01/07/2022,4019667-31247,"11,153.68",ADVANCE LEARNING PARTNERSHIP.
Dedicated Schools Grant BG0015,DSG Early Years Block,Transfer Payments,510030,School Children,01/07/2022,4019668-31319,"11,426.80",ADVANCE LEARNING PARTNERSHIP.
Dedicated Schools Grant BG0015,DSG Early Years Block,Transfer Payments,510030,School Children,01/07/2022,4019669-31386,"8,011.57",ADVANCE LEARNING PARTNERSHIP.
Dedicated Schools Grant BG0015,DSG Early Years Block,Transfer Payments,510030,School Children,01/07/2022,4019670-31227,"33,489.54",ADVENTURE VALLEY DAY NURSERY LTD.
Dedicated Schools Grant BG0015,DSG Early Years Block,Transfer Payments,510030,School Children,01/07/2022,4019690-31231,754.65,AROUND THE CLOCK CHILD-MINDER.
Dedicated Schools Grant BG0015,DSG Early Years Block,Transfer Payments,510030,School Children,01/07/2022,4019694-31238,"12,326.12",AYCLIFFE DAY NURSERY.
Dedicated Schools Grant BG0015,DSG Early Years Block,Transfer Payments,510030,School Children,01/07/2022,4019704-31240,"12,614.71",BISHOP AUCKLAND COLLEGE NURSERY.
Dedicated Schools Grant BG0015,DSG Early Years Block,Transfer Payments,510030,School Children,01/07/2022,4019706-31393,"12,748.12",BISHOP CHADWICK CATHOLIC EDUCATION TRUST (NSCET).
Dedicated Schools Grant BG0015,DSG Early Years Block,Transfer Payments,510030,School Children,01/07/2022,4019707-31242,"5,412.71",BISHOP CHADWICK CATHOLIC EDUCATION TRUST (NSCET).
Dedicated Schools Grant BG0015,DSG Early Years Block,Transfer Payments,510030,School Children,01/07/2022,4019708-31431,"4,685.89",BISHOP HOGARTH CATHOLIC EDUCATION TRUST T/A ST JOSEPHS PRIMARY SCHOOL.
Dedicated Schools Grant BG0015,DSG Early Years Block,Transfer Payments,510030,School Children,01/07/2022,4019709-31440,"7,981.58",BISHOP HOGARTH CATHOLIC EDUCATION TRUST.
Dedicated Schools Grant BG0015,DSG Early Years Block,Transfer Payments,510030,School Children,01/07/2022,4019710-31439,"8,398.40",BISHOP HOGARTH CATHOLIC EDUCATION TRUST.
Dedicated Schools Grant BG0015,DSG Early Years Block,Transfer Payments,510030,School Children,01/07/2022,4019711-31428,"1,800.50",BISHOP HOGARTH CATHOLIC EDUCATION TRUST.
Dedicated Schools Grant BG0015,DSG Early Years Block,Transfer Payments,510030,School Children,01/07/2022,4019712-31429,"5,307.70",BISHOP HOGARTH CATHOLIC EDUCATION TRUST.
Dedicated Schools Grant BG0015,DSG Early Years Block,Transfer Payments,510030,School Children,01/07/2022,4019713-31432,"5,758.84",BISHOP HOGARTH CATHOLIC EDUCATION TRUST.
Dedicated Schools Grant BG0015,DSG Early Years Block,Transfer Payments,510030,School Children,01/07/2022,4019714-31434,"7,793.71",BISHOP HOGARTH CATHOLIC EDUCATION TRUST.
Dedicated Schools Grant BG0015,DSG Early Years Block,Transfer Payments,510030,School Children,01/07/2022,4019715-31430,"6,237.83",BISHOP HOGARTH CATHOLIC EDUCATION TRUST.
Dedicated Schools Grant BG0015,DSG Early Years Block,Transfer Payments,510030,School Children,01/07/2022,4019716-31243,"6,642.67",BISHOP HOGARTH CATHOLIC EDUCATION TRUST.
Dedicated Schools Grant BG0015,DSG Early Years Block,Transfer Payments,510030,School Children,01/07/2022,4019718-31427,"11,868.98",BISHOP WILKINSON CE TRUST.
Dedicated Schools Grant BG0015,DSG Early Years Block,Transfer Payments,510030,School Children,01/07/2022,4019719-31438,"12,864.64",BISHOP WILKINSON CE TRUST.
Dedicated Schools Grant BG0015,DSG Early Years Block,Transfer Payments,510030,School Children,01/07/2022,4019720-31433,"9,416.45",BISHOP WILKINSON CE TRUST.
Dedicated Schools Grant BG0015,DSG Early Years Block,Transfer Payments,510030,School Children,01/07/2022,4019721-31376,"16,577.28",BLUE SKY CHILDCARE.
Dedicated Schools Grant BG0015,DSG Early Years Block,Transfer Payments,510030,School Children,01/07/2022,4019723-31286,"21,993.93",BOW SCHOOL & NURSERY.
Dedicated Schools Grant BG0015,DSG Early Years Block,Transfer Payments,510030,School Children,01/07/2022,4019724-31246,"3,120.33",BOWES PRE SCHOOL.
Dedicated Schools Grant BG0015,DSG Early Years Block,Transfer Payments,510030,School Children,01/07/2022,4019726-31249,"115,615.07",BRIGHT STAR NURSERY.
Dedicated Schools Grant BG0015,DSG Early Years Block,Transfer Payments,510030,School Children,01/07/2022,4019727-31250,"4,689.61",BUDDIES CHILDCARE CENTRE.
Dedicated Schools Grant BG0015,DSG Early Years Block,Transfer Payments,510030,School Children,01/07/2022,4019729-31252,"35,172.15",BUSY BEARS (DURHAM) LTD.
Dedicated Schools Grant BG0015,DSG Early Years Block,Transfer Payments,510030,School Children,01/07/2022,4019730-31253,"51,610.13",BUSY BEES (DURHAM) LTD.
Dedicated Schools Grant BG0015,DSG Early Years Block,Transfer Payments,510030,School Children,01/07/2022,4019731-31254,"3,764.47",BUTTERFLIES DAY CARE.
Dedicated Schools Grant BG0015,DSG Early Years Block,Transfer Payments,510030,School Children,01/07/2022,4019732-31255,"4,179.82",BYERLEY ROAD PRE SCHOOL.
Dedicated Schools Grant BG0015,DSG Early Years Block,Transfer Payments,510030,School Children,01/07/2022,4019740-31258,"11,884.67",CASTLE KINDERGARTEN LTD.
Dedicated Schools Grant BG0015,DSG Early Years Block,Transfer Payments,510030,School Children,01/07/2022,4019741-31259,"8,514.67",CASTLE KINDERGARTEN LTD.
Dedicated Schools Grant BG0015,DSG Early Years Block,Transfer Payments,510030,School Children,01/07/2022,4019742-31260,"50,150.83",CASTLE VIEW PRIVATE DAY NURSERY LTD.
Dedicated Schools Grant BG0015,DSG Early Years Block,Transfer Payments,510030,School Children,01/07/2022,4019758-31269,"15,315.14",CLEVER CLOGS DAY NURSERIES LTD.
Dedicated Schools Grant BG0015,DSG Early Years Block,Transfer Payments,510030,School Children,01/07/2022,4019759-31270,"22,995.42",CLEVER CLOGS DAY NURSERY (DURHAM) LTD.
Dedicated Schools Grant BG0015,DSG Early Years Block,Transfer Payments,510030,School Children,01/07/2022,4019760-31271,"14,695.20",CLEVES CROSS ACADEMY.
Dedicated Schools Grant BG0015,DSG Early Years Block,Transfer Payments,510030,School Children,01/07/2022,4019765-31272,"3,941.18",CONKERS LIFE LTD (NURSERY SCHOOL).
Dedicated Schools Grant BG0015,DSG Early Years Block,Transfer Payments,510030,School Children,01/07/2022,4019763-31416,"60,770.55",CO-OPERATIVE CHILDCARE SEAHAM T/A SEAHAM HOUSE DAY NURSERY.
Dedicated Schools Grant BG0015,DSG Early Years Block,Transfer Payments,510030,School Children,01/07/2022,4019768-31297,"3,531.16",CORE CARE EVENWOOD LTD T/A FLOWERPOTS NURSERY.
Dedicated Schools Grant BG0015,DSG Early Years Block,Transfer Payments,510030,School Children,01/07/2022,4019769-31318,"11,754.60",CORECARE NA LTD.
Dedicated Schools Grant BG0015,DSG Early Years Block,Transfer Payments,510030,School Children,01/07/2022,4019772-31273,"7,706.90",COUNDON & LEEHOLME EARLY YEARS CENTRE LTD.
Dedicated Schools Grant BG0015,DSG Early Years Block,Transfer Payments,510030,School Children,01/07/2022,4019775-31274,"12,240.22",CRAGHEAD CHILDCARE CENTRE.
Dedicated Schools Grant BG0015,DSG Early Years Block,Transfer Payments,510030,School Children,01/07/2022,4019784-31471,"27,235.75",DAYPARK LTD T/A YELLOW WELLIES.
Dedicated Schools Grant BG0015,DSG Early Years Block,Transfer Payments,510030,School Children,01/07/2022,4019785-31472,"13,714.76",DAYPARK LTD T/A YELLOW WELLIES.
Dedicated Schools Grant BG0015,DSG Early Years Block,Transfer Payments,510030,School Children,01/07/2022,4019790-31280,"10,534.09",DEERNESS VALLEY NURSERY SCHOOL.
Dedicated Schools Grant BG0015,DSG Early Years Block,Transfer Payments,510030,School Children,01/07/2022,4019797-31284,"25,934.09",DO RE MI DAY NURSERY.
Dedicated Schools Grant BG0015,DSG Early Years Block,Transfer Payments,510030,School Children,01/07/2022,4019801-31322,"3,922.10",DURHAM & NEWCASTLE DIOCESAN LEARNING TRUST T/A INGLETON CE PRIMARY SCHOOL
Dedicated Schools Grant BG0015,DSG Early Years Block,Transfer Payments,510030,School Children,01/07/2022,4019802-31441,"9,049.20",DURHAM & NEWCASTLE DIOCESAN LEARNING TRUST T/A STANHOPE BARRINGTON C OF E PRIMARY SCHOOL.
Dedicated Schools Grant BG0015,DSG Early Years Block,Transfer Payments,510030,School Children,01/07/2022,4019809-31402,"8,601.52",EAST DURHAM COLLEGE.
Dedicated Schools Grant BG0015,DSG Early Years Block,Transfer Payments,510030,School Children,01/07/2022,4019812-31245,"8,455.50",EDEN ACADEMY TRUST LTD T/A BLUEBELL MEADOW PRIMARY SCHOOL.
Dedicated Schools Grant BG0015,DSG Early Years Block,Transfer Payments,510030,School Children,01/07/2022,4019813-31288,"10,660.85",EDEN GARDEN NURSERY.
Dedicated Schools Grant BG0015,DSG Early Years Block,Transfer Payments,510030,School Children,01/07/2022,4019814-31265,"20,401.87",EDEN LEARNING TRUST T/A CHILTON ACADEMY.
Dedicated Schools Grant BG0015,DSG Early Years Block,Transfer Payments,510030,School Children,01/07/2022,4019823-31291,"8,758.68",EMERALDS LITTLE GEMS DAYCARE LTD.
Dedicated Schools Grant BG0015,DSG Early Years Block,Transfer Payments,510030,School Children,01/07/2022,4019823-31292,"33,234.72",EMERALDS LITTLE GEMS DAYCARE LTD.
Dedicated Schools Grant BG0015,DSG Early Years Block,Transfer Payments,510030,School Children,01/07/2022,4019827-31295,"30,956.57",EXPLORERS DAY CARE.
Dedicated Schools Grant BG0015,DSG Early Years Block,Transfer Payments,510030,School Children,01/07/2022,4019833-31296,"10,636.08",FIRST STEPS NURSERY.
Dedicated Schools Grant BG0015,DSG Early Years Block,Transfer Payments,510030,School Children,01/07/2022,4019844-31301,"3,972.15",GIANT STEPS LTD.
Dedicated Schools Grant BG0015,DSG Early Years Block,Transfer Payments,510030,School Children,01/07/2022,4019845-31299,"7,314.53",GIANT STEPS LTD.
Dedicated Schools Grant BG0015,DSG Early Years Block,Transfer Payments,510030,School Children,01/07/2022,4019846-31300,"19,680.87",GIANT STEPS LTD.
Dedicated Schools Grant BG0015,DSG Early Years Block,Transfer Payments,510030,School Children,01/07/2022,4019852-31302,"13,632.98",GREEN LANE NURSERY & CHILDCARE CENTRE.
Dedicated Schools Grant BG0015,DSG Early Years Block,Transfer Payments,510030,School Children,01/07/2022,4019860-31303,"2,359.50",HAPPY TIMES DAYCARE LTD.
Dedicated Schools Grant BG0015,DSG Early Years Block,Transfer Payments,510030,School Children,01/07/2022,4019861-31248,"4,144.92",HAPPYTIMES DAYCARE LTD.
Dedicated Schools Grant BG0015,DSG Early Years Block,Transfer Payments,510030,School Children,01/07/2022,4019863-31304,"14,174.32",HARTSIDE PRIMARY ACADEMY.
Dedicated Schools Grant BG0015,DSG Early Years Block,Transfer Payments,510030,School Children,01/07/2022,4019868-31308,"25,604.83",HAYSTACKS NURSERY..
Dedicated Schools Grant BG0015,DSG Early Years Block,Transfer Payments,510030,School Children,01/07/2022,4019869-31309,850.20,HAZEL DENE CHILDCARE LTD.
Dedicated Schools Grant BG0015,DSG Early Years Block,Transfer Payments,510030,School Children,01/07/2022,4019879-31316,"11,146.90",HIPPITOTS LTD.
Dedicated Schools Grant BG0015,DSG Early Years Block,Transfer Payments,510030,School Children,01/07/2022,4019884-31317,"24,622.55",HOUSE OF EDEN LTD.
Dedicated Schools Grant BG0015,DSG Early Years Block,Transfer Payments,510030,School Children,01/07/2022,4019885-31321,"6,067.92",HOWLETCH & SHOTTON CHILDCARE LTD.
Dedicated Schools Grant BG0015,DSG Early Years Block,Transfer Payments,510030,School Children,01/07/2022,4019886-31320,"15,440.52",HOWLETCH & SHOTTON CHILDCARE LTD.
Dedicated Schools Grant BG0015,DSG Early Years Block,Transfer Payments,510030,School Children,01/07/2022,4019908-31394,"7,626.73",JIGSAW LEARNING TRUST.
Dedicated Schools Grant BG0015,DSG Early Years Block,Transfer Payments,510030,School Children,01/07/2022,4019927-31342,"4,919.85",KELLOE PHOENIX CENTRE (CHILDCARE).
Dedicated Schools Grant BG0015,DSG Early Years Block,Transfer Payments,510030,School Children,01/07/2022,4019930-31344,"19,081.61",KIDS 1ST NURSERIES DURHAM.
Dedicated Schools Grant BG0015,DSG Early Years Block,Transfer Payments,510030,School Children,01/07/2022,4019931-31345,"7,407.66",KIDZ VILLAGE LTD.
Dedicated Schools Grant BG0015,DSG Early Years Block,Transfer Payments,510030,School Children,01/07/2022,4019932-31346,"9,139.65",KIDZONE.
Dedicated Schools Grant BG0015,DSG Early Years Block,Transfer Payments,510030,School Children,01/07/2022,4019933-31347,"4,980.43",KIRK MERRINGTON PRE SCHOOL.
Dedicated Schools Grant BG0015,DSG Early Years Block,Transfer Payments,510030,School Children,01/07/2022,4019934-31348,"13,561.83",KIRKLANDS DAY NURSERY.
Dedicated Schools Grant BG0015,DSG Early Years Block,Transfer Payments,510030,School Children,01/07/2022,4019949-31359,"12,071.96",LEADGATE CHILD CENTRE LTD.
Dedicated Schools Grant BG0015,DSG Early Years Block,Transfer Payments,510030,School Children,01/07/2022,4019958-31363,"16,131.05",LITTLE ACORNS NORTH EAST LTD.
Dedicated Schools Grant BG0015,DSG Early Years Block,Transfer Payments,510030,School Children,01/07/2022,4019959-31364,"15,470.21",LITTLE CUBS DAY NURSERY.
Dedicated Schools Grant BG0015,DSG Early Years Block,Transfer Payments,510030,School Children,01/07/2022,4019960-31366,"3,371.17",LITTLE STARS EARLY YEARS.
Dedicated Schools Grant BG0015,DSG Early Years Block,Transfer Payments,510030,School Children,01/07/2022,4019961-31369,"16,444.43",LITTLE WAVES DAY NURSERY LTD.
Dedicated Schools Grant BG0015,DSG Early Years Block,Transfer Payments,510030,School Children,01/07/2022,4020013-31388,"6,095.70",NELLIE`S DAY NURSERY LTD.
Dedicated Schools Grant BG0015,DSG Early Years Block,Transfer Payments,510030,School Children,01/07/2022,4020014-31389,"10,761.79",NEW BEGINNINGS (MOORSIDE) CO LTD.
Dedicated Schools Grant BG0015,DSG Early Years Block,Transfer Payments,510030,School Children,01/07/2022,4020024-31399,"12,837.23",NORTHUMBRIAN TRUST DAY NURSERIES LTD.
Dedicated Schools Grant BG0015,DSG Early Years Block,Transfer Payments,510030,School Children,01/07/2022,4020025-31391,"19,854.90",NURSERYTIME LTD.
Dedicated Schools Grant BG0015,DSG Early Years Block,Transfer Payments,510030,School Children,01/07/2022,4020026-31392,"2,731.46",OLD BRIDGE NURSERY.
Dedicated Schools Grant BG0015,DSG Early Years Block,Transfer Payments,510030,School Children,01/07/2022,4020040-31400,"15,771.60",PLAYDAY NURSERY.
Dedicated Schools Grant BG0015,DSG Early Years Block,Transfer Payments,510030,School Children,01/07/2022,4020041-31401,"6,556.34",PLAYOLOGY LTD.
Dedicated Schools Grant BG0015,DSG Early Years Block,Transfer Payments,510030,School Children,01/07/2022,4020053-31406,"5,068.56",RAINBOW NURSERY DURHAM HIGH SCHOOL.
Dedicated Schools Grant BG0015,DSG Early Years Block,Transfer Payments,510030,School Children,01/07/2022,4020054-31407,"19,095.28",RAINBOW NURSERY LTD (MIDDLESTONE MOOR).
Dedicated Schools Grant BG0015,DSG Early Years Block,Transfer Payments,510030,School Children,01/07/2022,4020059-31409,"20,864.02",RIBBON ACADEMY TRUST.
Dedicated Schools Grant BG0015,DSG Early Years Block,Transfer Payments,510030,School Children,01/07/2022,4020060-31410,"21,901.83",RIBBON DAYCARE.
Dedicated Schools Grant BG0015,DSG Early Years Block,Transfer Payments,510030,School Children,01/07/2022,4020070-31411,"7,399.91",SACRISTON ACADEMY - EARLY YEARS T/A PRIVATE NURSERY.
Dedicated Schools Grant BG0015,DSG Early Years Block,Transfer Payments,510030,School Children,01/07/2022,4020072-31412,"5,708.32",SAPLINGS NATURE KINDERGARTEN & FOREST SCHOOL.
Dedicated Schools Grant BG0015,DSG Early Years Block,Transfer Payments,510030,School Children,01/07/2022,4020079-31417,"3,794.70",SEASIDE LANE NURSERY.
Dedicated Schools Grant BG0015,DSG Early Years Block,Transfer Payments,510030,School Children,01/07/2022,4020080-31418,"2,423.98",SEDGEFIELD OUT OF SCHOOL FUN CLUB.
Dedicated Schools Grant BG0015,DSG Early Years Block,Transfer Payments,510030,School Children,01/07/2022,4020083-31421,"35,084.14",SHIELD ROW ACADEMY.
Dedicated Schools Grant BG0015,DSG Early Years Block,Transfer Payments,510030,School Children,01/07/2022,4020084-31422,"2,991.05",SHINING STARS PARKHILL LTD.
Dedicated Schools Grant BG0015,DSG Early Years Block,Transfer Payments,510030,School Children,01/07/2022,4020085-31423,"18,502.83",SHOTLEY BRIDGE NURSERY SCHOOL LTD.
Dedicated Schools Grant BG0015,DSG Early Years Block,Transfer Payments,510030,School Children,01/07/2022,4020097-31436,"21,066.57",ST OSWALD`S PRE SCHOOL LEARNING CENTRE.
Dedicated Schools Grant BG0015,DSG Early Years Block,Transfer Payments,510030,School Children,01/07/2022,4020098-31437,"9,995.79",ST OSWALD`S SUNSHINE CLUB.
Dedicated Schools Grant BG0015,DSG Early Years Block,Transfer Payments,510030,School Children,01/07/2022,4020099-31351,"12,410.72",STANLEY LEARNING PARTNERSHIP.
Dedicated Schools Grant BG0015,DSG Early Years Block,Transfer Payments,510030,School Children,01/07/2022,4020100-31244,"5,446.17",STANLEY LEARNING PARTNERSHIP.
Dedicated Schools Grant BG0015,DSG Early Years Block,Transfer Payments,510030,School Children,01/07/2022,4020101-31426,"7,445.59",STANLEY LEARNING PARTNERSHIP.
Dedicated Schools Grant BG0015,DSG Early Years Block,Transfer Payments,510030,School Children,01/07/2022,4020102-31251,"4,786.36",STANLEY LEARNING PARTNERSHIP.
Dedicated Schools Grant BG0015,DSG Early Years Block,Transfer Payments,510030,School Children,01/07/2022,4020105-31442,"38,443.44",STEPHENSON WAY ACADEMY & NURSERY SCHOOL.
Dedicated Schools Grant BG0015,DSG Early Years Block,Transfer Payments,510030,School Children,01/07/2022,4020106-31443,"2,770.95",STEPPING STONES DAY NURSERY (DURHAM).
Dedicated Schools Grant BG0015,DSG Early Years Block,Transfer Payments,510030,School Children,01/07/2022,4020109-31445,"15,501.99",SUNSHINE DAY NURSERY LTD.
Dedicated Schools Grant BG0015,DSG Early Years Block,Transfer Payments,510030,School Children,01/07/2022,4020110-31444,"23,282.97",SUNSHINE DAY NURSERY LTD.
Dedicated Schools Grant BG0015,DSG Early Years Block,Transfer Payments,510030,School Children,01/07/2022,4020111-31446,"10,819.60",SUNSHINE DAY NURSERY LTD.
Dedicated Schools Grant BG0015,DSG Early Years Block,Transfer Payments,510030,School Children,01/07/2022,4020125-31452,"9,980.83",THE LAURELS CHILD CARE COMPANY LTD.
Dedicated Schools Grant BG0015,DSG Early Years Block,Transfer Payments,510030,School Children,01/07/2022,4020126-31453,"11,837.61",THE NURSERY.
Dedicated Schools Grant BG0015,DSG Early Years Block,Transfer Payments,510030,School Children,01/07/2022,4020130-31455,"22,236.91",TILLY MINTS CHERUBS DAY NURSERY LTD.
Dedicated Schools Grant BG0015,DSG Early Years Block,Transfer Payments,510030,School Children,01/07/2022,4020131-31323,"15,966.12",TM NURSERY ENTERPRISES LTD T/A JACK IN THE BOX DAYCARE.
Dedicated Schools Grant BG0015,DSG Early Years Block,Transfer Payments,510030,School Children,01/07/2022,4020135-31456,"1,933.11",TOTS `R` US.
Dedicated Schools Grant BG0015,DSG Early Years Block,Transfer Payments,510030,School Children,01/07/2022,4020139-31459,663.97,TRIMDON`S LITTLE TYKES LTD.
Dedicated Schools Grant BG0015,DSG Early Years Block,Transfer Payments,510030,School Children,01/07/2022,4020143-31425,"12,555.62",TUDHOE LEARNING TRUST T/A SOUTH HETTON PRIMARY SCHOOL.
Dedicated Schools Grant BG0015,DSG Early Years Block,Transfer Payments,510030,School Children,01/07/2022,4020148-31287,"9,083.28",UNIVERSITY OF DURHAM DAY NURSERY.
Dedicated Schools Grant BG0015,DSG Early Years Block,Transfer Payments,510030,School Children,01/07/2022,4020150-31460,"7,174.05",USHAW MOOR DAYCARE.
Dedicated Schools Grant BG0015,DSG Early Years Block,Transfer Payments,510030,School Children,01/07/2022,4020153-31461,"1,363.05",REDACTED - PAYMENT TO INDIVIDUAL
Dedicated Schools Grant BG0015,DSG Early Years Block,Transfer Payments,510030,School Children,01/07/2022,4020155-31463,"12,224.89",VICTORIA LANE ACADEMY.
Dedicated Schools Grant BG0015,DSG Early Years Block,Transfer Payments,510030,School Children,01/07/2022,4020162-31263,"10,274.53",WAYMAN DEVELOPMENTS LTD T/A CHILDSPLAY PRIVATE NURSERY.
Dedicated Schools Grant BG0015,DSG Early Years Block,Transfer Payments,510030,School Children,01/07/2022,4020163-31264,"14,912.17",WAYMAN DEVELOPMENTS LTD T/A CHILDSPLAY PRIVATE NURSERY.
Dedicated Schools Grant BG0015,DSG Early Years Block,Transfer Payments,510030,School Children,01/07/2022,4019676-31229,"1,026.19",REDACTED - PAYMENT TO INDIVIDUAL
Dedicated Schools Grant BG0015,DSG Early Years Block,Transfer Payments,510030,School Children,01/07/2022,4019678-31230,637.65,REDACTED - PAYMENT TO INDIVIDUAL
Dedicated Schools Grant BG0015,DSG Early Years Block,Transfer Payments,510030,School Children,01/07/2022,4019702-31239,"8,654.04",REDACTED - PAYMENT TO INDIVIDUAL
Dedicated Schools Grant BG0015,DSG Early Years Block,Transfer Payments,510030,School Children,01/07/2022,4019756-31268,"1,014.00",REDACTED - PAYMENT TO INDIVIDUAL
Dedicated Schools Grant BG0015,DSG Early Years Block,Transfer Payments,510030,School Children,01/07/2022,4019898-31326,"1,661.40",REDACTED - PAYMENT TO INDIVIDUAL
Dedicated Schools Grant BG0015,DSG Early Years Block,Transfer Payments,510030,School Children,01/07/2022,4019913-31331,706.09,REDACTED - PAYMENT TO INDIVIDUAL
Dedicated Schools Grant BG0015,DSG Early Years Block,Transfer Payments,510030,School Children,01/07/2022,4019935-31349,"1,038.37",REDACTED - PAYMENT TO INDIVIDUAL
Dedicated Schools Grant BG0015,DSG Early Years Block,Transfer Payments,510030,School Children,01/07/2022,4019942-31352,"2,125.50",REDACTED - PAYMENT TO INDIVIDUAL
Dedicated Schools Grant BG0015,DSG Early Years Block,Transfer Payments,510030,School Children,01/07/2022,4019945-31355,"1,542.06",REDACTED - PAYMENT TO INDIVIDUAL
Dedicated Schools Grant BG0015,DSG Early Years Block,Transfer Payments,510030,School Children,01/07/2022,4019948-31358,718.09,REDACTED - PAYMENT TO INDIVIDUAL
Dedicated Schools Grant BG0015,DSG Early Years Block,Transfer Payments,510030,School Children,01/07/2022,4019955-31361,"1,563.13",REDACTED - PAYMENT TO INDIVIDUAL
Dedicated Schools Grant BG0015,DSG Early Years Block,Transfer Payments,510030,School Children,01/07/2022,4019969-31373,"1,038.37",REDACTED - PAYMENT TO INDIVIDUAL
Dedicated Schools Grant BG0015,DSG Early Years Block,Transfer Payments,510030,School Children,01/07/2022,4019971-31375,742.67,REDACTED - PAYMENT TO INDIVIDUAL
Dedicated Schools Grant BG0015,DSG Early Years Block,Transfer Payments,510030,School Children,01/07/2022,4019976-31378,840.45,REDACTED - PAYMENT TO INDIVIDUAL
Dedicated Schools Grant BG0015,DSG Early Years Block,Transfer Payments,510030,School Children,01/07/2022,4019979-31380,801.45,REDACTED - PAYMENT TO INDIVIDUAL
Dedicated Schools Grant BG0015,DSG Early Years Block,Transfer Payments,510030,School Children,01/07/2022,4019984-31384,850.20,REDACTED - PAYMENT TO INDIVIDUAL
Dedicated Schools Grant BG0015,DSG Early Years Block,Transfer Payments,510030,School Children,01/07/2022,4020037-31398,594.88,REDACTED - PAYMENT TO INDIVIDUAL
Dedicated Schools Grant BG0015,DSG Early Years Block,Transfer Payments,510030,School Children,01/07/2022,4020082-31420,"1,315.27",REDACTED - PAYMENT TO INDIVIDUAL
Dedicated Schools Grant BG0015,DSG Early Years Block,Transfer Payments,510030,School Children,01/07/2022,4020093-31424,830.70,REDACTED - PAYMENT TO INDIVIDUAL
Dedicated Schools Grant BG0015,DSG Early Years Block,Transfer Payments,510030,School Children,01/07/2022,4020113-31448,791.70,REDACTED - PAYMENT TO INDIVIDUAL
Dedicated Schools Grant BG0015,DSG Early Years Block,Transfer Payments,510030,School Children,01/07/2022,4019679-31233,"1,496.04",REDACTED - PAYMENT TO INDIVIDUAL
Dedicated Schools Grant BG0015,DSG Early Years Block,Transfer Payments,510030,School Children,01/07/2022,4019683-31235,811.20,REDACTED - PAYMENT TO INDIVIDUAL
Dedicated Schools Grant BG0015,DSG Early Years Block,Transfer Payments,510030,School Children,01/07/2022,4019684-31236,"3,322.80",REDACTED - PAYMENT TO INDIVIDUAL
Dedicated Schools Grant BG0015,DSG Early Years Block,Transfer Payments,510030,School Children,01/07/2022,4019738-31257,830.70,REDACTED - PAYMENT TO INDIVIDUAL
Dedicated Schools Grant BG0015,DSG Early Years Block,Transfer Payments,510030,School Children,01/07/2022,4019819-31289,"2,080.69",REDACTED - PAYMENT TO INDIVIDUAL
Dedicated Schools Grant BG0015,DSG Early Years Block,Transfer Payments,510030,School Children,01/07/2022,4019842-31298,"1,297.10",REDACTED - PAYMENT TO INDIVIDUAL
Dedicated Schools Grant BG0015,DSG Early Years Block,Transfer Payments,510030,School Children,01/07/2022,4019857-31367,"5,417.13",REDACTED - PAYMENT TO INDIVIDUAL
Dedicated Schools Grant BG0015,DSG Early Years Block,Transfer Payments,510030,School Children,01/07/2022,4019865-31306,"2,609.10",REDACTED - PAYMENT TO INDIVIDUAL
Dedicated Schools Grant BG0015,DSG Early Years Block,Transfer Payments,510030,School Children,01/07/2022,4019866-31307,811.20,REDACTED - PAYMENT TO INDIVIDUAL
Dedicated Schools Grant BG0015,DSG Early Years Block,Transfer Payments,510030,School Children,01/07/2022,4019872-31310,"1,191.45",REDACTED - PAYMENT TO INDIVIDUAL
Dedicated Schools Grant BG0015,DSG Early Years Block,Transfer Payments,510030,School Children,01/07/2022,4019875-31313,"4,088.07",REDACTED - PAYMENT TO INDIVIDUAL
Dedicated Schools Grant BG0015,DSG Early Years Block,Transfer Payments,510030,School Children,01/07/2022,4019901-31328,608.40,REDACTED - PAYMENT TO INDIVIDUAL
Dedicated Schools Grant BG0015,DSG Early Years Block,Transfer Payments,510030,School Children,01/07/2022,4019903-31329,623.02,REDACTED - PAYMENT TO INDIVIDUAL
Dedicated Schools Grant BG0015,DSG Early Years Block,Transfer Payments,510030,School Children,01/07/2022,4019910-31277,"10,197.47",REDACTED - PAYMENT TO INDIVIDUAL
Dedicated Schools Grant BG0015,DSG Early Years Block,Transfer Payments,510030,School Children,01/07/2022,4019920-31336,"2,169.37",REDACTED - PAYMENT TO INDIVIDUAL
Dedicated Schools Grant BG0015,DSG Early Years Block,Transfer Payments,510030,School Children,01/07/2022,4019929-31343,"1,700.40",REDACTED - PAYMENT TO INDIVIDUAL
Dedicated Schools Grant BG0015,DSG Early Years Block,Transfer Payments,510030,School Children,01/07/2022,4019937-31365,"6,022.57",REDACTED - PAYMENT TO INDIVIDUAL
Dedicated Schools Grant BG0015,DSG Early Years Block,Transfer Payments,510030,School Children,01/07/2022,4019946-31356,"4,842.34",REDACTED - PAYMENT TO INDIVIDUAL
Dedicated Schools Grant BG0015,DSG Early Years Block,Transfer Payments,510030,School Children,01/07/2022,4019964-31370,"1,348.42",REDACTED - PAYMENT TO INDIVIDUAL
Dedicated Schools Grant BG0015,DSG Early Years Block,Transfer Payments,510030,School Children,01/07/2022,4019977-31379,"1,641.90",REDACTED - PAYMENT TO INDIVIDUAL
Dedicated Schools Grant BG0015,DSG Early Years Block,Transfer Payments,510030,School Children,01/07/2022,4019985-31385,"1,246.05",REDACTED - PAYMENT TO INDIVIDUAL
Dedicated Schools Grant BG0015,DSG Early Years Block,Transfer Payments,510030,School Children,01/07/2022,4019987-31261,"1,107.44",REDACTED - PAYMENT TO INDIVIDUAL
Dedicated Schools Grant BG0015,DSG Early Years Block,Transfer Payments,510030,School Children,01/07/2022,4019989-31368,"7,622.55",REDACTED - PAYMENT TO INDIVIDUAL
Dedicated Schools Grant BG0015,DSG Early Years Block,Transfer Payments,510030,School Children,01/07/2022,4019997-31282,"1,333.80",REDACTED - PAYMENT TO INDIVIDUAL
Dedicated Schools Grant BG0015,DSG Early Years Block,Transfer Payments,510030,School Children,01/07/2022,4019999-31332,623.02,REDACTED - PAYMENT TO INDIVIDUAL
Dedicated Schools Grant BG0015,DSG Early Years Block,Transfer Payments,510030,School Children,01/07/2022,4020001-31335,801.45,REDACTED - PAYMENT TO INDIVIDUAL
Dedicated Schools Grant BG0015,DSG Early Years Block,Transfer Payments,510030,School Children,01/07/2022,4020012-31387,"4,323.15",REDACTED - PAYMENT TO INDIVIDUAL
Dedicated Schools Grant BG0015,DSG Early Years Block,Transfer Payments,510030,School Children,01/07/2022,4020033-31396,"1,891.01",REDACTED - PAYMENT TO INDIVIDUAL
Dedicated Schools Grant BG0015,DSG Early Years Block,Transfer Payments,510030,School Children,01/07/2022,4020052-31405,"1,869.07",REDACTED - PAYMENT TO INDIVIDUAL
Dedicated Schools Grant BG0015,DSG Early Years Block,Transfer Payments,510030,School Children,01/07/2022,4020073-31413,937.95,REDACTED - PAYMENT TO INDIVIDUAL
Dedicated Schools Grant BG0015,DSG Early Years Block,Transfer Payments,510030,School Children,01/07/2022,4020074-31414,"1,102.06",REDACTED - PAYMENT TO INDIVIDUAL
Dedicated Schools Grant BG0015,DSG Early Years Block,Transfer Payments,510030,School Children,01/07/2022,4020075-31415,"1,001.81",REDACTED - PAYMENT TO INDIVIDUAL
Dedicated Schools Grant BG0015,DSG Early Years Block,Transfer Payments,510030,School Children,01/07/2022,4020136-31457,830.70,REDACTED - PAYMENT TO INDIVIDUAL
Resources BK0010,Legal & Democratic Services,Supplies and Services,332029,Printing Stationery and Gen Off Exps,01/07/2022,4019665-PSI0197101,"1,400.00",ADARE SEC LTD.
Resources BK0010,Transactional & Customer Services,Supplies and Services,338066,Services,01/07/2022,4019753-C/BN246020,"15,269.85",CIVICA UK LTD.
Resources BK0010,Transactional & Customer Services,Supplies and Services,338066,Services,01/07/2022,4019753-C/BN246028,"1,652.40",CIVICA UK LTD.
Adult and Health Services,Public Health CC0450,Third Party Payments,460803,Contract Payments,01/07/2022,4019862-2510044829,"4,798.89",HARROGATE & DISTRICT NHS FOUNDATION TRUST.
Adult and Health Services,Public Health CC0450,Third Party Payments,460803,Contract Payments,01/07/2022,4019862-2510044830,"4,798.89",HARROGATE & DISTRICT NHS FOUNDATION TRUST.
Adult and Health Services,Public Health CC0450,Third Party Payments,460803,Contract Payments,01/07/2022,4019862-2510044846,"929,271.75",HARROGATE & DISTRICT NHS FOUNDATION TRUST.
Adult and Health Services,Public Health CC0450,Third Party Payments,460803,Contract Payments,01/07/2022,4019862-2510044847,"4,798.89",HARROGATE & DISTRICT NHS FOUNDATION TRUST.
Adult and Health Services,Public Health CC0450,Third Party Payments,460803,Contract Payments,01/07/2022,4020017-7032600470,"226,064.00",NHS NORTH DURHAM CCG.
Regeneration Economy and Growth,Business Durham CL0850,Premises,106082,Centrally Controlled Rep and Maint,01/07/2022,4019689-37069,710.50,AQUAJET DRAIN CLEANING LTD.
Regeneration Economy and Growth,Corporate Property and Land,Premises,106082,Centrally Controlled Rep and Maint,01/07/2022,4019743-9440,803.08,CATHEDRAL LOCK & SAFE SERVICES LTD.
Regeneration Economy and Growth,Culture Sport and Tourism,Premises,106082,Centrally Controlled Rep and Maint,01/07/2022,4019743-9700,541.60,CATHEDRAL LOCK & SAFE SERVICES LTD.
Regeneration Economy and Growth,Corporate Property and Land,Premises,106082,Centrally Controlled Rep and Maint,01/07/2022,4019743-9751,760.00,CATHEDRAL LOCK & SAFE SERVICES LTD.
Regeneration Economy and Growth,Culture Sport and Tourism,Premises,106082,Centrally Controlled Rep and Maint,01/07/2022,4019836-500252,"2,117.99",FT LEISURE LTD.
Adult and Health Services,Head of Adults,Transport,230005,Contract Hire,01/07/2022,4019838-102943,"2,071.65",G & P JOHNSON LTD T/A NIGHTINGALE COACHES.
Adult and Health Services,Head of Adults,Transport,230005,Contract Hire,01/07/2022,4019838-102944,"1,343.00",G & P JOHNSON LTD T/A NIGHTINGALE COACHES.
Neighbourhoods and Climate Change,Technical Services CM0300,Stock A926,926900,Stock in hand-Inventory system,01/07/2022,4020089-839,"2,405.28",SNAPFAST LTD.
Neighbourhoods and Climate Change,Technical Services CM0300,Stock A926,926900,Stock in hand-Inventory system,01/07/2022,4020133-111010,"4,632.00",TOTAL RENTAL SOLUTIONS.
Resources BK0010,Digital Services,Stock A926,926900,Stock in hand-Inventory system,01/07/2022,4020177-LB89537,"6,441.47",XMA LTD.
Resources BK0010,Digital Services,Stock A926,926900,Stock in hand-Inventory system,01/07/2022,4019791-7402825787,"3,895.55",DELL COMPUTER CORPORATION LTD.
Resources BK0010,Legal & Democratic Services,Supplies and Services,372009,Subscriptions E372,01/07/2022,4019956-DI709582M,"1,200.00",LEXISNEXIS BUTTERWORTHS.
Adult and Health Services,Head of Adults,Third Party Payments,478151,Purchase of Care,01/07/2022,4019693-D720004209,"4,732.28",AUTISM CARE UK (4) LTD.
Adult and Health Services,Head of Adults,Third Party Payments,478151,Purchase of Care,01/07/2022,4019693-D720004210,"4,732.28",AUTISM CARE UK (4) LTD.
Adult and Health Services,Head of Adults,Third Party Payments,478151,Purchase of Care,01/07/2022,4019786-INV-1180,"2,686.58",DEACONSTAR LTD.
Adult and Health Services,Head of Adults,Third Party Payments,478151,Purchase of Care,01/07/2022,4019786-INV-1181,578.52,DEACONSTAR LTD.
Adult and Health Services,Public Health CC0450,Supplies and Services,338089,Services,01/07/2022,4020149-4289657,500.00,UNIVERSITY OF GLOUCESTERSHIRE.
Children and Young Peoples Services,Head of Early Help Inclusion & Vulnerable Children.,Supplies and Services,384302,Miscellaneous Expenses,04/07/2022,4020362-CASTLEPARKPLAY,583.33,RABY ESTATES.
Regeneration Economy and Growth,Culture Sport and Tourism,Supplies and Services,324117,Provisions E324,04/07/2022,4020201-52178074,971.80,BIDFOOD.
Regeneration Economy and Growth,Culture Sport and Tourism,Supplies and Services,324117,Provisions E324,04/07/2022,4020201-52284117,805.95,BIDFOOD.
Regeneration Economy and Growth,Culture Sport and Tourism,Supplies and Services,328041,Clothing uniforms and laundry E328,04/07/2022,4020411-NSIN00077531,878.12,THOMAS OWEN & SONS (NEWCASTLE) LTD.
Neighbourhoods and Climate Change,Technical Services CM0300,Supplies and Services,342033,Computers and Communications,04/07/2022,4020406-SINV-2022002273,"115,264.07",SYMOLOGY LTD.
Resources BK0010,Internal Audit and Insurance,Supplies and Services,342051,Computers and Communications,04/07/2022,4020214-M/RB102067,931.76,CIVICA UK LTD.
Resources BK0010,Transactional & Customer Services,Supplies and Services,342051,Computers and Communications,04/07/2022,4020318-00060316,645.00,NCC SERVICES LTD.
Children and Young Peoples Services,Head of Education and Skills,Construction work A908,908105,Construction work,04/07/2022,4020352-900960153,"22,847.75",PORTAKABIN LTD.
Children and Young Peoples Services,Head of Education and Skills,Construction work A908,908105,Construction work,04/07/2022,4020352-900963261,"22,847.75",PORTAKABIN LTD.
Neighbourhoods and Climate Change,Technical Services CM0300,Supplies and Services,338027,Services,04/07/2022,4020344-64022000,"74,859.82",PELL FRISCHMANN CONSULTANTS LTD.
Regeneration Economy and Growth,Business Durham CL0850,Fees,901002,Consultants fees 901002,04/07/2022,4020232-0100069930,"3,350.00",CUNDALL LTD.
Regeneration Economy and Growth,Culture Sport and Tourism,Premises,145050,Cleaning and Domestic Supplies,04/07/2022,4020213-CN30193379,"1,140.90",CITRON HYGIENE UK LTD.
Neighbourhoods and Climate Change,Partnerships & Community Engagement Div.,Cap Exp on Grants & Other Financial Assistance (REFCUS),918004,Contributions to other bodies 918004,04/07/2022,4020345-VOUCHER22NB-EDUR001,"3,000.00",PETERLEE AMATEUR SWIMMING CLUB.
Resources BK0010,Legal & Democratic Services,Supplies and Services,338101,Services,04/07/2022,4020243-6/2022,"1,200.00",REDACTED - PAYMENT TO INDIVIDUAL
Resources BK0010,Transactional & Customer Services,Supplies and Services,384110,Miscellaneous Expenses,04/07/2022,4020351-PiP_INV-1008,"16,665.00",POLICY IN PRACTICE LTD.
Neighbourhoods and Climate Change,Environmental Services,Transport,215005,Running Costs of Vehicles,04/07/2022,4020435-956135,"21,999.94",YOUR NRG LTD.
Neighbourhoods and Climate Change,Environmental Services,Transport,215005,Running Costs of Vehicles,04/07/2022,4020435-956136,"2,674.81",YOUR NRG LTD.
Neighbourhoods and Climate Change,Environmental Services,Supplies and Services,304221,Equipment and Materials,04/07/2022,4020319-065621,"1,131.63",NEW ROW FARM NURSERIES.
Neighbourhoods and Climate Change,Environmental Services,Supplies and Services,304221,Equipment and Materials,04/07/2022,4020369-OASI0022886,"3,367.80",RIGBY TAYLOR LTD.
Neighbourhoods and Climate Change,Technical Services CM0300,Supplies and Services,304221,Equipment and Materials,04/07/2022,4020407-9045298971,627.44,TARMAC TRADING LTD.
Adult and Health Services,Head of Adults,Supplies and Services,338365,Services,04/07/2022,4020283-1101028524,"8,894.55",HOME GROUP LTD.
Children and Young Peoples Services,Head of Early Help Inclusion & Vulnerable Children.,Supplies and Services,304259,Equipment and Materials,04/07/2022,4020347-2593424577,"1,568.25",PHONAK UK LTD.
Regeneration Economy and Growth,Development and Housing,Supplies and Services,304259,Equipment and Materials,04/07/2022,4020275-GPS/608,"3,534.00",GREEN PROPERTY SERVICES LTD..
Regeneration Economy and Growth,Development and Housing,Supplies and Services,304259,Equipment and Materials,04/07/2022,4020275-GPS/618,"1,800.00",GREEN PROPERTY SERVICES LTD..
Children and Young Peoples Services,Head of Childrens Social Care,Supplies and Services,338044,Services,04/07/2022,4020298-260110,764.00,LEXTOX.
Resources - C A C,Non Distributed Costs,Supplies and Services,338059,Services,04/07/2022,4020272-P0064132,540.00,GEL LTD T/A HEALTHWORK.
Neighbourhoods and Climate Change,Technical Services CM0300,Supplies and Services,304358,Equipment and Materials,04/07/2022,4020378-3212,882.00,S & R LANDSCAPES.
Neighbourhoods and Climate Change,Technical Services CM0300,Supplies and Services,304358,Equipment and Materials,04/07/2022,4020378-3217,862.50,S & R LANDSCAPES.
Neighbourhoods and Climate Change,Technical Services CM0300,Supplies and Services,304358,Equipment and Materials,04/07/2022,4020378-3225,"1,040.40",S & R LANDSCAPES.
Neighbourhoods and Climate Change,Technical Services CM0300,Supplies and Services,304358,Equipment and Materials,04/07/2022,4020378-3237,954.50,S & R LANDSCAPES.
Neighbourhoods and Climate Change,Technical Services CM0300,Supplies and Services,304358,Equipment and Materials,04/07/2022,4020378-3243,"1,016.00",S & R LANDSCAPES.
Neighbourhoods and Climate Change,Technical Services CM0300,Supplies and Services,304358,Equipment and Materials,04/07/2022,4020378-3244,964.50,S & R LANDSCAPES.
Neighbourhoods and Climate Change,Technical Services CM0300,Supplies and Services,304358,Equipment and Materials,04/07/2022,4020378-3245,963.75,S & R LANDSCAPES.
Neighbourhoods and Climate Change,Technical Services CM0300,Supplies and Services,304358,Equipment and Materials,04/07/2022,4020378-3246,538.00,S & R LANDSCAPES.
Neighbourhoods and Climate Change,Partnerships & Community Engagement Div.,Supplies and Services,384086,Miscellaneous Expenses,04/07/2022,4020239-VOUCHER22NB-EDUR007,"11,348.00",DAWDON WELFARE CRICKET CLUB.
Neighbourhoods and Climate Change,Partnerships & Community Engagement Div.,Supplies and Services,384086,Miscellaneous Expenses,04/07/2022,4020301-VOUCHERBELA05-21,999.00,LITTLE TREASURES.
Neighbourhoods and Climate Change,Partnerships & Community Engagement Div.,Supplies and Services,384086,Miscellaneous Expenses,04/07/2022,4020385-VOUCHERPJJOHM01-22,999.00,SHILDON TOWN COUNCIL.
Neighbourhoods and Climate Change,Partnerships & Community Engagement Div.,Supplies and Services,384086,Miscellaneous Expenses,04/07/2022,4020228-VOUCHERHAMC04-22,750.00,CRAGHEAD COMMUNITY ASSOCIATION.
Regeneration Economy and Growth,Development and Housing,Supplies and Services,384199,Miscellaneous Expenses,04/07/2022,4020207-17317,504.00,BROWN & ILLINGWORTH LTD.
Children and Young Peoples Services,Head of Education and Skills,Third Party Payments,440999,Other third party payments E440,04/07/2022,4020397-427,"9,463.75",STANLEY EVENTS LTD.
Children and Young Peoples Services,Head of Education and Skills,Third Party Payments,440999,Other third party payments E440,04/07/2022,4020430-KICK5044718INVOICE000850,"1,044.28",WOODSHED WORKSHOP CIC.
Regeneration Economy and Growth,Business Durham CL0850,Third Party Payments,440999,Other third party payments E440,04/07/2022,4020323-DBRG-06-2022-20,"5,908.13",NORMA LOWTHER CATERING LTD T/A SEVENTEEN BISTRO.
Regeneration Economy and Growth,Business Durham CL0850,Third Party Payments,440999,Other third party payments E440,04/07/2022,4020323-DBRG-06-2022-21,"3,484.50",NORMA LOWTHER CATERING LTD T/A SEVENTEEN BISTRO.
Regeneration Economy and Growth,Transport and Contracted Services,Third Party Payments,440999,Other third party payments E440,04/07/2022,4020196-101634,"6,514.32",BAYDALE CONTROL SYSTEMS LTD.
Neighbourhoods and Climate Change,Environmental Services,Third Party Payments,430100,Rendered by Private Contractors,04/07/2022,4020241-96422956,"5,956.17",DENNIS EAGLE LTD T/A TERBERG MATEC (UK) LTD.
Neighbourhoods and Climate Change,Environmental Services,Third Party Payments,430100,Rendered by Private Contractors,04/07/2022,4020242-445292,"3,908.30",DENNIS EAGLE LTD.
Neighbourhoods and Climate Change,Environmental Services,Third Party Payments,430100,Rendered by Private Contractors,04/07/2022,4020328-1435581,"3,992.94",NORTH EAST TRUCK & VAN LTD.
Neighbourhoods and Climate Change,Technical Services CM0300,Third Party Payments,430100,Rendered by Private Contractors,04/07/2022,4020348-6361,"5,043.90",PINKNEY BUILDING CONTRACTORS LTD.
Neighbourhoods and Climate Change,Technical Services CM0300,Third Party Payments,430100,Rendered by Private Contractors,04/07/2022,4020348-6362,"3,362.60",PINKNEY BUILDING CONTRACTORS LTD.
Neighbourhoods and Climate Change,Technical Services CM0300,Third Party Payments,430100,Rendered by Private Contractors,04/07/2022,4020359-14236,584.64,QUANTUM POWER CONNECTIONS LTD.
Neighbourhoods and Climate Change,Technical Services CM0300,Third Party Payments,430100,Rendered by Private Contractors,04/07/2022,4020359-14237,"2,654.08",QUANTUM POWER CONNECTIONS LTD.
Neighbourhoods and Climate Change,Technical Services CM0300,Third Party Payments,430100,Rendered by Private Contractors,04/07/2022,4020359-14238,"2,702.25",QUANTUM POWER CONNECTIONS LTD.
Regeneration Economy and Growth,Development and Housing,Third Party Payments,430100,Rendered by Private Contractors,04/07/2022,4020187-APP0000001400,"5,115.00",ALIGN PROPERTY PARTNERS LTD.
Regeneration Economy and Growth,Corporate Property and Land,Third Party Payments,430100,Rendered by Private Contractors,04/07/2022,4020240-NE21276,"3,000.00",DELTA WIRING SOLUTIONS LTD.
Regeneration Economy and Growth,Corporate Property and Land,Third Party Payments,430100,Rendered by Private Contractors,04/07/2022,4020339-3079,"23,400.00",PARAMOUNT CEILINGS & PARTITIONS LTD.
Regeneration Economy and Growth,Corporate Property and Land,Third Party Payments,430100,Rendered by Private Contractors,04/07/2022,4020418-DCC/GT/258,630.00,TYNE VALLEY FLOORING & CARPETS.
Neighbourhoods and Climate Change,Environmental Services,Third Party Payments,430101,Rendered by Private Contractors,04/07/2022,4020308-FKL00333,"1,419.30",MCCONECHYS TYRE SERVICE LTD.
Neighbourhoods and Climate Change,Environmental Services,Third Party Payments,430101,Rendered by Private Contractors,04/07/2022,4020308-FKL00334,"2,716.60",MCCONECHYS TYRE SERVICE LTD.
Neighbourhoods and Climate Change,Environmental Services,Third Party Payments,430101,Rendered by Private Contractors,04/07/2022,4020308-FKL00335,"1,467.90",MCCONECHYS TYRE SERVICE LTD.
Neighbourhoods and Climate Change,Environmental Services,Third Party Payments,430101,Rendered by Private Contractors,04/07/2022,4020308-FKL00336,"2,344.95",MCCONECHYS TYRE SERVICE LTD.
Neighbourhoods and Climate Change,Environmental Services,Third Party Payments,430101,Rendered by Private Contractors,04/07/2022,4020308-HOL07221,"2,751.65",MCCONECHYS TYRE SERVICE LTD.
Neighbourhoods and Climate Change,Environmental Services,Third Party Payments,430101,Rendered by Private Contractors,04/07/2022,4020308-HOL07248,901.80,MCCONECHYS TYRE SERVICE LTD.
Neighbourhoods and Climate Change,Environmental Services,Third Party Payments,430101,Rendered by Private Contractors,04/07/2022,4020308-HOL07264,"1,391.05",MCCONECHYS TYRE SERVICE LTD.
Neighbourhoods and Climate Change,Environmental Services,Third Party Payments,430101,Rendered by Private Contractors,04/07/2022,4020308-HOL07306,"3,597.59",MCCONECHYS TYRE SERVICE LTD.
Neighbourhoods and Climate Change,Environmental Services,Third Party Payments,430101,Rendered by Private Contractors,04/07/2022,4020308-HOL07307,"1,512.90",MCCONECHYS TYRE SERVICE LTD.
Neighbourhoods and Climate Change,Environmental Services,Third Party Payments,430101,Rendered by Private Contractors,04/07/2022,4020308-HOL07308,"1,834.80",MCCONECHYS TYRE SERVICE LTD.
Neighbourhoods and Climate Change,Environmental Services,Third Party Payments,430101,Rendered by Private Contractors,04/07/2022,4020308-HOL07309,"2,913.00",MCCONECHYS TYRE SERVICE LTD.
Neighbourhoods and Climate Change,Technical Services CM0300,Supplies and Services,338066,Services,04/07/2022,4020289-6161,"14,048.81",JACOBS UK LTD.
Regeneration Economy and Growth,Transport and Contracted Services,Supplies and Services,338066,Services,04/07/2022,4020203-SIN034519,"36,913.48",BLOOM PROCUREMENT SERVICES LTD (FORMERLY NEPRO LTD).
Regeneration Economy and Growth,Transport and Contracted Services,Supplies and Services,338066,Services,04/07/2022,4020203-SIN034620,"33,488.63",BLOOM PROCUREMENT SERVICES LTD (FORMERLY NEPRO LTD).
Regeneration Economy and Growth,Corporate Property and Land,Supplies and Services,338078,Services,04/07/2022,4020379-16193,"1,123.50",SAFEGUARD SECURITY (NE) LTD.
Regeneration Economy and Growth,Corporate Property and Land,Supplies and Services,338078,Services,04/07/2022,4020379-16194,512.00,SAFEGUARD SECURITY (NE) LTD.
Regeneration Economy and Growth,Corporate Property and Land,Supplies and Services,338078,Services,04/07/2022,4020402-18233,"15,833.25",STEADFAST SECURITY SOLUTIONS LTD.
Neighbourhoods and Climate Change,Environmental Services,Transport,230005,Contract Hire,04/07/2022,4020330-SL07270319INV,521.64,NORTHGATE VEHICLE HIRE LTD.
Neighbourhoods and Climate Change,Technical Services CM0300,Stock A926,926900,Stock in hand-Inventory system,04/07/2022,4020435-954498,"1,086.79",YOUR NRG LTD.
Neighbourhoods and Climate Change,Technical Services CM0300,Stock A926,926900,Stock in hand-Inventory system,04/07/2022,4020194-INV152106,556.80,AZTEC CHEMICALS LTD.
Neighbourhoods and Climate Change,Technical Services CM0300,Stock A926,926900,Stock in hand-Inventory system,04/07/2022,4020306-304182,"2,255.75",MARWOOD ELECTRICAL COMPANY LTD.
Neighbourhoods and Climate Change,Technical Services CM0300,Stock A926,926900,Stock in hand-Inventory system,04/07/2022,4020407-9045388494,531.22,TARMAC TRADING LTD.
Neighbourhoods and Climate Change,Environmental Services,Transport,210057,Repair and Maintenance of Vehicles,04/07/2022,4020198-15205628,522.97,BELL TRUCK SALES LTD T/A BELL TRUCK & VAN.
Neighbourhoods and Climate Change,Environmental Services,Transport,210057,Repair and Maintenance of Vehicles,04/07/2022,4020277-276223,"1,182.09",GREENLAY T/A THOMAS SHERRIFF & CO LTD.
Neighbourhoods and Climate Change,Environmental Services,Transport,210057,Repair and Maintenance of Vehicles,04/07/2022,4020277-276228,570.52,GREENLAY T/A THOMAS SHERRIFF & CO LTD.
Neighbourhoods and Climate Change,Environmental Services,Transport,210057,Repair and Maintenance of Vehicles,04/07/2022,4020343-320765,"3,039.88",PEART FENCING LTD.
Children and Young Peoples Services,Head of Early Help Inclusion & Vulnerable Children.,Supplies and Services,338094,Services,04/07/2022,4020364-INV69013,"2,795.63",RAMSIDE ESTATES LTD T/A RAMSIDE HALL HOTEL.
Regeneration Economy and Growth,Development and Housing,Employees,080025,Agency Staff,05/07/2022,4021120-2460804,"156,445.76",GEOMETRIC RESULTS INTERNATIONAL.
Regeneration Economy and Growth,Culture Sport and Tourism,Supplies and Services,312013,Newspapers books and periodicals E312,05/07/2022,4021040-ICB00181,599.40,CLARITY BOOKS LTD.
Regeneration Economy and Growth,Culture Sport and Tourism,Third Party Payments,430131,Rendered by Private Contractors,05/07/2022,4021200-2022024,905.00,REDACTED - PAYMENT TO INDIVIDUAL
Regeneration Economy and Growth,Culture Sport and Tourism,Third Party Payments,430131,Rendered by Private Contractors,05/07/2022,4021200-2022025,"3,166.00",REDACTED - PAYMENT TO INDIVIDUAL
Children and Young Peoples Services,Head of Childrens Social Care,Supplies and Services,384500,Miscellaneous Expenses,05/07/2022,4021335-SI-3918,540.00,TREE TOPS OCCUPATIONAL THERAPY LTD.
Resources BK0010,Digital Services,Vehicles Equipment Furniture and Fittings,912701,Computer equipment,05/07/2022,4021360-LB89505,"2,835.96",XMA LTD.
Resources BK0010,Digital Services,Supplies and Services,342051,Computers and Communications,05/07/2022,4021280-0000023422,"4,718.00",RISKONNECT ACTIVE RISK LTD.
Regeneration Economy and Growth,Development and Housing,Construction work A908,908105,Construction work,05/07/2022,4021329-SPN-000489,"1,500,607.50",TOLENT LIVING LTD.
Children and Young Peoples Services,Head of Education and Skills,Transport,230034,Contract Hire,05/07/2022,4020957-62203,"1,064.57",24/7 TAXI SERVICES (PETERLEE) LTD.
Children and Young Peoples Services,Head of Education and Skills,Transport,230034,Contract Hire,05/07/2022,4020957-62205,"3,377.70",24/7 TAXI SERVICES (PETERLEE) LTD.
Children and Young Peoples Services,Head of Education and Skills,Transport,230034,Contract Hire,05/07/2022,4020957-62220,"2,520.00",24/7 TAXI SERVICES (PETERLEE) LTD.
Children and Young Peoples Services,Head of Education and Skills,Transport,230034,Contract Hire,05/07/2022,4020989-2906221,"1,836.00",AVALON TAXIS.
Children and Young Peoples Services,Head of Education and Skills,Transport,230034,Contract Hire,05/07/2022,4020989-2906223,"1,400.00",AVALON TAXIS.
Children and Young Peoples Services,Head of Education and Skills,Transport,230034,Contract Hire,05/07/2022,4021012-009-JUNE22,"2,340.92",BOWBURN TAXIS.
Children and Young Peoples Services,Head of Education and Skills,Transport,230034,Contract Hire,05/07/2022,4021030-01-JUNE22,630.00,CHAPMAN TRAVEL.
Children and Young Peoples Services,Head of Education and Skills,Transport,230034,Contract Hire,05/07/2022,4021035-5260/10,"1,116.00",REDACTED - PAYMENT TO INDIVIDUAL
Children and Young Peoples Services,Head of Education and Skills,Transport,230034,Contract Hire,05/07/2022,4021035-5289/10,"2,444.40",REDACTED - PAYMENT TO INDIVIDUAL
Children and Young Peoples Services,Head of Education and Skills,Transport,230034,Contract Hire,05/07/2022,4021208-AT268,"1,400.00",REDACTED - PAYMENT TO INDIVIDUAL
Children and Young Peoples Services,Head of Education and Skills,Transport,230034,Contract Hire,05/07/2022,4021216-240,"1,115.64",REDACTED - PAYMENT TO INDIVIDUAL
Children and Young Peoples Services,Head of Education and Skills,Transport,230035,Contract Hire,05/07/2022,4021009-14-2022,"2,006.59",BL TAXIS.
Children and Young Peoples Services,Head of Education and Skills,Transport,230035,Contract Hire,05/07/2022,4021064-L002,671.70,REDACTED - PAYMENT TO INDIVIDUAL
Children and Young Peoples Services,Head of Education and Skills,Transport,230035,Contract Hire,05/07/2022,4021070-05/2022-2091,"2,881.36",REDACTED - PAYMENT TO INDIVIDUAL
Children and Young Peoples Services,Head of Education and Skills,Transport,230035,Contract Hire,05/07/2022,4021216-241,"1,093.45",REDACTED - PAYMENT TO INDIVIDUAL
Children and Young Peoples Services,Head of Education and Skills,Transport,230035,Contract Hire,05/07/2022,4021222-311241,"1,889.10",REDACTED - PAYMENT TO INDIVIDUAL
Children and Young Peoples Services,Head of Education and Skills,Transport,230007,Contract Hire,05/07/2022,4021355-WHSI-47,"2,681.25",WHITWORTH PARK SCHOOL.*
Children and Young Peoples Services,Head of Education and Skills,Transport,230007,Contract Hire,05/07/2022,4020957-62201,569.81,24/7 TAXI SERVICES (PETERLEE) LTD.
Children and Young Peoples Services,Head of Education and Skills,Transport,230007,Contract Hire,05/07/2022,4020957-62204,779.00,24/7 TAXI SERVICES (PETERLEE) LTD.
Children and Young Peoples Services,Head of Education and Skills,Transport,230007,Contract Hire,05/07/2022,4020957-62207,800.00,24/7 TAXI SERVICES (PETERLEE) LTD.
Children and Young Peoples Services,Head of Education and Skills,Transport,230007,Contract Hire,05/07/2022,4020989-2906222,"2,440.00",AVALON TAXIS.
Children and Young Peoples Services,Head of Education and Skills,Transport,230007,Contract Hire,05/07/2022,4020989-29622,"1,080.00",AVALON TAXIS.
Children and Young Peoples Services,Head of Education and Skills,Transport,230007,Contract Hire,05/07/2022,4021010-H,"2,970.30",BOBS TAXIS.
Children and Young Peoples Services,Head of Education and Skills,Transport,230007,Contract Hire,05/07/2022,4021010-H1,579.88,BOBS TAXIS.
Children and Young Peoples Services,Head of Education and Skills,Transport,230007,Contract Hire,05/07/2022,4021048-INV015,"2,225.66",CONSETT EXECUTIVE CABS.
Children and Young Peoples Services,Head of Education and Skills,Transport,230007,Contract Hire,05/07/2022,4021055-111249,"1,909.68",CROFT BUSINESS SERVICES LTD T/A CROFT TRAVEL.
Children and Young Peoples Services,Head of Education and Skills,Transport,230007,Contract Hire,05/07/2022,4021062-105-4227,"3,591.00",DANNY`S TRAVEL.
Children and Young Peoples Services,Head of Education and Skills,Transport,230007,Contract Hire,05/07/2022,4021116-23726,"4,905.99",GARNETTS LTD (COACHES).
Children and Young Peoples Services,Head of Education and Skills,Transport,230007,Contract Hire,05/07/2022,4021116-23727,"4,827.33",GARNETTS LTD (COACHES).
Children and Young Peoples Services,Head of Education and Skills,Transport,230007,Contract Hire,05/07/2022,4021116-23728,"6,042.00",GARNETTS LTD (COACHES).
Children and Young Peoples Services,Head of Education and Skills,Transport,230007,Contract Hire,05/07/2022,4021116-23729,"11,324.00",GARNETTS LTD (COACHES).
Children and Young Peoples Services,Head of Education and Skills,Transport,230007,Contract Hire,05/07/2022,4021116-23730-3007,"2,812.00",GARNETTS LTD (COACHES).
Children and Young Peoples Services,Head of Education and Skills,Transport,230007,Contract Hire,05/07/2022,4021116-23730-3315,"2,641.00",GARNETTS LTD (COACHES).
Children and Young Peoples Services,Head of Education and Skills,Transport,230007,Contract Hire,05/07/2022,4021116-23730-3435,"3,572.00",GARNETTS LTD (COACHES).
Children and Young Peoples Services,Head of Education and Skills,Transport,230007,Contract Hire,05/07/2022,4021116-23731-4038,"5,282.00",GARNETTS LTD (COACHES).
Children and Young Peoples Services,Head of Education and Skills,Transport,230007,Contract Hire,05/07/2022,4021116-23732-3029,"2,817.51",GARNETTS LTD (COACHES).
Children and Young Peoples Services,Head of Education and Skills,Transport,230007,Contract Hire,05/07/2022,4021116-23732-3199,"2,679.57",GARNETTS LTD (COACHES).
Children and Young Peoples Services,Head of Education and Skills,Transport,230007,Contract Hire,05/07/2022,4021116-23735,"2,935.69",GARNETTS LTD (COACHES).
Children and Young Peoples Services,Head of Education and Skills,Transport,230007,Contract Hire,05/07/2022,4021118-5959,"1,493.64",GEM TRAVEL.
Children and Young Peoples Services,Head of Education and Skills,Transport,230007,Contract Hire,05/07/2022,4021168-46-JUNE22,"1,710.00",JOHN CRAKE & SONS MINI BUSES LTD.
Children and Young Peoples Services,Head of Education and Skills,Transport,230007,Contract Hire,05/07/2022,4021035-5409/15,792.00,REDACTED - PAYMENT TO INDIVIDUAL
Children and Young Peoples Services,Head of Education and Skills,Transport,230007,Contract Hire,05/07/2022,4021070-05/2022-3460COVER,"1,946.00",REDACTED - PAYMENT TO INDIVIDUAL
Children and Young Peoples Services,Head of Education and Skills,Transport,230007,Contract Hire,05/07/2022,4021209-3-JUNE22,"1,295.00",REDACTED - PAYMENT TO INDIVIDUAL
Children and Young Peoples Services,Head of Education and Skills,Transport,230007,Contract Hire,05/07/2022,4021216-238,"1,863.33",REDACTED - PAYMENT TO INDIVIDUAL
Children and Young Peoples Services,Head of Education and Skills,Transport,230007,Contract Hire,05/07/2022,4021222-311242,900.00,REDACTED - PAYMENT TO INDIVIDUAL
Children and Young Peoples Services,Head of Education and Skills,Transport,230007,Contract Hire,05/07/2022,4021225-DCC/003/22,"1,909.69",REDACTED - PAYMENT TO INDIVIDUAL
Children and Young Peoples Services,Head of Education and Skills,Transport,230007,Contract Hire,05/07/2022,4021233-284,"1,807.61",REDACTED - PAYMENT TO INDIVIDUAL
Children and Young Peoples Services,Head of Education and Skills,Transport,230003,Contract Hire,05/07/2022,4021062-105-4270,"2,270.50",DANNY`S TRAVEL.
Children and Young Peoples Services,Head of Education and Skills,Transport,230003,Contract Hire,05/07/2022,4021116-23732-3020,"2,837.27",GARNETTS LTD (COACHES).
Children and Young Peoples Services,Head of Education and Skills,Transport,230003,Contract Hire,05/07/2022,4021116-23732-3024,"2,344.60",GARNETTS LTD (COACHES).
Children and Young Peoples Services,Head of Education and Skills,Transport,230003,Contract Hire,05/07/2022,4021116-23732-3027,"2,502.30",GARNETTS LTD (COACHES).
Children and Young Peoples Services,Head of Education and Skills,Transport,230003,Contract Hire,05/07/2022,4021116-23732-3028,"2,738.66",GARNETTS LTD (COACHES).
Children and Young Peoples Services,Head of Education and Skills,Transport,230003,Contract Hire,05/07/2022,4021116-23733-3301,"3,526.78",GARNETTS LTD (COACHES).
Children and Young Peoples Services,Head of Education and Skills,Transport,230003,Contract Hire,05/07/2022,4021116-23733-3302,"3,526.78",GARNETTS LTD (COACHES).
Children and Young Peoples Services,Head of Education and Skills,Transport,230003,Contract Hire,05/07/2022,4021116-23733-3303,"3,526.78",GARNETTS LTD (COACHES).
Children and Young Peoples Services,Head of Education and Skills,Transport,230003,Contract Hire,05/07/2022,4021116-23736-3004,"4,019.45",GARNETTS LTD (COACHES).
Children and Young Peoples Services,Head of Education and Skills,Transport,230003,Contract Hire,05/07/2022,4021116-23736-3005,"5,871.57",GARNETTS LTD (COACHES).
Children and Young Peoples Services,Head of Education and Skills,Transport,230003,Contract Hire,05/07/2022,4021116-23736-3008,"3,329.75",GARNETTS LTD (COACHES).
Children and Young Peoples Services,Head of Education and Skills,Transport,230003,Contract Hire,05/07/2022,4021116-23736-3203,"3,132.72",GARNETTS LTD (COACHES).
Children and Young Peoples Services,Head of Education and Skills,Transport,230003,Contract Hire,05/07/2022,4021116-23736-3223,"6,265.63",GARNETTS LTD (COACHES).
Children and Young Peoples Services,Head of Education and Skills,Transport,230003,Contract Hire,05/07/2022,4021116-23736-3262,"3,684.48",GARNETTS LTD (COACHES).
Children and Young Peoples Services,Head of Education and Skills,Transport,230003,Contract Hire,05/07/2022,4021116-23736-3333,"3,310.18",GARNETTS LTD (COACHES).
Children and Young Peoples Services,Head of Education and Skills,Transport,230003,Contract Hire,05/07/2022,4021116-23784,"4,560.00",GARNETTS LTD (COACHES).
Children and Young Peoples Services,Head of Education and Skills,Transport,230003,Contract Hire,05/07/2022,4021118-5960,"3,811.40",GEM TRAVEL.
Children and Young Peoples Services,Head of Education and Skills,Transport,230003,Contract Hire,05/07/2022,4021127-79128,"4,541.00",GO GATESHEAD LTD.
Children and Young Peoples Services,Head of Education and Skills,Transport,230009,Contract Hire,05/07/2022,4020987-DCC16JUNE22,"2,850.00",ATLAS TAXIS MANAGEMENT LTD.
Children and Young Peoples Services,Head of Education and Skills,Transport,230009,Contract Hire,05/07/2022,4021038-G036-LH0622,806.40,CJ`S EXECUTIVE TRAVEL LTD.
Children and Young Peoples Services,Head of Education and Skills,Transport,230009,Contract Hire,05/07/2022,4021087-1341,"2,546.00",EAST DURHAM TAXIS.
Children and Young Peoples Services,Head of Education and Skills,Transport,230009,Contract Hire,05/07/2022,4021114-6-JUNE22,"1,707.48",REDACTED - PAYMENT TO INDIVIDUAL
Children and Young Peoples Services,Head of Education and Skills,Transport,230009,Contract Hire,05/07/2022,4021302-07299,"1,484.02",STANLEY TRAVEL (NORTH EAST) LTD.
Children and Young Peoples Services,Head of Education and Skills,Transport,230009,Contract Hire,05/07/2022,4020974-8-JUNE22,"1,449.89",REDACTED - PAYMENT TO INDIVIDUAL
Children and Young Peoples Services,Head of Education and Skills,Transport,230009,Contract Hire,05/07/2022,4021175-010622-1,"1,256.96",REDACTED - PAYMENT TO INDIVIDUAL
Children and Young Peoples Services,Head of Education and Skills,Transport,230009,Contract Hire,05/07/2022,4021210-FRAM1-06-22,"1,489.60",REDACTED - PAYMENT TO INDIVIDUAL
Dedicated Schools Grant BG0015,DSG High Needs Block,Transport,230009,Contract Hire,05/07/2022,4021057-JUNE22-G022,"1,849.35",REDACTED - PAYMENT TO INDIVIDUAL
Children and Young Peoples Services,Head of Education and Skills,Transport,230006,Contract Hire,05/07/2022,4020957-62208,"3,021.00",24/7 TAXI SERVICES (PETERLEE) LTD.
Children and Young Peoples Services,Head of Education and Skills,Transport,230006,Contract Hire,05/07/2022,4020957-62224,"1,121.00",24/7 TAXI SERVICES (PETERLEE) LTD.
Children and Young Peoples Services,Head of Education and Skills,Transport,230006,Contract Hire,05/07/2022,4020957-62225,"1,381.00",24/7 TAXI SERVICES (PETERLEE) LTD.
Children and Young Peoples Services,Head of Education and Skills,Transport,230006,Contract Hire,05/07/2022,4020959-JUNE01-F856,"1,780.00",A & P TAXIS.
Children and Young Peoples Services,Head of Education and Skills,Transport,230006,Contract Hire,05/07/2022,4020987-DCC6JUNE2022,"3,024.00",ATLAS TAXIS MANAGEMENT LTD.
Children and Young Peoples Services,Head of Education and Skills,Transport,230006,Contract Hire,05/07/2022,4021001-1-JUNE22,"2,280.00",BH TRAVEL.
Children and Young Peoples Services,Head of Education and Skills,Transport,230006,Contract Hire,05/07/2022,4021030-10-JUNE22,990.00,CHAPMAN TRAVEL.
Children and Young Peoples Services,Head of Education and Skills,Transport,230006,Contract Hire,05/07/2022,4021032-1608,920.00,CHEVRON TAXIS LTD.
Children and Young Peoples Services,Head of Education and Skills,Transport,230006,Contract Hire,05/07/2022,4021046-1780,"2,245.61",CONNORS MINI BUSES.*
Children and Young Peoples Services,Head of Education and Skills,Transport,230006,Contract Hire,05/07/2022,4021059-545,"1,379.21",DA TRAVEL.
Children and Young Peoples Services,Head of Education and Skills,Transport,230006,Contract Hire,05/07/2022,4021061-BACJUN2201,"1,245.00",DALELINK PRIVATE HIRE.
Children and Young Peoples Services,Head of Education and Skills,Transport,230006,Contract Hire,05/07/2022,4021061-NCDJUN2201,"1,530.00",DALELINK PRIVATE HIRE.
Children and Young Peoples Services,Head of Education and Skills,Transport,230006,Contract Hire,05/07/2022,4021087-1337,"4,628.00",EAST DURHAM TAXIS.
Children and Young Peoples Services,Head of Education and Skills,Transport,230006,Contract Hire,05/07/2022,4021087-1342,"1,056.00",EAST DURHAM TAXIS.
Children and Young Peoples Services,Head of Education and Skills,Transport,230006,Contract Hire,05/07/2022,4021087-1343,"2,805.92",EAST DURHAM TAXIS.
Children and Young Peoples Services,Head of Education and Skills,Transport,230006,Contract Hire,05/07/2022,4021087-1354,"3,922.00",EAST DURHAM TAXIS.
Children and Young Peoples Services,Head of Education and Skills,Transport,230006,Contract Hire,05/07/2022,4021114-5-JUNE22,"1,826.18",REDACTED - PAYMENT TO INDIVIDUAL
Children and Young Peoples Services,Head of Education and Skills,Transport,230006,Contract Hire,05/07/2022,4021167-10-21/22,"1,587.54",JOHN BELL TAXI.
Children and Young Peoples Services,Head of Education and Skills,Transport,230006,Contract Hire,05/07/2022,4020976-00580,"1,275.56",REDACTED - PAYMENT TO INDIVIDUAL
Children and Young Peoples Services,Head of Education and Skills,Transport,230006,Contract Hire,05/07/2022,4020976-00584,840.00,REDACTED - PAYMENT TO INDIVIDUAL
Children and Young Peoples Services,Head of Education and Skills,Transport,230006,Contract Hire,05/07/2022,4020974-10-JUNE22,780.00,REDACTED - PAYMENT TO INDIVIDUAL
Children and Young Peoples Services,Head of Education and Skills,Transport,230006,Contract Hire,05/07/2022,4021122-15C,"2,478.00",REDACTED - PAYMENT TO INDIVIDUAL
Children and Young Peoples Services,Head of Education and Skills,Transport,230006,Contract Hire,05/07/2022,4021139-06-JUNE22,948.00,REDACTED - PAYMENT TO INDIVIDUAL
Children and Young Peoples Services,Head of Education and Skills,Transport,230006,Contract Hire,05/07/2022,4021139-10-JUNE22,"1,267.20",REDACTED - PAYMENT TO INDIVIDUAL
Children and Young Peoples Services,Head of Education and Skills,Transport,230006,Contract Hire,05/07/2022,4021139-64,"1,875.11",REDACTED - PAYMENT TO INDIVIDUAL
Children and Young Peoples Services,Head of Education and Skills,Transport,230006,Contract Hire,05/07/2022,4021171-266,560.00,REDACTED - PAYMENT TO INDIVIDUAL
Children and Young Peoples Services,Head of Education and Skills,Transport,230006,Contract Hire,05/07/2022,4021199-INV242,"1,902.36",REDACTED - PAYMENT TO INDIVIDUAL
Children and Young Peoples Services,Head of Education and Skills,Transport,230006,Contract Hire,05/07/2022,4021212-219,"1,012.16",REDACTED - PAYMENT TO INDIVIDUAL
Children and Young Peoples Services,Head of Education and Skills,Transport,230006,Contract Hire,05/07/2022,4021214-E217-JUNE22,"2,470.00",REDACTED - PAYMENT TO INDIVIDUAL
Children and Young Peoples Services,Head of Education and Skills,Transport,230006,Contract Hire,05/07/2022,4021215-PEC10,936.00,REDACTED - PAYMENT TO INDIVIDUAL
Children and Young Peoples Services,Head of Education and Skills,Transport,230006,Contract Hire,05/07/2022,4021216-242,510.00,REDACTED - PAYMENT TO INDIVIDUAL
Children and Young Peoples Services,Head of Education and Skills,Transport,230006,Contract Hire,05/07/2022,4021218-10-F117,"1,440.00",REDACTED - PAYMENT TO INDIVIDUAL
Children and Young Peoples Services,Head of Education and Skills,Transport,230006,Contract Hire,05/07/2022,4021220-DCC078,"1,089.00",REDACTED - PAYMENT TO INDIVIDUAL
Children and Young Peoples Services,Head of Education and Skills,Transport,230006,Contract Hire,05/07/2022,4021257-JUN22-N061,"1,330.00",REDACTED - PAYMENT TO INDIVIDUAL
Children and Young Peoples Services,Head of Education and Skills,Transport,230006,Contract Hire,05/07/2022,4021330-0002371,"3,222.00",REDACTED - PAYMENT TO INDIVIDUAL
Children and Young Peoples Services,Head of Education and Skills,Transport,230010,Contract Hire,05/07/2022,4020957-62228,"3,800.00",24/7 TAXI SERVICES (PETERLEE) LTD.
Children and Young Peoples Services,Head of Education and Skills,Transport,230010,Contract Hire,05/07/2022,4021312-DCC/2021/94,"5,916.30",TAYLOR`S TAXIS.
Children and Young Peoples Services,Head of Education and Skills,Transport,230010,Contract Hire,05/07/2022,4021122-1F,"1,964.52",REDACTED - PAYMENT TO INDIVIDUAL
Children and Young Peoples Services,Head of Education and Skills,Transport,230010,Contract Hire,05/07/2022,4021170-107-JUNE22,"3,356.37",REDACTED - PAYMENT TO INDIVIDUAL
Children and Young Peoples Services,Head of Education and Skills,Transport,230010,Contract Hire,05/07/2022,4021170-110-JUNE22,"4,342.45",REDACTED - PAYMENT TO INDIVIDUAL
Children and Young Peoples Services,Head of Education and Skills,Transport,230010,Contract Hire,05/07/2022,4021170-112,"2,857.12",REDACTED - PAYMENT TO INDIVIDUAL
Children and Young Peoples Services,Head of Education and Skills,Transport,230010,Contract Hire,05/07/2022,4021222-311240-1,"2,049.44",REDACTED - PAYMENT TO INDIVIDUAL
Children and Young Peoples Services,Head of Education and Skills,Transport,230012,Contract Hire,05/07/2022,4020957-62216,"2,280.00",24/7 TAXI SERVICES (PETERLEE) LTD.
Children and Young Peoples Services,Head of Education and Skills,Transport,230012,Contract Hire,05/07/2022,4020957-62229,"2,850.00",24/7 TAXI SERVICES (PETERLEE) LTD.
Children and Young Peoples Services,Head of Education and Skills,Transport,230012,Contract Hire,05/07/2022,4020976-00588,"3,083.04",REDACTED - PAYMENT TO INDIVIDUAL
Children and Young Peoples Services,Head of Education and Skills,Transport,230012,Contract Hire,05/07/2022,4021211-E054-10,"1,886.00",REDACTED - PAYMENT TO INDIVIDUAL
Children and Young Peoples Services,Head of Education and Skills,Transport,230012,Contract Hire,05/07/2022,4021214-E037-JUNE22,"1,457.30",REDACTED - PAYMENT TO INDIVIDUAL
Children and Young Peoples Services,Head of Education and Skills,Transport,230016,Contract Hire,05/07/2022,4020996-SMITH2/JUNE22,813.20,BEELINE PRIVATE HIRE.
Children and Young Peoples Services,Head of Education and Skills,Transport,230016,Contract Hire,05/07/2022,4021087-1346,"1,288.00",EAST DURHAM TAXIS.
Children and Young Peoples Services,Head of Education and Skills,Transport,230016,Contract Hire,05/07/2022,4021087-1351,"1,332.00",EAST DURHAM TAXIS.
Children and Young Peoples Services,Head of Education and Skills,Transport,230016,Contract Hire,05/07/2022,4021113-102925,"1,026.00",G & P JOHNSON LTD T/A NIGHTINGALE COACHES.
Children and Young Peoples Services,Head of Education and Skills,Transport,230016,Contract Hire,05/07/2022,4020976-00586,"3,040.00",REDACTED - PAYMENT TO INDIVIDUAL
Children and Young Peoples Services,Head of Education and Skills,Transport,230016,Contract Hire,05/07/2022,4020975-0141,"2,660.00",REDACTED - PAYMENT TO INDIVIDUAL
Children and Young Peoples Services,Head of Education and Skills,Transport,230008,Contract Hire,05/07/2022,4020957-62211,"2,941.50",24/7 TAXI SERVICES (PETERLEE) LTD.
Children and Young Peoples Services,Head of Education and Skills,Transport,230008,Contract Hire,05/07/2022,4020957-62212,"2,828.28",24/7 TAXI SERVICES (PETERLEE) LTD.
Children and Young Peoples Services,Head of Education and Skills,Transport,230008,Contract Hire,05/07/2022,4020957-62213,"2,660.00",24/7 TAXI SERVICES (PETERLEE) LTD.
Children and Young Peoples Services,Head of Education and Skills,Transport,230008,Contract Hire,05/07/2022,4020957-62214,"5,108.50",24/7 TAXI SERVICES (PETERLEE) LTD.
Children and Young Peoples Services,Head of Education and Skills,Transport,230008,Contract Hire,05/07/2022,4020957-62215,"3,658.26",24/7 TAXI SERVICES (PETERLEE) LTD.
Children and Young Peoples Services,Head of Education and Skills,Transport,230008,Contract Hire,05/07/2022,4020957-62217,"2,862.00",24/7 TAXI SERVICES (PETERLEE) LTD.
Children and Young Peoples Services,Head of Education and Skills,Transport,230008,Contract Hire,05/07/2022,4020957-62219,"4,492.22",24/7 TAXI SERVICES (PETERLEE) LTD.
Children and Young Peoples Services,Head of Education and Skills,Transport,230008,Contract Hire,05/07/2022,4020957-62221,"1,881.00",24/7 TAXI SERVICES (PETERLEE) LTD.
Children and Young Peoples Services,Head of Education and Skills,Transport,230008,Contract Hire,05/07/2022,4020957-62222,"3,040.00",24/7 TAXI SERVICES (PETERLEE) LTD.
Children and Young Peoples Services,Head of Education and Skills,Transport,230008,Contract Hire,05/07/2022,4020957-62227,"3,322.62",24/7 TAXI SERVICES (PETERLEE) LTD.
Children and Young Peoples Services,Head of Education and Skills,Transport,230008,Contract Hire,05/07/2022,4020965-010-JUNE22,"2,090.00",AIRPORT TRANSFER DURHAM.
Children and Young Peoples Services,Head of Education and Skills,Transport,230008,Contract Hire,05/07/2022,4020985-DCC14JUNE22,840.00,ATLAS TAXIS BISHOP AUCKLAND.
Children and Young Peoples Services,Head of Education and Skills,Transport,230008,Contract Hire,05/07/2022,4020987-DCC11JUNE22,"2,910.80",ATLAS TAXIS MANAGEMENT LTD.
Children and Young Peoples Services,Head of Education and Skills,Transport,230008,Contract Hire,05/07/2022,4020987-DCC12JUNE22,"2,862.00",ATLAS TAXIS MANAGEMENT LTD.
Children and Young Peoples Services,Head of Education and Skills,Transport,230008,Contract Hire,05/07/2022,4020987-DCC15JUNE22,"3,855.00",ATLAS TAXIS MANAGEMENT LTD.
Children and Young Peoples Services,Head of Education and Skills,Transport,230008,Contract Hire,05/07/2022,4020987-DCC2JUNE2022,"3,572.00",ATLAS TAXIS MANAGEMENT LTD.
Children and Young Peoples Services,Head of Education and Skills,Transport,230008,Contract Hire,05/07/2022,4020987-DCC9JUNE2022,"3,040.00",ATLAS TAXIS MANAGEMENT LTD.
Children and Young Peoples Services,Head of Education and Skills,Transport,230008,Contract Hire,05/07/2022,4020988-103,"2,508.00",AUCKLAND TRAVEL.
Children and Young Peoples Services,Head of Education and Skills,Transport,230008,Contract Hire,05/07/2022,4020988-104,"2,546.00",AUCKLAND TRAVEL.
Children and Young Peoples Services,Head of Education and Skills,Transport,230008,Contract Hire,05/07/2022,4020988-105,"2,431.00",AUCKLAND TRAVEL.
Children and Young Peoples Services,Head of Education and Skills,Transport,230008,Contract Hire,05/07/2022,4020988-106,"3,002.00",AUCKLAND TRAVEL.
Children and Young Peoples Services,Head of Education and Skills,Transport,230008,Contract Hire,05/07/2022,4020988-107,"3,026.00",AUCKLAND TRAVEL.
Children and Young Peoples Services,Head of Education and Skills,Transport,230008,Contract Hire,05/07/2022,4020988-108,"2,372.80",AUCKLAND TRAVEL.
Children and Young Peoples Services,Head of Education and Skills,Transport,230008,Contract Hire,05/07/2022,4020995-1003,"2,022.17",BEELINE MINI BUSES.
Children and Young Peoples Services,Head of Education and Skills,Transport,230008,Contract Hire,05/07/2022,4020995-1004,"1,914.25",BEELINE MINI BUSES.
Children and Young Peoples Services,Head of Education and Skills,Transport,230008,Contract Hire,05/07/2022,4020995-1005,"1,358.88",BEELINE MINI BUSES.
Children and Young Peoples Services,Head of Education and Skills,Transport,230008,Contract Hire,05/07/2022,4021019-W112035,"1,586.61",C & R TAXIS.
Children and Young Peoples Services,Head of Education and Skills,Transport,230008,Contract Hire,05/07/2022,4021029-075,"2,407.32",CHANNER`S CABS.
Children and Young Peoples Services,Head of Education and Skills,Transport,230008,Contract Hire,05/07/2022,4021038-A072-SP0622,"2,024.45",CJ`S EXECUTIVE TRAVEL LTD.
Children and Young Peoples Services,Head of Education and Skills,Transport,230008,Contract Hire,05/07/2022,4021038-E031-KC0622,"4,325.69",CJ`S EXECUTIVE TRAVEL LTD.
Children and Young Peoples Services,Head of Education and Skills,Transport,230008,Contract Hire,05/07/2022,4021038-E032-CE0622,"2,356.00",CJ`S EXECUTIVE TRAVEL LTD.
Children and Young Peoples Services,Head of Education and Skills,Transport,230008,Contract Hire,05/07/2022,4021038-N049-JM0622,"3,675.00",CJ`S EXECUTIVE TRAVEL LTD.
Children and Young Peoples Services,Head of Education and Skills,Transport,230008,Contract Hire,05/07/2022,4021046-1779,"2,935.12",CONNORS MINI BUSES.*
Children and Young Peoples Services,Head of Education and Skills,Transport,230008,Contract Hire,05/07/2022,4021046-1781,"1,964.79",CONNORS MINI BUSES.*
Children and Young Peoples Services,Head of Education and Skills,Transport,230008,Contract Hire,05/07/2022,4021046-1782,"1,691.00",CONNORS MINI BUSES.*
Children and Young Peoples Services,Head of Education and Skills,Transport,230008,Contract Hire,05/07/2022,4021055-111251,"3,031.92",CROFT BUSINESS SERVICES LTD T/A CROFT TRAVEL.
Children and Young Peoples Services,Head of Education and Skills,Transport,230008,Contract Hire,05/07/2022,4021058-1773-JUNE22,"1,576.24",DA TAXIS.
Children and Young Peoples Services,Head of Education and Skills,Transport,230008,Contract Hire,05/07/2022,4021058-1778,"2,005.58",DA TAXIS.
Children and Young Peoples Services,Head of Education and Skills,Transport,230008,Contract Hire,05/07/2022,4021058-1779,"2,090.00",DA TAXIS.
Children and Young Peoples Services,Head of Education and Skills,Transport,230008,Contract Hire,05/07/2022,4021059-542,"2,383.38",DA TRAVEL.
Children and Young Peoples Services,Head of Education and Skills,Transport,230008,Contract Hire,05/07/2022,4021059-543,"1,634.40",DA TRAVEL.
Children and Young Peoples Services,Head of Education and Skills,Transport,230008,Contract Hire,05/07/2022,4021059-546,"1,360.21",DA TRAVEL.
Children and Young Peoples Services,Head of Education and Skills,Transport,230008,Contract Hire,05/07/2022,4021063-3724,"2,254.50",DAVES MINIBUSES.
Children and Young Peoples Services,Head of Education and Skills,Transport,230008,Contract Hire,05/07/2022,4021063-3725,"2,272.40",DAVES MINIBUSES.
Children and Young Peoples Services,Head of Education and Skills,Transport,230008,Contract Hire,05/07/2022,4021063-3726,"1,812.60",DAVES MINIBUSES.
Children and Young Peoples Services,Head of Education and Skills,Transport,230008,Contract Hire,05/07/2022,4021063-3727,"1,749.52",DAVES MINIBUSES.
Children and Young Peoples Services,Head of Education and Skills,Transport,230008,Contract Hire,05/07/2022,4021063-3728,"1,862.38",DAVES MINIBUSES.
Children and Young Peoples Services,Head of Education and Skills,Transport,230008,Contract Hire,05/07/2022,4021063-3729,"1,764.00",DAVES MINIBUSES.
Children and Young Peoples Services,Head of Education and Skills,Transport,230008,Contract Hire,05/07/2022,4021087-1333,"2,664.18",EAST DURHAM TAXIS.
Children and Young Peoples Services,Head of Education and Skills,Transport,230008,Contract Hire,05/07/2022,4021087-1334,"2,699.52",EAST DURHAM TAXIS.
Children and Young Peoples Services,Head of Education and Skills,Transport,230008,Contract Hire,05/07/2022,4021087-1335,"2,491.56",EAST DURHAM TAXIS.
Children and Young Peoples Services,Head of Education and Skills,Transport,230008,Contract Hire,05/07/2022,4021087-1336,"2,844.00",EAST DURHAM TAXIS.
Children and Young Peoples Services,Head of Education and Skills,Transport,230008,Contract Hire,05/07/2022,4021087-1338,"3,384.00",EAST DURHAM TAXIS.
Children and Young Peoples Services,Head of Education and Skills,Transport,230008,Contract Hire,05/07/2022,4021087-1340,"3,265.42",EAST DURHAM TAXIS.
Children and Young Peoples Services,Head of Education and Skills,Transport,230008,Contract Hire,05/07/2022,4021087-1344,"2,242.00",EAST DURHAM TAXIS.
Children and Young Peoples Services,Head of Education and Skills,Transport,230008,Contract Hire,05/07/2022,4021087-1347,"3,591.00",EAST DURHAM TAXIS.
Children and Young Peoples Services,Head of Education and Skills,Transport,230008,Contract Hire,05/07/2022,4021087-1348,"4,385.96",EAST DURHAM TAXIS.
Children and Young Peoples Services,Head of Education and Skills,Transport,230008,Contract Hire,05/07/2022,4021087-1349,"3,306.00",EAST DURHAM TAXIS.
Children and Young Peoples Services,Head of Education and Skills,Transport,230008,Contract Hire,05/07/2022,4021087-1350,"3,816.00",EAST DURHAM TAXIS.
Children and Young Peoples Services,Head of Education and Skills,Transport,230008,Contract Hire,05/07/2022,4021106-N340-006,"3,132.00",FERRYHILL VILLAGE TRAVEL & BROOM ROAD GARAGE LIMITED.
Children and Young Peoples Services,Head of Education and Skills,Transport,230008,Contract Hire,05/07/2022,4021113-102929,"1,064.00",G & P JOHNSON LTD T/A NIGHTINGALE COACHES.
Children and Young Peoples Services,Head of Education and Skills,Transport,230008,Contract Hire,05/07/2022,4021116-23734,"3,073.63",GARNETTS LTD (COACHES).
Children and Young Peoples Services,Head of Education and Skills,Transport,230008,Contract Hire,05/07/2022,4021116-23747,"3,830.04",GARNETTS LTD (COACHES).
Children and Young Peoples Services,Head of Education and Skills,Transport,230008,Contract Hire,05/07/2022,4021126-028-2022,"2,738.09",GMC TAXIS NORTH EAST.
Children and Young Peoples Services,Head of Education and Skills,Transport,230008,Contract Hire,05/07/2022,4021195-INV09/2021-21,"2,575.82",MARK & JOHN CHISHOLM T/A (CHEVRON).
Children and Young Peoples Services,Head of Education and Skills,Transport,230008,Contract Hire,05/07/2022,4021284-006-JUNE22,"2,769.82",RONS TAXI (CHESTER LE ST).
Children and Young Peoples Services,Head of Education and Skills,Transport,230008,Contract Hire,05/07/2022,4020976-00582,"3,240.00",REDACTED - PAYMENT TO INDIVIDUAL
Children and Young Peoples Services,Head of Education and Skills,Transport,230008,Contract Hire,05/07/2022,4020976-00583,"3,800.00",REDACTED - PAYMENT TO INDIVIDUAL
Children and Young Peoples Services,Head of Education and Skills,Transport,230008,Contract Hire,05/07/2022,4020976-00589,"2,790.54",REDACTED - PAYMENT TO INDIVIDUAL
Children and Young Peoples Services,Head of Education and Skills,Transport,230008,Contract Hire,05/07/2022,4020976-00592,"3,237.50",REDACTED - PAYMENT TO INDIVIDUAL
Children and Young Peoples Services,Head of Education and Skills,Transport,230008,Contract Hire,05/07/2022,4021174-A026-JUNE22,"2,442.96",REDACTED - PAYMENT TO INDIVIDUAL
Children and Young Peoples Services,Head of Education and Skills,Transport,230008,Contract Hire,05/07/2022,4021174-S040-JUNE22,"2,812.76",REDACTED - PAYMENT TO INDIVIDUAL
Children and Young Peoples Services,Head of Education and Skills,Transport,230008,Contract Hire,05/07/2022,4021174-S103-JUNE22,"1,520.00",REDACTED - PAYMENT TO INDIVIDUAL
Children and Young Peoples Services,Head of Education and Skills,Transport,230008,Contract Hire,05/07/2022,4020973-JUNE22-E202,"2,526.43",REDACTED - PAYMENT TO INDIVIDUAL
Children and Young Peoples Services,Head of Education and Skills,Transport,230008,Contract Hire,05/07/2022,4021054-84,"1,260.00",REDACTED - PAYMENT TO INDIVIDUAL
Children and Young Peoples Services,Head of Education and Skills,Transport,230008,Contract Hire,05/07/2022,4021170-101-JUN22,"3,040.00",REDACTED - PAYMENT TO INDIVIDUAL
Children and Young Peoples Services,Head of Education and Skills,Transport,230008,Contract Hire,05/07/2022,4021170-102-JUNE22,"1,520.00",REDACTED - PAYMENT TO INDIVIDUAL
Children and Young Peoples Services,Head of Education and Skills,Transport,230008,Contract Hire,05/07/2022,4021170-104-JUNE22,"1,900.00",REDACTED - PAYMENT TO INDIVIDUAL
Children and Young Peoples Services,Head of Education and Skills,Transport,230008,Contract Hire,05/07/2022,4021170-105-JUNE22,"3,296.64",REDACTED - PAYMENT TO INDIVIDUAL
Children and Young Peoples Services,Head of Education and Skills,Transport,230008,Contract Hire,05/07/2022,4021170-106-JUNE22,"3,610.00",REDACTED - PAYMENT TO INDIVIDUAL
Children and Young Peoples Services,Head of Education and Skills,Transport,230008,Contract Hire,05/07/2022,4021170-108-JUNE22,"3,610.00",REDACTED - PAYMENT TO INDIVIDUAL
Children and Young Peoples Services,Head of Education and Skills,Transport,230008,Contract Hire,05/07/2022,4021170-109-JUNE22,"3,080.00",REDACTED - PAYMENT TO INDIVIDUAL
Children and Young Peoples Services,Head of Education and Skills,Transport,230008,Contract Hire,05/07/2022,4021193-10-JUNE22,"2,160.00",REDACTED - PAYMENT TO INDIVIDUAL
Children and Young Peoples Services,Head of Education and Skills,Transport,230008,Contract Hire,05/07/2022,4021210-CROFT1-06-22,"1,954.72",REDACTED - PAYMENT TO INDIVIDUAL
Children and Young Peoples Services,Head of Education and Skills,Transport,230008,Contract Hire,05/07/2022,4021210-OAK1-06-22,"2,827.20",REDACTED - PAYMENT TO INDIVIDUAL
Children and Young Peoples Services,Head of Education and Skills,Transport,230008,Contract Hire,05/07/2022,4021210-OAK2-06-22,"2,279.05",REDACTED - PAYMENT TO INDIVIDUAL
Children and Young Peoples Services,Head of Education and Skills,Transport,230008,Contract Hire,05/07/2022,4021210-THPK06-22,"1,789.87",REDACTED - PAYMENT TO INDIVIDUAL
Children and Young Peoples Services,Head of Education and Skills,Transport,230008,Contract Hire,05/07/2022,4021214-A046-JUNE22,"3,230.00",REDACTED - PAYMENT TO INDIVIDUAL
Children and Young Peoples Services,Head of Education and Skills,Transport,230008,Contract Hire,05/07/2022,4021214-E049-JUNE22,753.60,REDACTED - PAYMENT TO INDIVIDUAL
Children and Young Peoples Services,Head of Education and Skills,Transport,230008,Contract Hire,05/07/2022,4021214-M020-JUN22,"2,184.00",REDACTED - PAYMENT TO INDIVIDUAL
Children and Young Peoples Services,Head of Education and Skills,Transport,230008,Contract Hire,05/07/2022,4021220-DCC077,"3,328.04",REDACTED - PAYMENT TO INDIVIDUAL
Children and Young Peoples Services,Head of Education and Skills,Transport,230008,Contract Hire,05/07/2022,4021220-DCC079,"2,052.00",REDACTED - PAYMENT TO INDIVIDUAL
Children and Young Peoples Services,Head of Education and Skills,Transport,230008,Contract Hire,05/07/2022,4021220-DCC080,"2,451.00",REDACTED - PAYMENT TO INDIVIDUAL
Children and Young Peoples Services,Head of Education and Skills,Transport,230008,Contract Hire,05/07/2022,4021221-3228,"1,743.25",REDACTED - PAYMENT TO INDIVIDUAL
Children and Young Peoples Services,Head of Education and Skills,Transport,230008,Contract Hire,05/07/2022,4021221-3229,"1,685.19",REDACTED - PAYMENT TO INDIVIDUAL
Children and Young Peoples Services,Head of Education and Skills,Transport,230008,Contract Hire,05/07/2022,4021221-3230,"3,960.00",REDACTED - PAYMENT TO INDIVIDUAL
Children and Young Peoples Services,Head of Education and Skills,Transport,230008,Contract Hire,05/07/2022,4021222-311243,"1,155.00",REDACTED - PAYMENT TO INDIVIDUAL
Children and Young Peoples Services,Head of Education and Skills,Transport,230008,Contract Hire,05/07/2022,4021262-78,"1,911.06",REDACTED - PAYMENT TO INDIVIDUAL
Children and Young Peoples Services,Head of Education and Skills,Transport,230008,Contract Hire,05/07/2022,4021330-0002366,"4,623.84",REDACTED - PAYMENT TO INDIVIDUAL
Children and Young Peoples Services,Head of Education and Skills,Transport,230008,Contract Hire,05/07/2022,4021330-0002368,"1,864.66",REDACTED - PAYMENT TO INDIVIDUAL
Children and Young Peoples Services,Head of Education and Skills,Transport,230008,Contract Hire,05/07/2022,4021330-0002371-JUNE22,"4,845.00",REDACTED - PAYMENT TO INDIVIDUAL
Children and Young Peoples Services,Head of Education and Skills,Transport,230008,Contract Hire,05/07/2022,4021330-2369,"3,230.00",REDACTED - PAYMENT TO INDIVIDUAL
Children and Young Peoples Services,Head of Education and Skills,Transport,230008,Contract Hire,05/07/2022,4021349-JUNE22-W011,"1,267.50",REDACTED - PAYMENT TO INDIVIDUAL
Regeneration Economy and Growth,Transport and Contracted Services,Third Party Payments,430108,Rendered by Private Contractors,05/07/2022,4021166-T7605,510.00,JCT CONSULTANCY LTD.
Neighbourhoods and Climate Change,Environmental Services,Third Party Payments,430116,Rendered by Private Contractors,05/07/2022,4021137-2206\001,"3,375.00",HALL CONSTRUCTION SERVICES LTD.
Neighbourhoods and Climate Change,Environmental Services,Third Party Payments,430116,Rendered by Private Contractors,05/07/2022,4021137-2206\002,"1,000.00",HALL CONSTRUCTION SERVICES LTD.
Neighbourhoods and Climate Change,Environmental Services,Third Party Payments,430116,Rendered by Private Contractors,05/07/2022,4021137-2206\018,500.00,HALL CONSTRUCTION SERVICES LTD.
Neighbourhoods and Climate Change,Environmental Services,Third Party Payments,430116,Rendered by Private Contractors,05/07/2022,4021137-2206\024,"1,250.00",HALL CONSTRUCTION SERVICES LTD.
Regeneration Economy and Growth,Development and Housing,Supplies and Services,384899,Miscellaneous Expenses,05/07/2022,4021342-ND015/14,"4,567.85",UMI COMMERCIAL LTD.
Resources BK0010,Legal & Democratic Services,Supplies and Services,338106,Services,05/07/2022,4021263-23062022,"1,200.00",PHILLIPS & CO COSMETIC DENTISTRY.
Neighbourhoods and Climate Change,Technical Services CM0300,Supplies and Services,304221,Equipment and Materials,05/07/2022,4021332-138066,511.50,TP ELECTRICAL SUPPLIES & FIXINGS LTD.
Neighbourhoods and Climate Change,Environmental Services,Supplies and Services,304221,Equipment and Materials,05/07/2022,4021098-6917403,"7,860.00",ESE WORLD LTD.
Neighbourhoods and Climate Change,Environmental Services,Supplies and Services,304221,Equipment and Materials,05/07/2022,4021136-102577,967.20,GUSTHARTS LTD.
Neighbourhoods and Climate Change,Technical Services CM0300,Supplies and Services,304221,Equipment and Materials,05/07/2022,4021143-IN103011,895.11,HILL & SMITH LTD.
Neighbourhoods and Climate Change,Technical Services CM0300,Supplies and Services,304221,Equipment and Materials,05/07/2022,4021310-9045357280,937.14,TARMAC TRADING LTD.
Neighbourhoods and Climate Change,Technical Services CM0300,Supplies and Services,304221,Equipment and Materials,05/07/2022,4021338-234049,669.91,TYNEDALE ROADSTONE LTD.
Neighbourhoods and Climate Change,Technical Services CM0300,Supplies and Services,304221,Equipment and Materials,05/07/2022,4021338-234182,"1,442.35",TYNEDALE ROADSTONE LTD.
Neighbourhoods and Climate Change,Technical Services CM0300,Supplies and Services,304221,Equipment and Materials,05/07/2022,4021338-234190,"1,315.18",TYNEDALE ROADSTONE LTD.
Neighbourhoods and Climate Change,Technical Services CM0300,Supplies and Services,304221,Equipment and Materials,05/07/2022,4021338-234269,692.97,TYNEDALE ROADSTONE LTD.
Neighbourhoods and Climate Change,Technical Services CM0300,Supplies and Services,304221,Equipment and Materials,05/07/2022,4021338-234271,"1,644.88",TYNEDALE ROADSTONE LTD.
Neighbourhoods and Climate Change,Technical Services CM0300,Supplies and Services,304221,Equipment and Materials,05/07/2022,4021338-234273,"1,652.73",TYNEDALE ROADSTONE LTD.
Neighbourhoods and Climate Change,Technical Services CM0300,Supplies and Services,304221,Equipment and Materials,05/07/2022,4021338-234276,"1,652.73",TYNEDALE ROADSTONE LTD.
Neighbourhoods and Climate Change,Technical Services CM0300,Supplies and Services,304221,Equipment and Materials,05/07/2022,4021338-234279,"1,205.28",TYNEDALE ROADSTONE LTD.
Neighbourhoods and Climate Change,Technical Services CM0300,Supplies and Services,304221,Equipment and Materials,05/07/2022,4021338-234280,"1,655.87",TYNEDALE ROADSTONE LTD.
Neighbourhoods and Climate Change,Technical Services CM0300,Supplies and Services,304221,Equipment and Materials,05/07/2022,4021338-234404,718.58,TYNEDALE ROADSTONE LTD.
Neighbourhoods and Climate Change,Technical Services CM0300,Supplies and Services,304221,Equipment and Materials,05/07/2022,4021338-234406,"1,660.58",TYNEDALE ROADSTONE LTD.
Neighbourhoods and Climate Change,Technical Services CM0300,Supplies and Services,304221,Equipment and Materials,05/07/2022,4021338-234409,"1,509.86",TYNEDALE ROADSTONE LTD.
Neighbourhoods and Climate Change,Technical Services CM0300,Supplies and Services,304221,Equipment and Materials,05/07/2022,4021338-234410,"1,654.30",TYNEDALE ROADSTONE LTD.
Neighbourhoods and Climate Change,Technical Services CM0300,Supplies and Services,304221,Equipment and Materials,05/07/2022,4021338-234441,"1,122.43",TYNEDALE ROADSTONE LTD.
Regeneration Economy and Growth,Corporate Property and Land,Supplies and Services,304221,Equipment and Materials,05/07/2022,4020966-174985,"7,424.00",ALBANY OFFICE EQUIPMENT (WHOLESALE) LTD.
Regeneration Economy and Growth,Corporate Property and Land,Supplies and Services,304221,Equipment and Materials,05/07/2022,4021140-4736831,"1,482.96",HEADLAM (FLOORCOVERING DISTRIBUTORS) LTD.
Regeneration Economy and Growth,Corporate Property and Land,Supplies and Services,304221,Equipment and Materials,05/07/2022,4021185-95298,"3,289.00",LEISURETEQ.
Regeneration Economy and Growth,Corporate Property and Land,Supplies and Services,304221,Equipment and Materials,05/07/2022,4021308-819303,"3,745.67",T CROSSLING & CO LTD.
Dedicated Schools Grant BG0015,DSG High Needs Block,Central Support and Other Recharges,689988,Unclassified E690,05/07/2022,4021006-JUNE22TOPUP,686.00,BISHOP WILKINSON CE TRUST.
Dedicated Schools Grant BG0015,DSG High Needs Block,Central Support and Other Recharges,689988,Unclassified E690,05/07/2022,4021008-JUNE22TOPUP,"1,381.00",BISHOP WILKINSON CE TRUST.
Dedicated Schools Grant BG0015,DSG High Needs Block,Central Support and Other Recharges,689988,Unclassified E690,05/07/2022,4021301-JUNE22TOPUP,"4,007.00",STANLEY LEARNING PARTNERSHIP.
Dedicated Schools Grant BG0015,DSG High Needs Block,Central Support and Other Recharges,689988,Unclassified E690,05/07/2022,4021068-JUNE22TOPUP,"1,349.00",DENE ACADEMY.
Dedicated Schools Grant BG0015,DSG High Needs Block,Central Support and Other Recharges,689988,Unclassified E690,05/07/2022,4021069-JUNE22TOPUP,"1,687.00",DENE HOUSE PRIMARY SCHOOL (ACADEMY).
Dedicated Schools Grant BG0015,DSG High Needs Block,Central Support and Other Recharges,689988,Unclassified E690,05/07/2022,4021102-JUNE22TOPUP,543.00,EXCEL ACADEMY PARTNERSHIP T/A FRAMWELLGATE SCHOOL DURHAM.
Dedicated Schools Grant BG0015,DSG High Needs Block,Central Support and Other Recharges,689988,Unclassified E690,05/07/2022,4021238-JUNE22TOPUP,"1,228.00",NORTH DURHAM ACADEMY.
Regeneration Economy and Growth,Culture Sport and Tourism,Premises,120009,Energy Costs,05/07/2022,4021157-16414,"2,036.67",IMPALA ESTATES LTD.
Adult and Health Services,Head of Adults,Supplies and Services,304259,Equipment and Materials,05/07/2022,4021319-454704,"1,397.50",THE HELPING HAND CO (LEDBURY) LTD.
Regeneration Economy and Growth,Development and Housing,Supplies and Services,304259,Equipment and Materials,05/07/2022,4021363-0000335829,"1,622.16",YORK SURVEY SUPPLY CENTRE LTD.
Regeneration Economy and Growth,Corporate Property and Land,Supplies and Services,304252,Equipment and Materials,05/07/2022,4020982-11985,"1,248.00",ASPECT FIRE SOLUTIONS LTD.
Children and Young Peoples Services,Head of Education and Skills,Supplies and Services,338032,Services,05/07/2022,4021283-RSI-0421,"5,915.50",ROCKET SCIENCE (UK) LTD.
Children and Young Peoples Services,Head of Childrens Social Care,Supplies and Services,338044,Services,05/07/2022,4021077-CB-1-130622,651.30,DR URSULA CAWTHORNE T/A CAWTHORNE PSYCHOLOGICAL SERVICES LTD.
Children and Young Peoples Services,Head of Childrens Social Care,Supplies and Services,338044,Services,05/07/2022,4021272-22165/1,775.00,PSYCHREP UK LTD.
Neighbourhoods and Climate Change,Technical Services CM0300,Supplies and Services,304358,Equipment and Materials,05/07/2022,4021288-3199,745.50,S & R LANDSCAPES.
Adult and Health Services,Head of Adults,Third Party Payments,472101,Purchase of Care,05/07/2022,4020979-I-22-4997409,910.00,APM CLEANING LTD.
Regeneration Economy and Growth,Business Durham CL0850,Supplies and Services,384540,Miscellaneous Expenses,05/07/2022,4021250-137713,585.00,OFFSTONE PUBLISHING.
Adult and Health Services,Head of Adults,Supplies and Services,338045,Services,05/07/2022,4021066-INVAJF373,"1,650.00",DEANS COURT CHAMBERS.
Regeneration Economy and Growth,Development and Housing,Supplies and Services,338045,Services,05/07/2022,4021356-3649893,"6,380.60",WOMBLE BOND DICKINSON (UK) LLP.
Children and Young Peoples Services,Head of Education and Skills,Supplies and Services,304245,Equipment and Materials,05/07/2022,4021144-101502,990.00,HIRE EDUCATION LTD T/A STARBECK EDUCATIONAL RESOURCES LTD.
Adult and Health Services,Commissioning inc Supporting People,Third Party Payments,479111,Purchase of Care,05/07/2022,4020979-INV-2241,"2,821.00",APM CLEANING LTD.
Children and Young Peoples Services,Head of Education and Skills,Supplies and Services,384199,Miscellaneous Expenses,05/07/2022,4021235-DURHAMWORKS220622,550.00,REDACTED - PAYMENT TO INDIVIDUAL
Regeneration Economy and Growth,Culture Sport and Tourism,Supplies and Services,384199,Miscellaneous Expenses,05/07/2022,4021246-00020968,"1,551.12",NSL LTD.
Regeneration Economy and Growth,Development and Housing,Supplies and Services,384199,Miscellaneous Expenses,05/07/2022,4021297-2022-305,"7,350.00",SOLMEK LTD.
Resources BK0010,Procurement Sales & Business Services,Supplies and Services,384199,Miscellaneous Expenses,05/07/2022,4020969-C67151,"2,546.04",ALLIED PUBLICITY SERVICES (MANCHESTER) LTD.
Children and Young Peoples Services,Head of Early Help Inclusion & Vulnerable Children.,Supplies and Services,338099,Services,05/07/2022,4021359-46963,779.60,WRIXON SECURITY SERVICES LTD T/A WRIXON CARE.
Regeneration Economy and Growth,Transport and Contracted Services,Supplies and Services,338099,Services,05/07/2022,4021276-0000090776,"1,950.00",RATCLIFFE MEDIA LTD T/A ADVERTA.
Dedicated Schools Grant BG0015,DSG High Needs Block,Central Support and Other Recharges,689989,Unclassified E690,05/07/2022,4021003-JUNE22TOPUP,"1,579.00",BISHOP HOGARTH CATHOLIC EDUCATION TRUST.
Dedicated Schools Grant BG0015,DSG High Needs Block,Central Support and Other Recharges,689989,Unclassified E690,05/07/2022,4021005-JUNE22TOPUP,"2,077.00",BISHOP WILKINSON CE TRUST.
Dedicated Schools Grant BG0015,DSG High Needs Block,Central Support and Other Recharges,689989,Unclassified E690,05/07/2022,4021078-JUNE22TOPUP,"1,232.00",DURHAM & NEWCASTLE DIOCESAN LEARNING TRUST T/A STANHOPE BARRINGTON C OF E PRIMARY SCHOOL.
Dedicated Schools Grant BG0015,DSG High Needs Block,Central Support and Other Recharges,689989,Unclassified E690,05/07/2022,4021042-JUNE22TOPUP,"1,315.00",CLEVES CROSS LEARNING TRUST T/A ROSA STREET PRIMARY SCHOOL.
Dedicated Schools Grant BG0015,DSG High Needs Block,Central Support and Other Recharges,689989,Unclassified E690,05/07/2022,4021068-JUNE22TOPUP-1,"1,197.00",DENE ACADEMY.
Neighbourhoods and Climate Change,Community Protection,Third Party Payments,430100,Rendered by Private Contractors,05/07/2022,4021081-HIRE072022,"1,400.00",DURHAM ST NICHOLAS PCC.
Neighbourhoods and Climate Change,Technical Services CM0300,Third Party Payments,430100,Rendered by Private Contractors,05/07/2022,4021159-INV-201226,"2,700.00",INTEGRATED SKILLS LTD.
Neighbourhoods and Climate Change,Community Protection,Third Party Payments,430100,Rendered by Private Contractors,05/07/2022,4021365-1959,620.00,YOU`RE SECURE NORTHEAST.
Regeneration Economy and Growth,Corporate Property and Land,Third Party Payments,430100,Rendered by Private Contractors,05/07/2022,4021049-SRO26957,615.00,CONSIDERATE CONSTRUCTORS SCHEME.
Regeneration Economy and Growth,Corporate Property and Land,Third Party Payments,430100,Rendered by Private Contractors,05/07/2022,4020997-SI-7059,600.00,BELL CONTROL SOLUTIONS LTD.
Regeneration Economy and Growth,Corporate Property and Land,Third Party Payments,430100,Rendered by Private Contractors,05/07/2022,4021204-2041,"3,908.00",MITREPOINT LTD T/A ROOFCLAD SYSTEMS.
Regeneration Economy and Growth,Corporate Property and Land,Third Party Payments,430100,Rendered by Private Contractors,05/07/2022,4021231-38666,"20,675.00",NE & C WINDOWS & DOORS LTD.
Regeneration Economy and Growth,Corporate Property and Land,Third Party Payments,430100,Rendered by Private Contractors,05/07/2022,4021292-4010,"30,064.30",SCH SITE SERVICES LTD.
Regeneration Economy and Growth,Corporate Property and Land,Third Party Payments,430100,Rendered by Private Contractors,05/07/2022,4021293-23732,"87,075.03",SEYMOUR (CIVIL ENGINEERING CONTRACTORS) LTD.
Dedicated Schools Grant BG0015,DSG High Needs Block,Third Party Payments,440080,Other third party payments E440,05/07/2022,4021082-AUT-SPR21-22,"2,348.00",DURHAM UTC LTD (UNIVERSITY TECHNICAL COLLEGE).
Dedicated Schools Grant BG0015,DSG High Needs Block,Third Party Payments,440080,Other third party payments E440,05/07/2022,4021082-JUNE22TOPUP-1,"1,224.00",DURHAM UTC LTD (UNIVERSITY TECHNICAL COLLEGE).
Dedicated Schools Grant BG0015,DSG High Needs Block,Third Party Payments,440080,Other third party payments E440,05/07/2022,4021091-JUNE22TOPUP,"3,737.00",EDUCATION VILLAGE ACADEMY TRUST.*
Dedicated Schools Grant BG0015,DSG High Needs Block,Third Party Payments,440080,Other third party payments E440,05/07/2022,4021153-P16PLACEMENT,"6,000.00",HUMANKIND CHARITY.
Resources BK0010,Transactional & Customer Services,Supplies and Services,340001,Postages E340,05/07/2022,4021285-9065149507,"20,719.48",ROYAL MAIL GROUP PLC.
Resources BK0010,Transactional & Customer Services,Supplies and Services,340001,Postages E340,05/07/2022,4021285-9065191246,"14,529.46",ROYAL MAIL GROUP PLC.
Resources BK0010,Corporate Finance & Commercial Services,Supplies and Services,338066,Services,05/07/2022,4021187-DFE80204976,"19,500.00",LINK TREASURY SERVICES LTD.
Adult and Health Services,Public Health CC0450,Third Party Payments,460803,Contract Payments,05/07/2022,4021153-084/23/1804,"12,500.00",HUMANKIND CHARITY.
Dedicated Schools Grant BG0015,Dedicated Schools Grant CG0050,Central Support and Other Recharges,615208,Support Services,05/07/2022,4021088-RES-07-2022-019,577.93,EDEN LEARNING TRUST T/A WOODHAM ACADEMY.
Dedicated Schools Grant BG0015,Dedicated Schools Grant CG0050,Central Support and Other Recharges,615208,Support Services,05/07/2022,4021088-RES-07-2022-020,"1,011.37",EDEN LEARNING TRUST T/A WOODHAM ACADEMY.
Dedicated Schools Grant BG0015,DSG High Needs Block,Transfer Payments,510025,School Children,05/07/2022,4021016-JUNE22TOPUP,"1,312.00",BUSY BEARS (DURHAM) LTD.
Dedicated Schools Grant BG0015,DSG High Needs Block,Transfer Payments,510025,School Children,05/07/2022,4021024-JUNE22TOPUP,"1,312.00",CASTLE KINDERGARTEN LTD.
Dedicated Schools Grant BG0015,DSG High Needs Block,Transfer Payments,510025,School Children,05/07/2022,4021071-JUNE22TOPUP,660.00,DO RE MI DAY NURSERY.
Dedicated Schools Grant BG0015,DSG High Needs Block,Transfer Payments,510025,School Children,05/07/2022,4021095-JUNE22TOPUP,750.00,EMERALDS LITTLE GEMS DAYCARE LTD.
Dedicated Schools Grant BG0015,DSG High Needs Block,Transfer Payments,510025,School Children,05/07/2022,4021248-JUNE22TOPUP,879.00,NURSERYTIME LTD.
Dedicated Schools Grant BG0015,DSG High Needs Block,Transfer Payments,510025,School Children,05/07/2022,4021351-JUNE22TOPUP,621.00,WAYMAN DEVELOPMENTS LTD T/A CHILDSPLAY PRIVATE NURSERY.
Children and Young Peoples Services,Head of Education and Skills,Transfer Payments,510027,School Children,05/07/2022,4021305-JUNE22TOPUP,655.00,SUNSHINE DAY NURSERY LTD.
Adult and Health Services,Head of Adults,Transport,230005,Contract Hire,05/07/2022,4020957-62210,"1,470.00",24/7 TAXI SERVICES (PETERLEE) LTD.
Adult and Health Services,Head of Adults,Transport,230005,Contract Hire,05/07/2022,4020957-62230,936.00,24/7 TAXI SERVICES (PETERLEE) LTD.
Adult and Health Services,Head of Adults,Transport,230005,Contract Hire,05/07/2022,4020989-290622,"1,200.00",AVALON TAXIS.
Adult and Health Services,Head of Adults,Transport,230005,Contract Hire,05/07/2022,4021087-1339,"2,240.00",EAST DURHAM TAXIS.
Adult and Health Services,Head of Adults,Transport,230005,Contract Hire,05/07/2022,4021087-1345,"1,220.00",EAST DURHAM TAXIS.
Adult and Health Services,Head of Adults,Transport,230005,Contract Hire,05/07/2022,4021087-1352,"1,596.00",EAST DURHAM TAXIS.
Adult and Health Services,Head of Adults,Transport,230005,Contract Hire,05/07/2022,4021168-47-JUNE22,"1,674.00",JOHN CRAKE & SONS MINI BUSES LTD.
Adult and Health Services,Head of Adults,Transport,230005,Contract Hire,05/07/2022,4021168-48-JUNE22,560.00,JOHN CRAKE & SONS MINI BUSES LTD.
Adult and Health Services,Head of Adults,Transport,230005,Contract Hire,05/07/2022,4021168-49-JUNE22,663.68,JOHN CRAKE & SONS MINI BUSES LTD.
Adult and Health Services,Head of Adults,Transport,230005,Contract Hire,05/07/2022,4020976-00585,"3,000.00",REDACTED - PAYMENT TO INDIVIDUAL
Adult and Health Services,Head of Adults,Transport,230005,Contract Hire,05/07/2022,4021064-F029,746.64,REDACTED - PAYMENT TO INDIVIDUAL
Adult and Health Services,Head of Adults,Transport,230005,Contract Hire,05/07/2022,4021139-09-JUNE22,665.00,REDACTED - PAYMENT TO INDIVIDUAL
Adult and Health Services,Head of Adults,Transport,230005,Contract Hire,05/07/2022,4021218-10-CLS088,500.00,REDACTED - PAYMENT TO INDIVIDUAL
Adult and Health Services,Head of Adults,Transport,230005,Contract Hire,05/07/2022,4021218-10-DW152,525.00,REDACTED - PAYMENT TO INDIVIDUAL
Adult and Health Services,Head of Adults,Transport,230005,Contract Hire,05/07/2022,4021330-0002365,"3,099.00",REDACTED - PAYMENT TO INDIVIDUAL
Neighbourhoods and Climate Change,Environmental Services,Transport,230005,Contract Hire,05/07/2022,4021065-678569,543.40,DAWSONGROUP VANS LTD.
Neighbourhoods and Climate Change,Environmental Services,Transport,230005,Contract Hire,05/07/2022,4021065-678570,526.50,DAWSONGROUP VANS LTD.
Neighbourhoods and Climate Change,Environmental Services,Transport,230005,Contract Hire,05/07/2022,4021065-678947,627.00,DAWSONGROUP VANS LTD.
Neighbourhoods and Climate Change,Environmental Services,Transport,230005,Contract Hire,05/07/2022,4021065-678950,627.00,DAWSONGROUP VANS LTD.
Neighbourhoods and Climate Change,Environmental Services,Transport,230005,Contract Hire,05/07/2022,4021065-678951,627.00,DAWSONGROUP VANS LTD.
Neighbourhoods and Climate Change,Environmental Services,Transport,230005,Contract Hire,05/07/2022,4021065-678952,627.00,DAWSONGROUP VANS LTD.
Neighbourhoods and Climate Change,Environmental Services,Transport,230005,Contract Hire,05/07/2022,4021065-678963,"1,156.80",DAWSONGROUP VANS LTD.
Neighbourhoods and Climate Change,Environmental Services,Transport,230005,Contract Hire,05/07/2022,4021229-153375,"2,600.00",ND BROWN LTD.
Neighbourhoods and Climate Change,Environmental Services,Transport,230005,Contract Hire,05/07/2022,4021229-153376,"1,281.30",ND BROWN LTD.
Neighbourhoods and Climate Change,Environmental Services,Transport,230005,Contract Hire,05/07/2022,4021244-IW06250796,"2,095.64",NORTHGATE VEHICLE HIRE LTD.
Adult and Health Services,Central/Other,Supplies and Services,338043,Services,05/07/2022,4021353-02092801,"4,814.00",WEIGHTMANS LLP.
Dedicated Schools Grant BG0015,DSG High Needs Block,Central Support and Other Recharges,689987,Unclassified E690,05/07/2022,4020991-JUNE22TOPUP,"2,405.00",BARBARA PRIESTMAN ACADEMY.
Dedicated Schools Grant BG0015,DSG High Needs Block,Central Support and Other Recharges,689987,Unclassified E690,05/07/2022,4021267-AUT-SPR21-22,"8,811.00",PORTLAND ACADEMY.
Dedicated Schools Grant BG0015,DSG High Needs Block,Central Support and Other Recharges,689987,Unclassified E690,05/07/2022,4021267-JUNE22TOPUP,"5,560.00",PORTLAND ACADEMY.
Dedicated Schools Grant BG0015,DSG High Needs Block,Central Support and Other Recharges,689987,Unclassified E690,05/07/2022,4021322-JUNE22TOPUP,"1,980.00",THE NEWCASTLE SPECIAL SCHOOLS TRUST T/A HADRIAN SCHOOL.
Resources BK0010,Digital Services,Stock A926,926900,Stock in hand-Inventory system,05/07/2022,4021360-LB90062,"2,805.36",XMA LTD.
Dedicated Schools Grant BG0015,DSG High Needs Block,Central Support and Other Recharges,689996,Unclassified E690,05/07/2022,4021148-RES-07-2022-020,"121,573.00",HOPE WOOD ACADEMY.
Adult and Health Services,Public Health CC0450,Supplies and Services,338089,Services,05/07/2022,4021083-20327,600.00,DYSART 57 LTD.
Regeneration Economy and Growth,Culture Sport and Tourism,Supplies and Services,384302,Miscellaneous Expenses,06/07/2022,4021433-0417,500.00,REDACTED - PAYMENT TO INDIVIDUAL
Regeneration Economy and Growth,Culture Sport and Tourism,Supplies and Services,384302,Miscellaneous Expenses,06/07/2022,4021422-INV-0069,"2,500.00",BLOWIN` A HOOLEY THEATRE LTD.
Regeneration Economy and Growth,Culture Sport and Tourism,Supplies and Services,384302,Miscellaneous Expenses,06/07/2022,4021416-BEC-DFC-4100766417-2906022.,750.00,REDACTED - PAYMENT TO INDIVIDUAL
Regeneration Economy and Growth,Business Durham CL0850,Supplies and Services,336005,Advertising E336,06/07/2022,4021652-40270522,775.00,NEWSQUEST (YORKSHIRE & NORTH EAST) LTD.
Regeneration Economy and Growth,Development and Housing,Employees,080025,Agency Staff,06/07/2022,4021531-2461018,"162,185.61",GEOMETRIC RESULTS INTERNATIONAL.
Children and Young Peoples Services,Head of Early Help Inclusion & Vulnerable Children.,Premises,108251,Service Repairs and Maintenance,06/07/2022,4021404-1221985458,"4,853.10",ASSA ABLOY LTD.*
Resources BK0010,Digital Services,Supplies and Services,304040,Equipment and Materials,06/07/2022,4021658-0000003660,765.94,NOMINET UK.
Resources BK0010,Legal & Democratic Services,Supplies and Services,338042,Services,06/07/2022,4021787-291196/INVJO576,750.00,TRINITY CHAMBERS.
Resources BK0010,Legal & Democratic Services,Supplies and Services,338042,Services,06/07/2022,4021787-295406/INVTY347,"4,030.00",TRINITY CHAMBERS.
Resources BK0010,Legal & Democratic Services,Supplies and Services,338042,Services,06/07/2022,4021787-295433/INVKW623,"1,030.00",TRINITY CHAMBERS.
Resources BK0010,Legal & Democratic Services,Supplies and Services,338042,Services,06/07/2022,4021787-299055/INVKIO201,"3,810.00",TRINITY CHAMBERS.
Resources BK0010,Legal & Democratic Services,Supplies and Services,338042,Services,06/07/2022,4021787-299333/INVPG376,720.00,TRINITY CHAMBERS.
Children and Young Peoples Services,Head of Childrens Social Care,Third Party Payments,440046,Other third party payments E440,06/07/2022,4023040-INV-3396,"3,031.00",WE CARE RECRUITMENT SOLUTIONS LTD.
Children and Young Peoples Services,Head of Childrens Social Care,Third Party Payments,440046,Other third party payments E440,06/07/2022,4023040-INV-3398,"2,188.00",WE CARE RECRUITMENT SOLUTIONS LTD.
Children and Young Peoples Services,Head of Childrens Social Care,Third Party Payments,440046,Other third party payments E440,06/07/2022,4023040-INV-3400,"3,637.20",WE CARE RECRUITMENT SOLUTIONS LTD.
Children and Young Peoples Services,Head of Childrens Social Care,Third Party Payments,440046,Other third party payments E440,06/07/2022,4023040-INV-3447,"3,637.20",WE CARE RECRUITMENT SOLUTIONS LTD.
Regeneration Economy and Growth,Culture Sport and Tourism,Supplies and Services,312013,Newspapers books and periodicals E312,06/07/2022,4021402-6721715,551.84,ASKEWS & HOLTS LIBRARY SERVICES LTD.
Regeneration Economy and Growth,Culture Sport and Tourism,Supplies and Services,312017,Newspapers books and periodicals E312,06/07/2022,4021402-6717694,751.32,ASKEWS & HOLTS LIBRARY SERVICES LTD.
Regeneration Economy and Growth,Culture Sport and Tourism,Supplies and Services,312017,Newspapers books and periodicals E312,06/07/2022,4021402-6717695,533.40,ASKEWS & HOLTS LIBRARY SERVICES LTD.
Regeneration Economy and Growth,Culture Sport and Tourism,Third Party Payments,430131,Rendered by Private Contractors,06/07/2022,4021770-TT/20220602,700.00,TERESA CARTER T/A T TRAINING.
Children and Young Peoples Services,Head of Early Help Inclusion & Vulnerable Children.,Supplies and Services,324500,Provisions E324,06/07/2022,4021468-24525,"16,752.89",CREATIVE MANAGEMENT SERVICES LTD.
Children and Young Peoples Services,Head of Childrens Social Care,Third Party Payments,440062,Other third party payments E440,06/07/2022,4022249-PIG_133986,"1,976.37",DALE CARE LTD.
Children and Young Peoples Services,Head of Childrens Social Care,Third Party Payments,440062,Other third party payments E440,06/07/2022,4022322-PIG_133982,"2,815.89",EMBRACING CARE.
Children and Young Peoples Services,Head of Childrens Social Care,Third Party Payments,440062,Other third party payments E440,06/07/2022,4022746-PIG_133430,668.99,MY HOMECARE ASSISTANCE LTD T/A MY HOMECARE.
Children and Young Peoples Services,Head of Childrens Social Care,Third Party Payments,440062,Other third party payments E440,06/07/2022,4022782-PIG_133433,"2,404.88",ORCHARD HOME CARE SERVICES LTD.
Children and Young Peoples Services,Head of Childrens Social Care,Third Party Payments,440062,Other third party payments E440,06/07/2022,4022831-PIG_133434,"1,121.98",PREMIER COMMUNITY CARE LTD.
Resources BK0010,Digital Services,Supplies and Services,342215,Computers and Communications,06/07/2022,4021760-141121,"1,177.11",SWITCHSHOP LTD.
Resources BK0010,Digital Services,Vehicles Equipment Furniture and Fittings,912701,Computer equipment,06/07/2022,4021486-7402826242,"11,959.86",DELL COMPUTER CORPORATION LTD.
Resources BK0010,Digital Services,Vehicles Equipment Furniture and Fittings,912701,Computer equipment,06/07/2022,4021564-2100279929,"1,856.40",INSIGHT DIRECT (UK) LTD.
Regeneration Economy and Growth,Transport and Contracted Services,Supplies and Services,342051,Computers and Communications,06/07/2022,4021537-0174752,965.00,GRAITEC LTD.
Resources BK0010,Digital Services,Supplies and Services,342051,Computers and Communications,06/07/2022,4021760-141108,"4,067.40",SWITCHSHOP LTD.
Children and Young Peoples Services,Head of Education and Skills,Construction work A908,908105,Construction work,06/07/2022,4021539-9427,"7,114.11",GREEN TEAM PARTNERSHIP.
Children and Young Peoples Services,Head of Education and Skills,Construction work A908,908105,Construction work,06/07/2022,4021583-0000083675,"7,920.00",JOHN WADE (HAULAGE) LTD.
Children and Young Peoples Services,Head of Education and Skills,Construction work A908,908105,Construction work,06/07/2022,4021617-160305,880.00,LUCION ENVIRONMENTAL LLP LTD.
Children and Young Peoples Services,Head of Childrens Social Care,Construction work A908,908105,Construction work,06/07/2022,4021617-160308,880.00,LUCION ENVIRONMENTAL LLP LTD.
Children and Young Peoples Services,Head of Education and Skills,Construction work A908,908105,Construction work,06/07/2022,4021695-900966175,"22,847.75",PORTAKABIN LTD.
Children and Young Peoples Services,Head of Education and Skills,Construction work A908,908105,Construction work,06/07/2022,4021720-TEC602183,"1,950.67",RPS CONSULTING SERVICES LTD.
Children and Young Peoples Services,Head of Education and Skills,Construction work A908,908105,Construction work,06/07/2022,4021743-2022-339,"4,436.00",SOLMEK LTD.
Regeneration Economy and Growth,Culture Sport and Tourism,Construction work A908,908105,Construction work,06/07/2022,4021487-DCL/3060,750.00,DENDRA CONSULTING LTD.
Regeneration Economy and Growth,Culture Sport and Tourism,Construction work A908,908105,Construction work,06/07/2022,4021617-160287,"8,360.00",LUCION ENVIRONMENTAL LLP LTD.
Children and Young Peoples Services,Head of Education and Skills,Supplies and Services,338027,Services,06/07/2022,4021633-11-2022,"3,712.50",REDACTED - PAYMENT TO INDIVIDUAL
Neighbourhoods and Climate Change,Technical Services CM0300,Supplies and Services,338027,Services,06/07/2022,4021809-64571706,"3,500.00",WSP UK LTD.
Neighbourhoods and Climate Change,Technical Services CM0300,Supplies and Services,338027,Services,06/07/2022,4021809-64571710,"1,995.00",WSP UK LTD.
Neighbourhoods and Climate Change,Technical Services CM0300,Supplies and Services,338027,Services,06/07/2022,4021809-64572646,"1,365.00",WSP UK LTD.
Neighbourhoods and Climate Change,Technical Services CM0300,Supplies and Services,338027,Services,06/07/2022,4021809-64573700,"2,625.00",WSP UK LTD.
Neighbourhoods and Climate Change,Technical Services CM0300,Supplies and Services,338027,Services,06/07/2022,4021685-64022067,"7,327.83",PELL FRISCHMANN CONSULTANTS LTD.
Children and Young Peoples Services,Head of Education and Skills,Fees,901002,Consultants fees 901002,06/07/2022,4021490-64021954,"6,000.00",DESCO (DESIGN & CONSULTANCY) LTD.
Children and Young Peoples Services,Head of Education and Skills,Fees,901002,Consultants fees 901002,06/07/2022,4021720-TEC602095,"4,932.00",RPS CONSULTING SERVICES LTD.
Children and Young Peoples Services,Head of Education and Skills,Fees,901002,Consultants fees 901002,06/07/2022,4021720-TEC602142,"2,500.00",RPS CONSULTING SERVICES LTD.
Neighbourhoods and Climate Change,Environmental Services,Fees,901002,Consultants fees 901002,06/07/2022,4021490-64021987,"8,000.00",DESCO (DESIGN & CONSULTANCY) LTD.
Neighbourhoods and Climate Change,Environmental Services,Fees,901002,Consultants fees 901002,06/07/2022,4021490-64021988,"5,670.20",DESCO (DESIGN & CONSULTANCY) LTD.
Neighbourhoods and Climate Change,Environmental Services,Fees,901002,Consultants fees 901002,06/07/2022,4021720-TEC602104,"1,500.00",RPS CONSULTING SERVICES LTD.
Regeneration Economy and Growth,Development and Housing,Fees,901002,Consultants fees 901002,06/07/2022,4021421-SIN034710,"122,954.92",BLOOM PROCUREMENT SERVICES LTD (FORMERLY NEPRO LTD).
Regeneration Economy and Growth,Corporate Property and Land,Fees,901002,Consultants fees 901002,06/07/2022,4021490-64021990,"9,068.00",DESCO (DESIGN & CONSULTANCY) LTD.
Regeneration Economy and Growth,Culture Sport and Tourism,Fees,901002,Consultants fees 901002,06/07/2022,4021490-64021992,"1,000.00",DESCO (DESIGN & CONSULTANCY) LTD.
Regeneration Economy and Growth,Development and Housing,Fees,901002,Consultants fees 901002,06/07/2022,4021498-109898,838.00,E3 ECOLOGY LTD.
Regeneration Economy and Growth,Business Durham CL0850,Fees,901002,Consultants fees 901002,06/07/2022,4021720-TEC602061,700.00,RPS CONSULTING SERVICES LTD.
Regeneration Economy and Growth,Corporate Property and Land,Fees,901002,Consultants fees 901002,06/07/2022,4021720-TEC602066,702.00,RPS CONSULTING SERVICES LTD.
Regeneration Economy and Growth,Corporate Property and Land,Fees,901002,Consultants fees 901002,06/07/2022,4021720-TEC602195,"1,246.00",RPS CONSULTING SERVICES LTD.
Children and Young Peoples Services,Head of Education and Skills,Transport,230034,Contract Hire,06/07/2022,4021589-1295,"3,876.00",K & R TAXIS (STANLEY).
Children and Young Peoples Services,Head of Education and Skills,Transport,230034,Contract Hire,06/07/2022,4021604-3036,"1,330.00",LD TAXIS.
Children and Young Peoples Services,Head of Education and Skills,Transport,230034,Contract Hire,06/07/2022,4021639-KDK/JUNE22,"1,434.69",REDACTED - PAYMENT TO INDIVIDUAL
Children and Young Peoples Services,Head of Education and Skills,Transport,230034,Contract Hire,06/07/2022,4021752-004-JUNE22,"1,939.71",REDACTED - PAYMENT TO INDIVIDUAL
Children and Young Peoples Services,Head of Education and Skills,Transport,230035,Contract Hire,06/07/2022,4021636-WHIT310622,"1,199.00",REDACTED - PAYMENT TO INDIVIDUAL
Children and Young Peoples Services,Head of Education and Skills,Transport,230007,Contract Hire,06/07/2022,4021604-3043,"1,216.00",LD TAXIS.
Children and Young Peoples Services,Head of Education and Skills,Transport,230007,Contract Hire,06/07/2022,4021607-31221,"1,960.42",LEE`S COACHES LTD.
Children and Young Peoples Services,Head of Education and Skills,Transport,230007,Contract Hire,06/07/2022,4021607-31222,"3,723.81",LEE`S COACHES LTD.
Children and Young Peoples Services,Head of Education and Skills,Transport,230007,Contract Hire,06/07/2022,4021607-31223,"2,185.00",LEE`S COACHES LTD.
Children and Young Peoples Services,Head of Education and Skills,Transport,230007,Contract Hire,06/07/2022,4021607-31224,"2,185.00",LEE`S COACHES LTD.
Children and Young Peoples Services,Head of Education and Skills,Transport,230007,Contract Hire,06/07/2022,4021607-31225,"2,850.00",LEE`S COACHES LTD.
Children and Young Peoples Services,Head of Education and Skills,Transport,230007,Contract Hire,06/07/2022,4021622-INV06/2022-01,"1,140.00",MARK & JOHN CHISHOLM T/A (CHEVRON).
Children and Young Peoples Services,Head of Education and Skills,Transport,230007,Contract Hire,06/07/2022,4021622-INV06/2022-02,874.00,MARK & JOHN CHISHOLM T/A (CHEVRON).
Children and Young Peoples Services,Head of Education and Skills,Transport,230007,Contract Hire,06/07/2022,4021622-INV06/2022-03,846.00,MARK & JOHN CHISHOLM T/A (CHEVRON).
Children and Young Peoples Services,Head of Education and Skills,Transport,230007,Contract Hire,06/07/2022,4021636-DURHAMGATEWAY300622,940.00,REDACTED - PAYMENT TO INDIVIDUAL
Children and Young Peoples Services,Head of Education and Skills,Transport,230007,Contract Hire,06/07/2022,4021639-KDK/JUNE22-6046,650.00,REDACTED - PAYMENT TO INDIVIDUAL
Children and Young Peoples Services,Head of Education and Skills,Transport,230003,Contract Hire,06/07/2022,4021607-31218,"3,891.39",LEE`S COACHES LTD.
Children and Young Peoples Services,Head of Education and Skills,Transport,230003,Contract Hire,06/07/2022,4021607-31219,"4,718.84",LEE`S COACHES LTD.
Children and Young Peoples Services,Head of Education and Skills,Transport,230003,Contract Hire,06/07/2022,4021607-31220,"4,314.90",LEE`S COACHES LTD.
Children and Young Peoples Services,Head of Education and Skills,Transport,230009,Contract Hire,06/07/2022,4021572-0897,"1,308.72",JACKSON`S TAXI.
Children and Young Peoples Services,Head of Education and Skills,Transport,230009,Contract Hire,06/07/2022,4021610-4829,826.00,LINCAB TAXIS.
Children and Young Peoples Services,Head of Education and Skills,Transport,230009,Contract Hire,06/07/2022,4021623-KC3704,732.78,REDACTED - PAYMENT TO INDIVIDUAL
Children and Young Peoples Services,Head of Education and Skills,Transport,230009,Contract Hire,06/07/2022,4021639-KDK/JUNE22-4390,640.00,REDACTED - PAYMENT TO INDIVIDUAL
Children and Young Peoples Services,Head of Education and Skills,Transport,230009,Contract Hire,06/07/2022,4021642-307,"1,502.52",REDACTED - PAYMENT TO INDIVIDUAL
Children and Young Peoples Services,Head of Education and Skills,Transport,230006,Contract Hire,06/07/2022,4021525-1579,567.78,FMR SILVA PITA.
Children and Young Peoples Services,Head of Education and Skills,Transport,230006,Contract Hire,06/07/2022,4021593-010,600.00,KELLY`S.
Children and Young Peoples Services,Head of Education and Skills,Transport,230006,Contract Hire,06/07/2022,4021593-03,800.00,KELLY`S.
Children and Young Peoples Services,Head of Education and Skills,Transport,230006,Contract Hire,06/07/2022,4021604-3035,660.00,LD TAXIS.
Children and Young Peoples Services,Head of Education and Skills,Transport,230006,Contract Hire,06/07/2022,4021604-3037,"1,722.80",LD TAXIS.
Children and Young Peoples Services,Head of Education and Skills,Transport,230006,Contract Hire,06/07/2022,4021604-3038,"1,330.00",LD TAXIS.
Children and Young Peoples Services,Head of Education and Skills,Transport,230006,Contract Hire,06/07/2022,4021367-645,"1,028.13",REDACTED - PAYMENT TO INDIVIDUAL
Children and Young Peoples Services,Head of Education and Skills,Transport,230006,Contract Hire,06/07/2022,4021595-CHES0008,960.00,REDACTED - PAYMENT TO INDIVIDUAL
Children and Young Peoples Services,Head of Education and Skills,Transport,230006,Contract Hire,06/07/2022,4021636-DURHAMGATEWAY300622-F154,960.00,REDACTED - PAYMENT TO INDIVIDUAL
Children and Young Peoples Services,Head of Education and Skills,Transport,230006,Contract Hire,06/07/2022,4021640-JUN22-F102,550.00,REDACTED - PAYMENT TO INDIVIDUAL
Children and Young Peoples Services,Head of Education and Skills,Transport,230006,Contract Hire,06/07/2022,4021752-006-JUN22,"1,435.31",REDACTED - PAYMENT TO INDIVIDUAL
Children and Young Peoples Services,Head of Education and Skills,Transport,230010,Contract Hire,06/07/2022,4021595-BRIDGE0008,"3,396.31",REDACTED - PAYMENT TO INDIVIDUAL
Children and Young Peoples Services,Head of Education and Skills,Transport,230010,Contract Hire,06/07/2022,4021623-KC3703,"2,755.00",REDACTED - PAYMENT TO INDIVIDUAL
Children and Young Peoples Services,Head of Education and Skills,Transport,230012,Contract Hire,06/07/2022,4021589-1288,"3,132.00",K & R TAXIS (STANLEY).
Children and Young Peoples Services,Head of Education and Skills,Transport,230012,Contract Hire,06/07/2022,4021589-1289,"3,024.00",K & R TAXIS (STANLEY).
Children and Young Peoples Services,Head of Education and Skills,Transport,230012,Contract Hire,06/07/2022,4021426-10-A015,"2,250.00",REDACTED - PAYMENT TO INDIVIDUAL
Children and Young Peoples Services,Head of Education and Skills,Transport,230012,Contract Hire,06/07/2022,4021642-301,"2,252.45",REDACTED - PAYMENT TO INDIVIDUAL
Children and Young Peoples Services,Head of Education and Skills,Transport,230016,Contract Hire,06/07/2022,4021589-1296,"3,168.00",K & R TAXIS (STANLEY).
Children and Young Peoples Services,Head of Education and Skills,Transport,230008,Contract Hire,06/07/2022,4021376-06/22,"3,249.00",ADVANCE TRAVEL.
Children and Young Peoples Services,Head of Education and Skills,Transport,230008,Contract Hire,06/07/2022,4021405-DCC03JUNE22,"3,121.00",ATLAS TAXIS BISHOP AUCKLAND.
Children and Young Peoples Services,Head of Education and Skills,Transport,230008,Contract Hire,06/07/2022,4021405-DCC10JUNE22,"5,589.43",ATLAS TAXIS BISHOP AUCKLAND.
Children and Young Peoples Services,Head of Education and Skills,Transport,230008,Contract Hire,06/07/2022,4021405-DCC7JUNE22,"3,351.22",ATLAS TAXIS BISHOP AUCKLAND.
Children and Young Peoples Services,Head of Education and Skills,Transport,230008,Contract Hire,06/07/2022,4021562-1073,"2,405.40",I & R EXECUTIVE TRAVEL.
Children and Young Peoples Services,Head of Education and Skills,Transport,230008,Contract Hire,06/07/2022,4021562-1074,"1,879.48",I & R EXECUTIVE TRAVEL.
Children and Young Peoples Services,Head of Education and Skills,Transport,230008,Contract Hire,06/07/2022,4021572-0895,"2,043.26",JACKSON`S TAXI.
Children and Young Peoples Services,Head of Education and Skills,Transport,230008,Contract Hire,06/07/2022,4021572-0896,"2,156.12",JACKSON`S TAXI.
Children and Young Peoples Services,Head of Education and Skills,Transport,230008,Contract Hire,06/07/2022,4021572-0898,"2,849.80",JACKSON`S TAXI.
Children and Young Peoples Services,Head of Education and Skills,Transport,230008,Contract Hire,06/07/2022,4021589-1286,"4,880.70",K & R TAXIS (STANLEY).
Children and Young Peoples Services,Head of Education and Skills,Transport,230008,Contract Hire,06/07/2022,4021589-1287,"3,528.00",K & R TAXIS (STANLEY).
Children and Young Peoples Services,Head of Education and Skills,Transport,230008,Contract Hire,06/07/2022,4021589-1290,"5,058.45",K & R TAXIS (STANLEY).
Children and Young Peoples Services,Head of Education and Skills,Transport,230008,Contract Hire,06/07/2022,4021589-1291,"2,973.42",K & R TAXIS (STANLEY).
Children and Young Peoples Services,Head of Education and Skills,Transport,230008,Contract Hire,06/07/2022,4021589-1292,"2,592.00",K & R TAXIS (STANLEY).
Children and Young Peoples Services,Head of Education and Skills,Transport,230008,Contract Hire,06/07/2022,4021589-1293,"2,592.00",K & R TAXIS (STANLEY).
Children and Young Peoples Services,Head of Education and Skills,Transport,230008,Contract Hire,06/07/2022,4021589-1294,"3,675.73",K & R TAXIS (STANLEY).
Children and Young Peoples Services,Head of Education and Skills,Transport,230008,Contract Hire,06/07/2022,4021604-3034,"1,644.76",LD TAXIS.
Children and Young Peoples Services,Head of Education and Skills,Transport,230008,Contract Hire,06/07/2022,4021604-3042,"2,532.89",LD TAXIS.
Children and Young Peoples Services,Head of Education and Skills,Transport,230008,Contract Hire,06/07/2022,4021604-3044,"1,520.00",LD TAXIS.
Children and Young Peoples Services,Head of Education and Skills,Transport,230008,Contract Hire,06/07/2022,4021609-010-JUNE22,"3,690.56",LIMASEC LTD T/A LIMA TRANSPORT.
Children and Young Peoples Services,Head of Education and Skills,Transport,230008,Contract Hire,06/07/2022,4021610-4826,"2,395.14",LINCAB TAXIS.
Children and Young Peoples Services,Head of Education and Skills,Transport,230008,Contract Hire,06/07/2022,4021610-4827,"3,286.05",LINCAB TAXIS.
Children and Young Peoples Services,Head of Education and Skills,Transport,230008,Contract Hire,06/07/2022,4021610-4828,"3,131.58",LINCAB TAXIS.
Children and Young Peoples Services,Head of Education and Skills,Transport,230008,Contract Hire,06/07/2022,4021622-INV06/2022-07,"1,410.00",MARK & JOHN CHISHOLM T/A (CHEVRON).
Children and Young Peoples Services,Head of Education and Skills,Transport,230008,Contract Hire,06/07/2022,4021622-INV06/2022-08,"2,910.42",MARK & JOHN CHISHOLM T/A (CHEVRON).
Children and Young Peoples Services,Head of Education and Skills,Transport,230008,Contract Hire,06/07/2022,4021622-INV06/2022-15,"1,482.00",MARK & JOHN CHISHOLM T/A (CHEVRON).
Children and Young Peoples Services,Head of Education and Skills,Transport,230008,Contract Hire,06/07/2022,4021448-INV-078,520.00,REDACTED - PAYMENT TO INDIVIDUAL
Children and Young Peoples Services,Head of Education and Skills,Transport,230008,Contract Hire,06/07/2022,4021584-0041,"2,598.44",REDACTED - PAYMENT TO INDIVIDUAL
Children and Young Peoples Services,Head of Education and Skills,Transport,230008,Contract Hire,06/07/2022,4021608-0093,"2,280.00",REDACTED - PAYMENT TO INDIVIDUAL
Children and Young Peoples Services,Head of Education and Skills,Transport,230008,Contract Hire,06/07/2022,4021608-0094,"2,831.00",REDACTED - PAYMENT TO INDIVIDUAL
Children and Young Peoples Services,Head of Education and Skills,Transport,230008,Contract Hire,06/07/2022,4021623-KC-3700,591.09,REDACTED - PAYMENT TO INDIVIDUAL
Children and Young Peoples Services,Head of Education and Skills,Transport,230008,Contract Hire,06/07/2022,4021623-KC-3706,"3,325.00",REDACTED - PAYMENT TO INDIVIDUAL
Children and Young Peoples Services,Head of Education and Skills,Transport,230008,Contract Hire,06/07/2022,4021623-KC3701,"2,597.00",REDACTED - PAYMENT TO INDIVIDUAL
Children and Young Peoples Services,Head of Education and Skills,Transport,230008,Contract Hire,06/07/2022,4021624-0099,"2,342.51",REDACTED - PAYMENT TO INDIVIDUAL
Children and Young Peoples Services,Head of Education and Skills,Transport,230008,Contract Hire,06/07/2022,4021624-0100,"2,337.00",REDACTED - PAYMENT TO INDIVIDUAL
Children and Young Peoples Services,Head of Education and Skills,Transport,230008,Contract Hire,06/07/2022,4021624-0101,"1,281.36",REDACTED - PAYMENT TO INDIVIDUAL
Children and Young Peoples Services,Head of Education and Skills,Transport,230008,Contract Hire,06/07/2022,4021631-INV240,"1,280.00",REDACTED - PAYMENT TO INDIVIDUAL
Children and Young Peoples Services,Head of Education and Skills,Transport,230008,Contract Hire,06/07/2022,4021638-36D,"2,396.80",REDACTED - PAYMENT TO INDIVIDUAL
Children and Young Peoples Services,Head of Education and Skills,Transport,230008,Contract Hire,06/07/2022,4021642-299,"3,358.44",REDACTED - PAYMENT TO INDIVIDUAL
Children and Young Peoples Services,Head of Education and Skills,Transport,230008,Contract Hire,06/07/2022,4021642-300,"1,822.14",REDACTED - PAYMENT TO INDIVIDUAL
Children and Young Peoples Services,Head of Education and Skills,Transport,230008,Contract Hire,06/07/2022,4021642-302,"2,700.00",REDACTED - PAYMENT TO INDIVIDUAL
Children and Young Peoples Services,Head of Education and Skills,Transport,230008,Contract Hire,06/07/2022,4021642-305,"1,862.00",REDACTED - PAYMENT TO INDIVIDUAL
Children and Young Peoples Services,Head of Education and Skills,Transport,230008,Contract Hire,06/07/2022,4021642-306,"2,063.16",REDACTED - PAYMENT TO INDIVIDUAL
Children and Young Peoples Services,Head of Education and Skills,Transport,230008,Contract Hire,06/07/2022,4021642-308,"1,650.24",REDACTED - PAYMENT TO INDIVIDUAL
Children and Young Peoples Services,Head of Education and Skills,Transport,230008,Contract Hire,06/07/2022,4021642-309,"3,420.00",REDACTED - PAYMENT TO INDIVIDUAL
Regeneration Economy and Growth,Transport and Contracted Services,Third Party Payments,430108,Rendered by Private Contractors,06/07/2022,4021650-1800011320829,"17,547.47",NEWCASTLE UPON TYNE CITY COUNCIL.
Regeneration Economy and Growth,Business Durham CL0850,Supplies and Services,384899,Miscellaneous Expenses,06/07/2022,4021768-INV-0055,"3,000.00",TEESDALE DEVELOPMENT COMPANY.
Regeneration Economy and Growth,Development and Housing,Supplies and Services,384899,Miscellaneous Expenses,06/07/2022,4021547-SD028/4,"7,650.74",HANDCRAFTED PROJECTS.
Resources BK0010,Legal & Democratic Services,Supplies and Services,338106,Services,06/07/2022,4021691-24062022,900.00,PHILLIPS & CO COSMETIC DENTISTRY.
Resources BK0010,Legal & Democratic Services,Supplies and Services,338102,Services,06/07/2022,4021387-0011517,"20,400.00",ANALYTICAL SERVICES INTERNATIONAL LTD.
Adult and Health Services,Head of Adults,Third Party Payments,473101,Purchase of Care,06/07/2022,4023061-I-22-5153716,"7,947.12",WOODCRAFT FOR LANDSCAPES CIC.
Adult and Health Services,Head of Adults,Third Party Payments,473101,Purchase of Care,06/07/2022,4022300-I-22-5153745,"1,502.67",EAST DURHAM COLLEGE.
Adult and Health Services,Head of Adults,Third Party Payments,473101,Purchase of Care,06/07/2022,4021823-I-22-5155006,"4,838.86",ACCEPT CARE LTD.
Adult and Health Services,Head of Adults,Third Party Payments,473101,Purchase of Care,06/07/2022,4022150-I-22-5154960,"2,084.26",BULLION COMMUNITY RESOURCE CENTRE.
Adult and Health Services,Head of Adults,Third Party Payments,473101,Purchase of Care,06/07/2022,4022274-I-22-5154974,"18,134.67",DEACONSTAR LTD.
Adult and Health Services,Head of Adults,Third Party Payments,473101,Purchase of Care,06/07/2022,4022283-I-22-5153782,"6,739.55",DIRECT STEPS.
Adult and Health Services,Head of Adults,Third Party Payments,473101,Purchase of Care,06/07/2022,4022293-I-22-5153532,"3,270.45",DURHAM ALLIANCE FOR COMMUNITY CARE.
Adult and Health Services,Head of Adults,Third Party Payments,473101,Purchase of Care,06/07/2022,4022293-I-22-5154976,"2,190.69",DURHAM ALLIANCE FOR COMMUNITY CARE.
Adult and Health Services,Head of Adults,Third Party Payments,473101,Purchase of Care,06/07/2022,4022293-I-22-5154977,"2,715.76",DURHAM ALLIANCE FOR COMMUNITY CARE.
Adult and Health Services,Head of Adults,Third Party Payments,473101,Purchase of Care,06/07/2022,4022293-I-22-5154978,"2,054.59",DURHAM ALLIANCE FOR COMMUNITY CARE.
Adult and Health Services,Head of Adults,Third Party Payments,473101,Purchase of Care,06/07/2022,4022293-I-22-5155039,"1,917.23",DURHAM ALLIANCE FOR COMMUNITY CARE.
Adult and Health Services,Head of Adults,Third Party Payments,473101,Purchase of Care,06/07/2022,4022302-I-22-4997378,"21,463.98",EBONEY HOME CARE LTD.
Adult and Health Services,Head of Adults,Third Party Payments,473101,Purchase of Care,06/07/2022,4022302-I-22-5153520,"21,433.68",EBONEY HOME CARE LTD.
Adult and Health Services,Head of Adults,Third Party Payments,473101,Purchase of Care,06/07/2022,4022329-I-22-5153512,"3,878.41",ENDEAVOUR WOODCRAFTS CIC.
Adult and Health Services,Head of Adults,Third Party Payments,473101,Purchase of Care,06/07/2022,4022341-I-22-5153772,"28,710.02",ETHICARE (DURHAM) LTD.
Adult and Health Services,Head of Adults,Third Party Payments,473101,Purchase of Care,06/07/2022,4022352-I-22-5155008,817.32,FIVE ACRES COMMUNITY GARDEN LTD.
Adult and Health Services,Head of Adults,Third Party Payments,473101,Purchase of Care,06/07/2022,4022378-I-22-5154730,"45,414.32",GAPPS DAY SERVICES LTD.
Adult and Health Services,Head of Adults,Third Party Payments,473101,Purchase of Care,06/07/2022,4022400-I-22-5153534,"5,891.05",GROWING TOGETHER DURHAM LTD.
Adult and Health Services,Head of Adults,Third Party Payments,473101,Purchase of Care,06/07/2022,4022400-I-22-5153783,"2,404.46",GROWING TOGETHER DURHAM LTD.
Adult and Health Services,Head of Adults,Third Party Payments,473101,Purchase of Care,06/07/2022,4022407-I-22-5153519,"12,504.28",HASWELL & DISTRICT MENCAP SOCIETY.
Adult and Health Services,Head of Adults,Third Party Payments,473101,Purchase of Care,06/07/2022,4022444-I-22-5154998,"2,414.01",HOME GROUP LTD.
Adult and Health Services,Head of Adults,Third Party Payments,473101,Purchase of Care,06/07/2022,4022455-I-22-5154570,"8,664.26",INCLUDE `IN` AUTISM.
Adult and Health Services,Head of Adults,Third Party Payments,473101,Purchase of Care,06/07/2022,4022587-I-22-5154574,"8,903.50",LION MOUTH COMMUNITY INTEREST COMPANY.
Adult and Health Services,Head of Adults,Third Party Payments,473101,Purchase of Care,06/07/2022,4022694-I-22-5153533,"2,646.80",MOVEABLE FEASTS ARTS.
Adult and Health Services,Head of Adults,Third Party Payments,473101,Purchase of Care,06/07/2022,4022752-I-22-5153542,760.00,NEUROACTIVE UK.
Adult and Health Services,Head of Adults,Third Party Payments,473101,Purchase of Care,06/07/2022,4022754-I-22-5155035,"16,164.52",NEW STEPS CARE IN THE COMMUNITY LLP.
Adult and Health Services,Head of Adults,Third Party Payments,473101,Purchase of Care,06/07/2022,4022765-I-22-5153723,"31,770.59",NORTH EAST AUTISM SOCIETY.
Adult and Health Services,Head of Adults,Third Party Payments,473101,Purchase of Care,06/07/2022,4022765-I-22-5154951,"4,197.19",NORTH EAST AUTISM SOCIETY.
Adult and Health Services,Head of Adults,Third Party Payments,473101,Purchase of Care,06/07/2022,4022775-I-22-5153748,"3,212.05",OBJECT QUEST LTD.
Adult and Health Services,Head of Adults,Third Party Payments,473101,Purchase of Care,06/07/2022,4022818-I-22-5154952,"2,581.51",PHOENIX DAY CENTRE CIC.
Adult and Health Services,Head of Adults,Third Party Payments,473101,Purchase of Care,06/07/2022,4022819-I-22-5155016,"6,858.99",PIONEERING CARE PARTNERSHIP.
Adult and Health Services,Head of Adults,Third Party Payments,473101,Purchase of Care,06/07/2022,4022853-I-22-5153766,"17,868.13",REAL CARE LTD.
Adult and Health Services,Head of Adults,Third Party Payments,473101,Purchase of Care,06/07/2022,4022697-I-22-5153553,"21,254.50",REDACTED - PAYMENT TO INDIVIDUAL
Adult and Health Services,Head of Adults,Third Party Payments,473101,Purchase of Care,06/07/2022,4022866-I-22-5154990,"1,717.40",RIDING CENTRE FOR SPECIAL PEOPLE LTD..
Adult and Health Services,Head of Adults,Third Party Payments,473101,Purchase of Care,06/07/2022,4022912-I-22-5155015,"10,403.20",SHAW TRUST GARDEN PROJECT.*
Adult and Health Services,Head of Adults,Third Party Payments,473101,Purchase of Care,06/07/2022,4022989-I-22-5154555,"2,815.84",THE HOSPITAL OF GOD AT GREATHAM.
Adult and Health Services,Head of Adults,Third Party Payments,473101,Purchase of Care,06/07/2022,4022996-I-22-5154961,"1,018.08",THE WIDER WORLD PROJECT.
Adult and Health Services,Head of Adults,Third Party Payments,473101,Purchase of Care,06/07/2022,4023007-I-22-5153550,"34,930.14",THOMPSON & HOWE LTD.
Adult and Health Services,Head of Adults,Third Party Payments,473101,Purchase of Care,06/07/2022,4023007-I-22-5153724,"14,124.32",THOMPSON & HOWE LTD.
Adult and Health Services,Head of Adults,Third Party Payments,473101,Purchase of Care,06/07/2022,4023007-I-22-5153764,"19,563.32",THOMPSON & HOWE LTD.
Adult and Health Services,Head of Adults,Third Party Payments,473101,Purchase of Care,06/07/2022,4023007-I-22-5153781,"37,207.06",THOMPSON & HOWE LTD.
Adult and Health Services,Head of Adults,Third Party Payments,473101,Purchase of Care,06/07/2022,4023007-I-22-5154969,"29,537.51",THOMPSON & HOWE LTD.
Adult and Health Services,Head of Adults,Third Party Payments,473101,Purchase of Care,06/07/2022,4023007-I-22-5154979,"33,023.26",THOMPSON & HOWE LTD.
Adult and Health Services,Head of Adults,Third Party Payments,473101,Purchase of Care,06/07/2022,4023007-I-22-5154989,"28,024.55",THOMPSON & HOWE LTD.
Adult and Health Services,Head of Adults,Third Party Payments,473101,Purchase of Care,06/07/2022,4023007-I-22-5155021,"37,037.52",THOMPSON & HOWE LTD.
Adult and Health Services,Head of Adults,Third Party Payments,473101,Purchase of Care,06/07/2022,4023009-I-22-5153763,"2,641.32",TIN ARTS LTD.
Adult and Health Services,Head of Adults,Third Party Payments,473101,Purchase of Care,06/07/2022,4023033-I-22-5153515,"10,385.08",VOIDSERVICES LTD.
Adult and Health Services,Head of Adults,Third Party Payments,473101,Purchase of Care,06/07/2022,4023041-I-22-5154557,"16,452.50",WEAR 1 CARE LTD.
Adult and Health Services,Head of Adults,Third Party Payments,473101,Purchase of Care,06/07/2022,4023042-I-22-5153769,"1,673.77",WEAR VALLEY ANGLING CIC.
Adult and Health Services,Head of Adults,Third Party Payments,486020,Service level agreements E486,06/07/2022,4022761-PIG_133414,"8,375.40",NORTH EAST AUTISM SOCIETY.
Children and Young Peoples Services,Head of Childrens Social Care,Third Party Payments,486020,Service level agreements E486,06/07/2022,4022459-PIG_134028,"4,349.13",INTEGRATING CHILDREN.
Children and Young Peoples Services,Head of Childrens Social Care,Third Party Payments,486020,Service level agreements E486,06/07/2022,4022872-PIG_133990,"10,709.45",ROC FAMILY SUPPORT LTD.
Children and Young Peoples Services,Head of Childrens Social Care,Third Party Payments,486020,Service level agreements E486,06/07/2022,4022913-PIG_133436,"2,939.87",SHEENA MILES CARE SERVICES LTD.
Neighbourhoods and Climate Change,Environmental Services,Transport,215005,Running Costs of Vehicles,06/07/2022,4021813-956138,"4,744.77",YOUR NRG LTD.
Neighbourhoods and Climate Change,Technical Services CM0300,Supplies and Services,304221,Equipment and Materials,06/07/2022,4021399-28337,755.56,ARBOR TIMBER & BUILDERS MERCHANTS LTD.
Neighbourhoods and Climate Change,Technical Services CM0300,Supplies and Services,304221,Equipment and Materials,06/07/2022,4021399-28338,"1,318.40",ARBOR TIMBER & BUILDERS MERCHANTS LTD.
Neighbourhoods and Climate Change,Technical Services CM0300,Supplies and Services,304221,Equipment and Materials,06/07/2022,4021377-33201078,"1,345.27",AGGREGATE INDUSTRIES UK LTD.
Neighbourhoods and Climate Change,Technical Services CM0300,Supplies and Services,304221,Equipment and Materials,06/07/2022,4021377-33201080,"3,340.34",AGGREGATE INDUSTRIES UK LTD.
Neighbourhoods and Climate Change,Technical Services CM0300,Supplies and Services,304221,Equipment and Materials,06/07/2022,4021418-207R01970,"1,763.30",BIFFA WASTE SERVICES LTD.
Neighbourhoods and Climate Change,Technical Services CM0300,Supplies and Services,304221,Equipment and Materials,06/07/2022,4021418-207R01994,"1,338.70",BIFFA WASTE SERVICES LTD.
Neighbourhoods and Climate Change,Environmental Services,Supplies and Services,304221,Equipment and Materials,06/07/2022,4021711-OASI0022878,"3,240.00",RIGBY TAYLOR LTD.
Neighbourhoods and Climate Change,Environmental Services,Supplies and Services,304221,Equipment and Materials,06/07/2022,4021711-OASI0022900,"2,580.00",RIGBY TAYLOR LTD.
Neighbourhoods and Climate Change,Technical Services CM0300,Supplies and Services,304221,Equipment and Materials,06/07/2022,4021755-28680,"1,161.88",STONEGRAVE AGGREGATES LTD.
Neighbourhoods and Climate Change,Technical Services CM0300,Supplies and Services,304221,Equipment and Materials,06/07/2022,4021764-9045401110,776.94,TARMAC TRADING LTD.
Regeneration Economy and Growth,Corporate Property and Land,Supplies and Services,304221,Equipment and Materials,06/07/2022,4021394-5402,"6,483.00",APEX ROOFING SPECIALISTS LTD.
Regeneration Economy and Growth,Culture Sport and Tourism,Supplies and Services,338047,Services,06/07/2022,4021803-526,"1,000.00",WGM TALENT AGENCY LTD.
Regeneration Economy and Growth,Culture Sport and Tourism,Supplies and Services,338047,Services,06/07/2022,4021455-10264,"2,194.58",COMEDY STORE MANAGEMENT T/A THE COMEDY STORE LTD.
Regeneration Economy and Growth,Culture Sport and Tourism,Supplies and Services,338047,Services,06/07/2022,4021455-10275,"1,764.05",COMEDY STORE MANAGEMENT T/A THE COMEDY STORE LTD.
Regeneration Economy and Growth,Culture Sport and Tourism,Supplies and Services,338047,Services,06/07/2022,4021482-002-JULY22,"1,200.00",REDACTED - PAYMENT TO INDIVIDUAL
Regeneration Economy and Growth,Culture Sport and Tourism,Supplies and Services,338047,Services,06/07/2022,4021708-7162,"1,000.00",REGAN MANAGEMENT LTD T/A REGAN TALENT GROUP.
Regeneration Economy and Growth,Culture Sport and Tourism,Supplies and Services,338047,Services,06/07/2022,4021776-7217,"1,953.05",THE LITTLE ANGEL THEATRE.
Children and Young Peoples Services,Head of Early Help Inclusion & Vulnerable Children.,Supplies and Services,304259,Equipment and Materials,06/07/2022,4021692-2593424578,522.75,PHONAK UK LTD.
Children and Young Peoples Services,Head of Early Help Inclusion & Vulnerable Children.,Supplies and Services,304259,Equipment and Materials,06/07/2022,4021692-2593434592,"1,411.44",PHONAK UK LTD.
Neighbourhoods and Climate Change,Environmental Services,Supplies and Services,304259,Equipment and Materials,06/07/2022,4021399-28340,701.86,ARBOR TIMBER & BUILDERS MERCHANTS LTD.
Neighbourhoods and Climate Change,Environmental Services,Supplies and Services,304259,Equipment and Materials,06/07/2022,4021805-22-0271,770.00,WM O SILMON LTD.
Neighbourhoods and Climate Change,Environmental Services,Supplies and Services,304259,Equipment and Materials,06/07/2022,4021710-157299,"3,575.00",RICKERBY LTD.
Neighbourhoods and Climate Change,Environmental Services,Supplies and Services,304259,Equipment and Materials,06/07/2022,4021711-OASI0022386,"1,944.00",RIGBY TAYLOR LTD.
Neighbourhoods and Climate Change,Environmental Services,Supplies and Services,304259,Equipment and Materials,06/07/2022,4021711-OASI0022405,"4,995.57",RIGBY TAYLOR LTD.
Resources BK0010,Digital Services,Supplies and Services,304259,Equipment and Materials,06/07/2022,4021696-INV0996322,"1,036.85",POSTURITE (UK) LTD.
Adult and Health Services,Head of Adults,Third Party Payments,474999,Purchase of Care,06/07/2022,4022923-I-22-5155615,"3,911.64",SOLEHAWK LTD T/A CRAIGIELEA CARE HOME.
Children and Young Peoples Services,Head of Early Help Inclusion & Vulnerable Children.,Supplies and Services,308011,Furniture,06/07/2022,4021714-162710,516.95,ROMPA LTD.
Regeneration Economy and Growth,Business Durham CL0850,Premises,108099,Service Repairs and Maintenance,06/07/2022,4021381-SW1548/AN,"2,377.00",ALDERCLAD LTD.
Adult and Health Services,Commissioning inc Supporting People,Third Party Payments,441001,Supporting People E441,06/07/2022,4023043-2611028,"28,706.40",WEAR VALLEY WOMENS AID LTD.
Adult and Health Services,Commissioning inc Supporting People,Third Party Payments,441001,Supporting People E441,06/07/2022,4022075-2297839,"3,306.52",ANCHOR HANOVER GROUP.
Adult and Health Services,Commissioning inc Supporting People,Third Party Payments,441001,Supporting People E441,06/07/2022,4022292-2298611,"25,312.48",DURHAM ACTION ON SINGLE HOUSING LTD.
Adult and Health Services,Commissioning inc Supporting People,Third Party Payments,441001,Supporting People E441,06/07/2022,4022301-2299070,"5,498.48",EAST DURHAM COMMUNITY INITIATIVES LTD.
Adult and Health Services,Commissioning inc Supporting People,Third Party Payments,441001,Supporting People E441,06/07/2022,4022402-2265255,"25,440.16",HARBOUR SUPPORT SERVICES.
Adult and Health Services,Commissioning inc Supporting People,Third Party Payments,441001,Supporting People E441,06/07/2022,4022442-1915253,"355,440.68",HOME GROUP LTD FORMERLY STONHAM HOUSING ASSOCIATION LTD.
Adult and Health Services,Commissioning inc Supporting People,Third Party Payments,441001,Supporting People E441,06/07/2022,4022985-2298382,"19,284.04",THE CYRENIANS LTD T/A CHANGING LIVES.
Adult and Health Services,Commissioning inc Supporting People,Third Party Payments,441001,Supporting People E441,06/07/2022,4022998-2265290,"28,678.64",THIRTEEN HOUSING GROUP LTD.
Adult and Health Services,Commissioning inc Supporting People,Third Party Payments,442002,Supporting People E442,06/07/2022,4022136-2298392,"16,862.68",BID SERVICES.
Adult and Health Services,Public Health CC0450,Third Party Payments,442002,Supporting People E442,06/07/2022,4022360-1553994,"22,384.40",FOUNDATION.
Adult and Health Services,Commissioning inc Supporting People,Third Party Payments,442002,Supporting People E442,06/07/2022,4022447-2299040,"33,646.32",HUMANKIND CHARITY.
Adult and Health Services,Commissioning inc Supporting People,Third Party Payments,442002,Supporting People E442,06/07/2022,4022695-2300339,"2,627.68",MOVING ON HOUSING.
Adult and Health Services,Head of Adults,Third Party Payments,472101,Purchase of Care,06/07/2022,4022840-I-22-5153543,"1,486.65",QUALITY FIRST CARE SERVICES LTD.
Adult and Health Services,Head of Adults,Third Party Payments,472101,Purchase of Care,06/07/2022,4022956-I-22-5154927,"133,723.53",SUPPORTIVE SRC LTD.
Adult and Health Services,Head of Adults,Third Party Payments,472101,Purchase of Care,06/07/2022,4022093-I-22-5153552,"1,040.00",APM CLEANING LTD.
Adult and Health Services,Head of Adults,Third Party Payments,472101,Purchase of Care,06/07/2022,4022139-I-22-5153743,"17,213.60",BLOSSOM HOME CARE.
Adult and Health Services,Head of Adults,Third Party Payments,472101,Purchase of Care,06/07/2022,4022172-I-22-5154576,"24,300.84",CARE VANTAGE LTD.
Adult and Health Services,Head of Adults,Third Party Payments,472101,Purchase of Care,06/07/2022,4022184-I-22-5153749,"26,905.25",CASTLE CARE TEESDALE LTD.
Adult and Health Services,Head of Adults,Third Party Payments,472101,Purchase of Care,06/07/2022,4022189-I-22-4997401,"2,068.19",CEL HOMECARE LTD.
Adult and Health Services,Head of Adults,Third Party Payments,472101,Purchase of Care,06/07/2022,4022189-I-22-5153544,"4,075.15",CEL HOMECARE LTD.
Adult and Health Services,Head of Adults,Third Party Payments,472101,Purchase of Care,06/07/2022,4022213-I-22-5153776,"26,450.76",CLASSIC RESOURCES UK LTD T/A CLASSIC RESOURCES HOMECARE.
Adult and Health Services,Head of Adults,Third Party Payments,472101,Purchase of Care,06/07/2022,4022220-I-22-5154756,"90,694.98",COMFORT CALL LTD.
Adult and Health Services,Head of Adults,Third Party Payments,472101,Purchase of Care,06/07/2022,4022226-I-22-5153545,614.25,CONFIDENCE CARE & SUPPORT LTD.
Adult and Health Services,Head of Adults,Third Party Payments,472101,Purchase of Care,06/07/2022,4022239-I-22-5154550,"2,399.52",CREATIVE SUPPORT LTD.
Adult and Health Services,Head of Adults,Third Party Payments,472101,Purchase of Care,06/07/2022,4022240-I-22-5154926,"77,100.36",CRESCENT HOMECARE LTD.
Adult and Health Services,Head of Adults,Third Party Payments,472101,Purchase of Care,06/07/2022,4022249-I-22-5154580,"437,187.73",DALE CARE LTD.
Adult and Health Services,Head of Adults,Third Party Payments,472101,Purchase of Care,06/07/2022,4022302-I-22-5154758,"21,812.92",EBONEY HOME CARE LTD.
Adult and Health Services,Head of Adults,Third Party Payments,472101,Purchase of Care,06/07/2022,4022313-I-22-5155049,"17,205.25",ELITE HOMECARE SERVICE LTD.
Adult and Health Services,Head of Adults,Third Party Payments,472101,Purchase of Care,06/07/2022,4022322-I-22-5154581,"250,627.39",EMBRACING CARE.
Adult and Health Services,Head of Adults,Third Party Payments,472101,Purchase of Care,06/07/2022,4022337-I-22-5154934,766.64,ESSENTIAL CARE & SUPPORT LTD.
Adult and Health Services,Head of Adults,Third Party Payments,472101,Purchase of Care,06/07/2022,4022341-I-22-5154561,"4,501.44",ETHICARE (DURHAM) LTD.
Adult and Health Services,Head of Adults,Third Party Payments,472101,Purchase of Care,06/07/2022,4022436-I-22-5154385,518.58,HETTON HOME CARE SERVICES.
Adult and Health Services,Head of Adults,Third Party Payments,472101,Purchase of Care,06/07/2022,4022439-I-22-5153521,536.96,HIGHLEA CARE LTD.
Adult and Health Services,Head of Adults,Third Party Payments,472101,Purchase of Care,06/07/2022,4022446-I-22-5153792,"14,161.34",HOUSING 21.
Adult and Health Services,Head of Adults,Third Party Payments,472101,Purchase of Care,06/07/2022,4022457-I-22-5154966,"4,282.19",INFINITE HOMECARE LTD.
Adult and Health Services,Head of Adults,Third Party Payments,472101,Purchase of Care,06/07/2022,4022550-I-22-5154759,"241,568.40",KELLY PARK LTD..
Adult and Health Services,Head of Adults,Third Party Payments,472101,Purchase of Care,06/07/2022,4022681-I-22-5155048,"27,467.87",MIDDLETON CARE LTD.
Adult and Health Services,Head of Adults,Third Party Payments,472101,Purchase of Care,06/07/2022,4022692-I-22-5154981,"102,411.28",MOONRISE 24HR RECRUITMENT LTD.
Adult and Health Services,Head of Adults,Third Party Payments,472101,Purchase of Care,06/07/2022,4022747-I-22-5154942,"12,090.00",MYCHOICE HOMECARE LTD.
Adult and Health Services,Head of Adults,Third Party Payments,472101,Purchase of Care,06/07/2022,4022755-I-22-5154571,"13,110.15",NEW VISION CARE SERVICES LTD.
Adult and Health Services,Head of Adults,Third Party Payments,472101,Purchase of Care,06/07/2022,4022759-I-22-5155038,"1,958.88",NIGHTINGALES COMMUNITY CARE LTD.
Adult and Health Services,Head of Adults,Third Party Payments,472101,Purchase of Care,06/07/2022,4022761-I-22-5153549,"8,152.60",NORTH EAST AUTISM SOCIETY.
Adult and Health Services,Head of Adults,Third Party Payments,472101,Purchase of Care,06/07/2022,4022782-I-22-5154929,"96,630.79",ORCHARD HOME CARE SERVICES LTD.
Adult and Health Services,Head of Adults,Third Party Payments,472101,Purchase of Care,06/07/2022,4022814-I-22-5155007,"150,884.48",PERFECT CARE LTD.
Adult and Health Services,Head of Adults,Third Party Payments,472101,Purchase of Care,06/07/2022,4022824-I-22-5155040,"15,628.43",POSSIBILITES NE LTD.
Adult and Health Services,Head of Adults,Third Party Payments,472101,Purchase of Care,06/07/2022,4022831-I-22-5153752,"144,727.13",PREMIER COMMUNITY CARE LTD.
Adult and Health Services,Head of Adults,Third Party Payments,472101,Purchase of Care,06/07/2022,4022837-I-22-5153730,"13,270.20",PRIORITISING PEOPLE`S LIVES LTD.
Adult and Health Services,Head of Adults,Third Party Payments,472101,Purchase of Care,06/07/2022,4022906-I-22-4997547,"52,401.97",SECOND TO NONE CARE LTD.
Adult and Health Services,Head of Adults,Third Party Payments,472101,Purchase of Care,06/07/2022,4022906-I-22-5154725,"29,535.16",SECOND TO NONE CARE LTD.
Adult and Health Services,Head of Adults,Third Party Payments,472101,Purchase of Care,06/07/2022,4022913-I-22-2975450A,"1,101.87",SHEENA MILES CARE SERVICES LTD.
Adult and Health Services,Head of Adults,Third Party Payments,472101,Purchase of Care,06/07/2022,4022913-I-22-5153785,"82,459.28",SHEENA MILES CARE SERVICES LTD.
Adult and Health Services,Head of Adults,Third Party Payments,472101,Purchase of Care,06/07/2022,4022928-I-22-5154931,"2,439.48",SPECTRUM COMMUNITY HEALTH.
Adult and Health Services,Head of Adults,Third Party Payments,472101,Purchase of Care,06/07/2022,4022990-I-22-5155004,"25,223.04",THE HUMAN SUPPORT GROUP LTD.
Adult and Health Services,Head of Adults,Third Party Payments,472101,Purchase of Care,06/07/2022,4023011-I-22-5155050,"19,490.47",TLC COMMUNITY SERVICES.
Adult and Health Services,Head of Adults,Third Party Payments,472101,Purchase of Care,06/07/2022,4023030-I-22-5153751,"6,587.92",VILLAGE CARE LTD.
Children and Young Peoples Services,Head of Childrens Social Care,Third Party Payments,425040,Rendered by Voluntary Organisations,06/07/2022,4022351-PIG_133999,"1,390.81",FIRST FOR FOSTERING LTD.
Children and Young Peoples Services,Head of Childrens Social Care,Third Party Payments,425040,Rendered by Voluntary Organisations,06/07/2022,4023021-PIG_133352,"1,456.47",UNITY FOSTER CARE LTD.
Children and Young Peoples Services,Head of Childrens Social Care,Third Party Payments,425040,Rendered by Voluntary Organisations,06/07/2022,4021819-PIG_133991,"19,373.49",A1 FOSTER CARE.
Children and Young Peoples Services,Head of Childrens Social Care,Third Party Payments,425040,Rendered by Voluntary Organisations,06/07/2022,4022031-PIG_133350,"13,540.12",ACORN CARE (NE) LTD.
Children and Young Peoples Services,Head of Childrens Social Care,Third Party Payments,425040,Rendered by Voluntary Organisations,06/07/2022,4022032-PIG_133418,"6,122.32",ACORN HOUSE (FOSTERING SERVICES) LTD.
Children and Young Peoples Services,Head of Childrens Social Care,Third Party Payments,425040,Rendered by Voluntary Organisations,06/07/2022,4022113-PIG_133420,765.29,BANYA FAMILY PLACEMENT AGENCY LTD.
Children and Young Peoples Services,Head of Childrens Social Care,Third Party Payments,425040,Rendered by Voluntary Organisations,06/07/2022,4022124-PIG_133351,"13,852.12",BARNARDOS BELIEVE IN CHILDREN.
Children and Young Peoples Services,Head of Childrens Social Care,Third Party Payments,425040,Rendered by Voluntary Organisations,06/07/2022,4022190-PIG_133422,"16,385.96",CHANGING FUTURES FOSTERING.
Children and Young Peoples Services,Head of Childrens Social Care,Third Party Payments,425040,Rendered by Voluntary Organisations,06/07/2022,4022195-PIG_134030,"44,116.42",CHILDRENS FAMILY TRUST.
Children and Young Peoples Services,Head of Childrens Social Care,Third Party Payments,425040,Rendered by Voluntary Organisations,06/07/2022,4022223-PIG_133423,"5,306.28",COMPASS FOSTERING NORTH LTD.
Children and Young Peoples Services,Head of Childrens Social Care,Third Party Payments,425040,Rendered by Voluntary Organisations,06/07/2022,4022224-PIG_133983,"6,800.08",COMPASS FOSTERING SOUTH.
Children and Young Peoples Services,Head of Childrens Social Care,Third Party Payments,425040,Rendered by Voluntary Organisations,06/07/2022,4022284-PIG_133424,"3,480.66",DIVERSE CARE UK LTD.
Children and Young Peoples Services,Head of Childrens Social Care,Third Party Payments,425040,Rendered by Voluntary Organisations,06/07/2022,4022353-PIG_132784,"9,530.64",FIVE RIVERS CHILD CARE LTD.
Children and Young Peoples Services,Head of Childrens Social Care,Third Party Payments,425040,Rendered by Voluntary Organisations,06/07/2022,4022356-PIG_134002,"102,881.45",FOSTER CARE ASSOCIATES LTD.
Children and Young Peoples Services,Head of Childrens Social Care,Third Party Payments,425040,Rendered by Voluntary Organisations,06/07/2022,4022357-PIG_133426,"38,182.92",FOSTER CARE SOLUTIONS LTD.
Children and Young Peoples Services,Head of Childrens Social Care,Third Party Payments,425040,Rendered by Voluntary Organisations,06/07/2022,4022358-PIG_133427,"3,545.75",FOSTER CARES LTD.
Children and Young Peoples Services,Head of Childrens Social Care,Third Party Payments,425040,Rendered by Voluntary Organisations,06/07/2022,4022359-PIG_134003,"41,799.02",FOSTERING PEOPLE LTD.
Children and Young Peoples Services,Head of Childrens Social Care,Third Party Payments,425040,Rendered by Voluntary Organisations,06/07/2022,4022781-PIG_132787,"41,808.27",ORCHARD CARE (NORTH EAST) LTD.
Children and Young Peoples Services,Head of Childrens Social Care,Third Party Payments,425040,Rendered by Voluntary Organisations,06/07/2022,4022852-PIG_133432,"86,641.08",REACH OUT CARE LTD.
Children and Young Peoples Services,Head of Childrens Social Care,Third Party Payments,425040,Rendered by Voluntary Organisations,06/07/2022,4022935-PIG_133349,"1,424.16",ST CUTHBERTS CARE.
Children and Young Peoples Services,Head of Childrens Social Care,Third Party Payments,425040,Rendered by Voluntary Organisations,06/07/2022,4022972-PIG_132782,"28,843.52",SWIIS FOSTER CARE LTD.
Children and Young Peoples Services,Head of Childrens Social Care,Third Party Payments,425040,Rendered by Voluntary Organisations,06/07/2022,4022973-PIG_133437,"1,575.00",TACT (THE ADOLESCENT & CHILDREN`S TRUST).
Children and Young Peoples Services,Head of Childrens Social Care,Third Party Payments,425040,Rendered by Voluntary Organisations,06/07/2022,4022982-PIG_133981,"85,876.75",TEAM FOSTERING.
Children and Young Peoples Services,Head of Childrens Social Care,Third Party Payments,425040,Rendered by Voluntary Organisations,06/07/2022,4022986-PIG_132783,"5,868.56",THE FOSTERING COMPANY NORTH EAST LTD.
Children and Young Peoples Services,Head of Childrens Social Care,Third Party Payments,425040,Rendered by Voluntary Organisations,06/07/2022,4023017-PIG_133987,"29,892.00",UK FOSTERING LTD.
Dedicated Schools Grant BG0015,DSG High Needs Block,Third Party Payments,425005,Rendered by Voluntary Organisations,06/07/2022,4023057-PIG_134007,"146,559.10",WITHERSLACK GROUP LTD T/A ASHBROOKE SCHOOL.
Dedicated Schools Grant BG0015,DSG High Needs Block,Third Party Payments,425005,Rendered by Voluntary Organisations,06/07/2022,4023058-PIG_133382,"16,070.80",WITHERSLACK GROUP LTD T/A HARTWELL SCHOOL.
Dedicated Schools Grant BG0015,DSG High Needs Block,Third Party Payments,425005,Rendered by Voluntary Organisations,06/07/2022,4023059-PIG_133381,"6,572.04",WITHERSLACK GROUP LTD.
Dedicated Schools Grant BG0015,DSG High Needs Block,Third Party Payments,425005,Rendered by Voluntary Organisations,06/07/2022,4023059-PIG_133383,"10,361.96",WITHERSLACK GROUP LTD.
Dedicated Schools Grant BG0015,DSG High Needs Block,Third Party Payments,425005,Rendered by Voluntary Organisations,06/07/2022,4022030-PIG_134012,"2,870.50",ACORN CARE & EDUCATION LTD.
Dedicated Schools Grant BG0015,DSG High Needs Block,Third Party Payments,425005,Rendered by Voluntary Organisations,06/07/2022,4022158-PIG_133400,"3,386.68",CAMBIAN CHILDCARE LTD T/A HARTLEPOOL SCHOOL.
Dedicated Schools Grant BG0015,DSG High Needs Block,Third Party Payments,425005,Rendered by Voluntary Organisations,06/07/2022,4022449-PIG_134020,"92,564.96",HURWORTH HOUSE PRIORY.
Dedicated Schools Grant BG0015,DSG High Needs Block,Third Party Payments,425005,Rendered by Voluntary Organisations,06/07/2022,4022882-PIG_133380,"7,374.44",RUSKIN MILL TRUST T/A CLERVAUX GARDEN SCHOOL.
Dedicated Schools Grant BG0015,DSG High Needs Block,Third Party Payments,425005,Rendered by Voluntary Organisations,06/07/2022,4022927-PIG_133376,"11,729.28",SPARK OF GENIUS (NORTH EAST LLP).
Dedicated Schools Grant BG0015,DSG High Needs Block,Third Party Payments,425005,Rendered by Voluntary Organisations,06/07/2022,4022987-PIG_134021,"2,684.22",THE GFC SCHOOL LTD.
Regeneration Economy and Growth,Development and Housing,Supplies and Services,338045,Services,06/07/2022,4021597-492584/060622,"1,000.00",KINGS CHAMBERS.
Regeneration Economy and Growth,Culture Sport and Tourism,Supplies and Services,384956,Miscellaneous Expenses,06/07/2022,4021698-SIN2104793,"2,164.96",PPL PRS LTD.
Neighbourhoods and Climate Change,Partnerships & Community Engagement Div.,Supplies and Services,384086,Miscellaneous Expenses,06/07/2022,4021545-VOUCHERSHIA01-22,500.00,HAMSTERLEY & LOW WESTWOOD COMMUNITY ASSOCIATION.
Neighbourhoods and Climate Change,Partnerships & Community Engagement Div.,Supplies and Services,384086,Miscellaneous Expenses,06/07/2022,4021602-VOUCHERFLEC04-22,999.00,LAUREL AVENUE COMMUNITY ASSOCIATION.
Neighbourhoods and Climate Change,Partnerships & Community Engagement Div.,Supplies and Services,384086,Miscellaneous Expenses,06/07/2022,4021635-VOUCHERBELC04-22,800.00,MORRISON LODGES BANNER GROUP.
Neighbourhoods and Climate Change,Partnerships & Community Engagement Div.,Supplies and Services,384086,Miscellaneous Expenses,06/07/2022,4021661-VOUCHERATKJ01-22,850.00,NORTH EAST AUTISM SOCIETY.
Neighbourhoods and Climate Change,Environmental Services,Supplies and Services,304999,Equipment and Materials,06/07/2022,4021792-V-SI00017955,957.20,VALPAK LTD.
Resources BK0010,Digital Services,Supplies and Services,304303,Equipment and Materials,06/07/2022,4021542-INV0187793,"6,285.54",GVAV LTD.
Adult and Health Services,Head of Adults,Third Party Payments,474101,Purchase of Care,06/07/2022,4022665-I-21-2332453,"2,090.84",MEMORY LANE CARE HOMES LTD.
Adult and Health Services,Head of Adults,Third Party Payments,474101,Purchase of Care,06/07/2022,4022665-I-22-3135547,"2,090.84",MEMORY LANE CARE HOMES LTD.
Adult and Health Services,Head of Adults,Third Party Payments,474101,Purchase of Care,06/07/2022,4023047-I-22-5155610,"32,599.04",WEST HOUSE CARE HOME LTD.
Adult and Health Services,Head of Adults,Third Party Payments,474101,Purchase of Care,06/07/2022,4022041-I-22-5156094,"6,897.16",AKARI CARE LTD.
Adult and Health Services,Head of Adults,Third Party Payments,474101,Purchase of Care,06/07/2022,4022043-I-22-5155685,"2,559.24",AKARI CARE LTD.
Adult and Health Services,Head of Adults,Third Party Payments,474101,Purchase of Care,06/07/2022,4022066-I-22-5155558,"109,798.58",ALLIANCE CARE (TRENDLEWOOD) LTD.
Adult and Health Services,Head of Adults,Third Party Payments,474101,Purchase of Care,06/07/2022,4022106-I-22-5155700,"4,602.52",ATLAS CARE HOMES LTD.
